Organisation Name,Organisation Code,Effective Date,Directorate,Service Category,Service Category URI,Supplier Name,Payment Date,Transaction Number,Net Amount,Irrecoverable VAT,Purpose_of_the_expenditure,Merchant Category
Wyre Council,http://opendatacommunities.org/doc/district-council/wyre,29/11/2023,People and Places,Cultural and Related Services,132A,Lancashire And North West Magazine,13/11/2023,PE154373,895.00,0.00,Tourism Discover Wyre Advertorial and Front Cover,Advertising - General
Wyre Council,http://opendatacommunities.org/doc/district-council/wyre,29/11/2023,People and Places,Cultural and Related Services,132A,Preston City Council,09/11/2023,PE154363,85.57,0.00,x7 Correx boards for the trail at Food Fest MH,Advertising - General
Wyre Council,http://opendatacommunities.org/doc/district-council/wyre,29/11/2023,Resources,Planning and Development Servs,132C,Daisy Communications LTD,27/11/2023,RS154227,50.70,0.00,Service Charges 01/11/23 to  30/11/23,Advertising - General
Wyre Council,http://opendatacommunities.org/doc/district-council/wyre,29/11/2023,People and Places,Cultural and Related Services,132A,Same Difference Arts Ltd,30/11/2023,PE154896,500.00,0.00,"Walkabout Acts for Marine Hall, Christmas Festive Weekend",Advertising - General
Wyre Council,http://opendatacommunities.org/doc/district-council/wyre,29/11/2023,People and Places,Cultural and Related Services,132A,Disabled Enabled Ltd T/A AccessAble,08/11/2023,PE154327,3150.00,0.00,Access guides,Advertising - General
Wyre Council,http://opendatacommunities.org/doc/district-council/wyre,29/11/2023,People and Places,Central Services to the Public,131C,KW Publishing LTD,27/11/2023,PE154779,650.00,0.00,Household Support Fund adverts,Advertising - General
Wyre Council,http://opendatacommunities.org/doc/district-council/wyre,29/11/2023,Resources,Support Services,135B,HB EDITORIAL SERVICES LTD,20/11/2023,RS154634,595.00,0.00,Solicitor vacancy advertisement on Local Government Lawyer - 595 + VAT,Advertising - Recruitment
Wyre Council,http://opendatacommunities.org/doc/district-council/wyre,29/11/2023,Resources,Housing General Fund,134A,RHEA PROJECTS LTD,10/11/2023,RS154419,2075.00,0.00,"Payment of invoices RP-1965, RP-1968, RP-1967",Affordable Warmth 2017/18
Wyre Council,http://opendatacommunities.org/doc/district-council/wyre,29/11/2023,Resources,Housing General Fund,134A,RHEA PROJECTS LTD,14/11/2023,PE154439,2100.00,0.00,Invoice RP-1974 Affordable warmth assistance ,Affordable Warmth 2017/18
Wyre Council,http://opendatacommunities.org/doc/district-council/wyre,29/11/2023,Resources,Housing General Fund,134A,RHEA PROJECTS LTD,09/11/2023,RS154391,1970.00,0.00,"Payment of invoices RP-1965, RP-1968, RP-1967",Affordable Warmth 2017/18
Wyre Council,http://opendatacommunities.org/doc/district-council/wyre,29/11/2023,Resources,Housing General Fund,134A,RHEA PROJECTS LTD,09/11/2023,RS154390,2220.00,0.00,"Payment of invoices RP-1965, RP-1968, RP-1967",Affordable Warmth 2017/18
Wyre Council,http://opendatacommunities.org/doc/district-council/wyre,29/11/2023,People and Places,Support Services,135B,M J Wilkinson,27/11/2023,PE154789,422.40,0.00,Labourtime sheet 111519/10/23 - 13/10/23,Agency Staff
Wyre Council,http://opendatacommunities.org/doc/district-council/wyre,29/11/2023,People and Places,Cultural and Related Services,132A,Catering Elite Ltd,15/11/2023,PE154557,494.59,0.00,Agency staff - Marine Hall we 5/11/23,Agency Staff
Wyre Council,http://opendatacommunities.org/doc/district-council/wyre,29/11/2023,People and Places,Cultural and Related Services,132A,Catering Elite Ltd,01/11/2023,PE154189,65.40,0.00,Agency staff we 22/10/23,Agency Staff
Wyre Council,http://opendatacommunities.org/doc/district-council/wyre,29/11/2023,People and Places,Cultural and Related Services,132A,Catering Elite Ltd,01/11/2023,PE154164,453.71,0.00,Agency staff  we 29/10/23,Agency Staff
Wyre Council,http://opendatacommunities.org/doc/district-council/wyre,29/11/2023,People and Places,Cultural and Related Services,132A,Catering Elite Ltd,29/11/2023,PE154880,232.99,0.00,Agency staff we 19/11/23,Agency Staff
Wyre Council,http://opendatacommunities.org/doc/district-council/wyre,29/11/2023,People and Places,Cultural and Related Services,132A,Catering Elite Ltd,22/11/2023,PE154724,698.96,0.00,Marine Hall Agency Staff we 12/11/23,Agency Staff
Wyre Council,http://opendatacommunities.org/doc/district-council/wyre,29/11/2023,Resources,Housing General Fund,134A,Vivid Resourcing Ltd,16/11/2023,RS154200,1377.88,0.00,Invoice 121943,Agency Staff
Wyre Council,http://opendatacommunities.org/doc/district-council/wyre,29/11/2023,People and Places,Support Services,135B,G2V Recruitment Group Ltd T/A G2 Recruitment Solu,14/11/2023,PE154436,1669.80,0.00,Payment of Inv SLIG2R0127606 Period End 29/10/23,Agency Staff
Wyre Council,http://opendatacommunities.org/doc/district-council/wyre,29/11/2023,Resources,Support Services,135B,G2V Recruitment Group Ltd T/A G2 Recruitment Solu,08/11/2023,RS154321,1656.30,0.00,Payment of Invoice SLIG2R0127177 Period end 22/10/23,Agency Staff
Wyre Council,http://opendatacommunities.org/doc/district-council/wyre,29/11/2023,Resources,Support Services,135B,G2V Recruitment Group Ltd T/A G2 Recruitment Solu,14/11/2023,PE154435,1659.90,0.00,Invoice SLIG2R0128211,Agency Staff
Wyre Council,http://opendatacommunities.org/doc/district-council/wyre,29/11/2023,People and Places,Cultural and Related Services,132A,Quantum Staffing Solutions Ltd,08/11/2023,PE154320,891.00,0.00,Agency staff we 29/10/23,Agency Staff
Wyre Council,http://opendatacommunities.org/doc/district-council/wyre,29/11/2023,People and Places,Cultural and Related Services,132A,Quantum Staffing Solutions Ltd,14/11/2023,PE154404,1072.92,0.00,Marine Hall Agency staff we 5/11/23,Agency Staff
Wyre Council,http://opendatacommunities.org/doc/district-council/wyre,29/11/2023,People and Places,Cultural and Related Services,132A,Quantum Staffing Solutions Ltd,22/11/2023,PE154629,472.23,0.00,Agency staff - Marine Hall we 12/11/23,Agency Staff
Wyre Council,http://opendatacommunities.org/doc/district-council/wyre,29/11/2023,People and Places,Cultural and Related Services,132A,Spencer Sutcliffe Security Ltd,02/11/2023,PE154210,561.47,0.00,Security - Marine Hall29/10/23,Agency Staff
Wyre Council,http://opendatacommunities.org/doc/district-council/wyre,29/11/2023,People and Places,Cultural and Related Services,132A,Spencer Sutcliffe Security Ltd,15/11/2023,PE154558,148.00,0.00,2 x hall assistants,Agency Staff
Wyre Council,http://opendatacommunities.org/doc/district-council/wyre,29/11/2023,Resources,Support Services,135B,Daisy Communications LTD,27/11/2023,RS154227,13.87,0.00,Service Charges 01/11/23 to  30/11/23,Alarm Systems and Security - Annual
Wyre Council,http://opendatacommunities.org/doc/district-council/wyre,29/11/2023,People and Places,Support Services,135B,M D Security,27/11/2023,PE154719,195.00,0.00,"Civic Centre main block: Further to September, emergency light test. Replaced 1 faulty unit adj room 072, 1 faulty unit adj room 165, 1 faulty unit adj revenues fire door",Alarm Systems and Security - Annual
Wyre Council,http://opendatacommunities.org/doc/district-council/wyre,29/11/2023,People and Places,Support Services,135B,M D Security,27/11/2023,PE154717,60.00,0.00,Civic Centre: Emergency light test for 11/23,Alarm Systems and Security - Annual
Wyre Council,http://opendatacommunities.org/doc/district-council/wyre,29/11/2023,Finance,Support Services,135B,,22/11/2023,WPST00125759,2746.00,0.00,IR - Apprenticeship Levy,Apprenticeship Levy
Wyre Council,http://opendatacommunities.org/doc/district-council/wyre,29/11/2023,People and Places,Cultural and Related Services,132A,Thornton Cleveleys Band,30/11/2023,PE154898,250.00,0.00,Marine Hall 26/11/23,Artistes Fees
Wyre Council,http://opendatacommunities.org/doc/district-council/wyre,29/11/2023,People and Places,Cultural and Related Services,132A,The Casinos,01/11/2023,PE154187,500.00,0.00,The Casinos Band - Marine Hall 22/9/23,Artistes Fees
Wyre Council,http://opendatacommunities.org/doc/district-council/wyre,29/11/2023,Resources,Corporate and Democratic Core,131A,PR Chauffeuring Services,09/11/2023,RS154364,946.00,0.00,Mayoral Chauffeuring Service - Monthly fee for October 2023.,Attendant Chauffeur Service
Wyre Council,http://opendatacommunities.org/doc/district-council/wyre,29/11/2023,Finance,Corporate and Democratic Core,131A,NATWEST BANK,23/11/2023,WPST00125905,1043.85,0.00,WorldPay 279673946,Bank Charges
Wyre Council,http://opendatacommunities.org/doc/district-council/wyre,29/11/2023,Finance,Corporate and Democratic Core,131A,NATWEST BANK,23/11/2023,WPST00125907,1674.22,0.00,WorldPay 279692236,Bank Charges
Wyre Council,http://opendatacommunities.org/doc/district-council/wyre,29/11/2023,Finance,Corporate and Democratic Core,131A,NATWEST BANK,02/11/2023,WPST00123862,811.99,0.00,21/10/2023 29SEP GRP 99795000,Bank Charges
Wyre Council,http://opendatacommunities.org/doc/district-council/wyre,29/11/2023,People and Places,Cultural and Related Services,132A,George Hewitt Fabrications,27/11/2023,PE154805,2150.00,0.00,Gate for Tithe Barn Park 2150,Barrier Security
Wyre Council,http://opendatacommunities.org/doc/district-council/wyre,29/11/2023,Finance,Support Services,135B,,24/11/2023,WPST00125388,589.45,0.00,15/11/2023,Basic Salary
Wyre Council,http://opendatacommunities.org/doc/district-council/wyre,29/11/2023,People and Places,Environmental Services,132B,N Power LTD,23/11/2023,PE154265,67.18,0.00,Unmetered Town Centre CCTV Electricity Costs - 1-31 October 2023,CCTV Running Costs
Wyre Council,http://opendatacommunities.org/doc/district-council/wyre,29/11/2023,People and Places,Environmental Services,132B,N Power LTD,23/11/2023,PE154265,37.57,0.00,Unmetered Town Centre CCTV Electricity Costs - 1-31 October 2023,CCTV Running Costs
Wyre Council,http://opendatacommunities.org/doc/district-council/wyre,29/11/2023,People and Places,Environmental Services,132B,N Power LTD,23/11/2023,PE154265,6.26,0.00,Unmetered Town Centre CCTV Electricity Costs - 1-31 October 2023,CCTV Running Costs
Wyre Council,http://opendatacommunities.org/doc/district-council/wyre,29/11/2023,People and Places,Environmental Services,132B,N Power LTD,23/11/2023,PE154265,11.19,0.00,Unmetered Town Centre CCTV Electricity Costs - 1-31 October 2023,CCTV Running Costs
Wyre Council,http://opendatacommunities.org/doc/district-council/wyre,29/11/2023,People and Places,Environmental Services,132B,N Power LTD,23/11/2023,PE154265,56.35,0.00,Unmetered Town Centre CCTV Electricity Costs - 1-31 October 2023,CCTV Running Costs
Wyre Council,http://opendatacommunities.org/doc/district-council/wyre,29/11/2023,People and Places,Environmental Services,132B,N Power LTD,23/11/2023,PE154265,100.77,0.00,Unmetered Town Centre CCTV Electricity Costs - 1-31 October 2023,CCTV Running Costs
Wyre Council,http://opendatacommunities.org/doc/district-council/wyre,29/11/2023,Resources,Support Services,135B,Konica Minolta Business Solutions UK LTD,16/11/2023,RS153275,47.71,0.00,WECP,Central Printer/Copier Expenses
Wyre Council,http://opendatacommunities.org/doc/district-council/wyre,29/11/2023,Resources,Support Services,135B,Konica Minolta Business Solutions UK LTD,13/11/2023,RS153226,34.65,0.00,1840141295 - WECP,Central Printer/Copier Expenses
Wyre Council,http://opendatacommunities.org/doc/district-council/wyre,29/11/2023,People and Places,Planning and Development Servs,132C,Key Engineering & Hygiene Supplies LTD,06/11/2023,PE154255,202.05,0.00,2PLY WHITE JUMBO TOILET ROLL,Cleaning Materials
Wyre Council,http://opendatacommunities.org/doc/district-council/wyre,29/11/2023,People and Places,Planning and Development Servs,132C,Key Engineering & Hygiene Supplies LTD,06/11/2023,PE154255,49.44,0.00,Box - Cranberry Air Freshener,Cleaning Materials
Wyre Council,http://opendatacommunities.org/doc/district-council/wyre,29/11/2023,People and Places,Planning and Development Servs,132C,Key Engineering & Hygiene Supplies LTD,06/11/2023,PE154255,10.95,0.00,BLUE VINYL DISPOSB GLOVES POWDERED MEDIUM PER100 BLUE,Cleaning Materials
Wyre Council,http://opendatacommunities.org/doc/district-council/wyre,29/11/2023,People and Places,Planning and Development Servs,132C,Key Engineering & Hygiene Supplies LTD,06/11/2023,PE154255,7.30,0.00,BLUE VINYL DISPOSB GLOVES POWDERED XL PER100 BLUE,Cleaning Materials
Wyre Council,http://opendatacommunities.org/doc/district-council/wyre,29/11/2023,People and Places,Planning and Development Servs,132C,Key Engineering & Hygiene Supplies LTD,06/11/2023,PE154255,9.72,0.00,EAUFRESH NON ACIDIC APPLE TOILET CLEANER 1 LTR,Cleaning Materials
Wyre Council,http://opendatacommunities.org/doc/district-council/wyre,29/11/2023,People and Places,Planning and Development Servs,132C,Key Engineering & Hygiene Supplies LTD,06/11/2023,PE154255,22.86,0.00,LUX PEARL HAND/BODY SOAP 5 LTR,Cleaning Materials
Wyre Council,http://opendatacommunities.org/doc/district-council/wyre,29/11/2023,People and Places,Cultural and Related Services,132A,Key Engineering & Hygiene Supplies LTD,09/11/2023,PE154371,55.47,0.00,"Supply cleaning products as per your quote 21077Delivery to Wyre Estuary Country park, River Road, Stanah, Thornton, FY5 5LR",Cleaning Materials
Wyre Council,http://opendatacommunities.org/doc/district-council/wyre,29/11/2023,People and Places,Cultural and Related Services,132A,Key Engineering & Hygiene Supplies LTD,01/11/2023,PE154159,137.71,0.00,"Supply cleaning products as per your quote 21077Delivery to Wyre Estuary Country park, River Road, Stanah, Thornton, FY5 5LR",Cleaning Materials
Wyre Council,http://opendatacommunities.org/doc/district-council/wyre,29/11/2023,People and Places,Cultural and Related Services,132A,Key Engineering & Hygiene Supplies LTD,23/11/2023,PE154715,2.88,0.00,EAUFRESH NON ACIDIC APPLE TOILET CLEANER 1 LTR,Cleaning Materials
Wyre Council,http://opendatacommunities.org/doc/district-council/wyre,29/11/2023,People and Places,Cultural and Related Services,132A,Key Engineering & Hygiene Supplies LTD,23/11/2023,PE154715,1.88,0.00,TOTAL TOUCH BACTERICIDAL CLEANER 750ML,Cleaning Materials
Wyre Council,http://opendatacommunities.org/doc/district-council/wyre,29/11/2023,People and Places,Cultural and Related Services,132A,Key Engineering & Hygiene Supplies LTD,23/11/2023,PE154715,13.97,0.00,GREEN 1 PLY INTER-FOLD HAND TOWEL 250L X 190W 3600 SHEETS,Cleaning Materials
Wyre Council,http://opendatacommunities.org/doc/district-council/wyre,29/11/2023,Resources,Support Services,135B,Key Engineering & Hygiene Supplies LTD,13/11/2023,RS154421,9.24,0.00,BLUE NITRILE POWDER FREE GLOVES LARGE,Cleaning Materials
Wyre Council,http://opendatacommunities.org/doc/district-council/wyre,29/11/2023,Resources,Support Services,135B,Key Engineering & Hygiene Supplies LTD,13/11/2023,RS154421,9.24,0.00,BLUE NITRILE POWDER FREE GLOVES MEDIUM,Cleaning Materials
Wyre Council,http://opendatacommunities.org/doc/district-council/wyre,29/11/2023,Resources,Support Services,135B,Key Engineering & Hygiene Supplies LTD,13/11/2023,RS154421,14.34,0.00,LIQUID SPRAY POLISH 750ML TRIGGER SPRAY,Cleaning Materials
Wyre Council,http://opendatacommunities.org/doc/district-council/wyre,29/11/2023,Resources,Support Services,135B,Key Engineering & Hygiene Supplies LTD,13/11/2023,RS154421,6.40,0.00,SAFE ZONE PLUS  5 LITRE,Cleaning Materials
Wyre Council,http://opendatacommunities.org/doc/district-council/wyre,29/11/2023,Resources,Support Services,135B,Key Engineering & Hygiene Supplies LTD,13/11/2023,RS154421,9.24,0.00,BLUE NITRILE GLOVES EXTRA LARGE,Cleaning Materials
Wyre Council,http://opendatacommunities.org/doc/district-council/wyre,29/11/2023,Resources,Support Services,135B,Key Engineering & Hygiene Supplies LTD,13/11/2023,RS154421,18.36,0.00,EAUFRESH NON ACIDIC POT POURRI TOILET CLEANER 1 LTR,Cleaning Materials
Wyre Council,http://opendatacommunities.org/doc/district-council/wyre,29/11/2023,Resources,Support Services,135B,Key Engineering & Hygiene Supplies LTD,13/11/2023,RS154421,10.44,0.00,WASHING UP LIQUID 5 LTR,Cleaning Materials
Wyre Council,http://opendatacommunities.org/doc/district-council/wyre,29/11/2023,Resources,Support Services,135B,Key Engineering & Hygiene Supplies LTD,13/11/2023,RS154421,134.68,0.00,WHITE 2PLY LUXURY TOILET ROLL 320 40 PER PACK,Cleaning Materials
Wyre Council,http://opendatacommunities.org/doc/district-council/wyre,29/11/2023,Resources,Support Services,135B,Key Engineering & Hygiene Supplies LTD,13/11/2023,RS154421,9.66,0.00,MEDIUM BLACK REFUSE SACK 18X29X34 100G,Cleaning Materials
Wyre Council,http://opendatacommunities.org/doc/district-council/wyre,29/11/2023,Resources,Support Services,135B,Key Engineering & Hygiene Supplies LTD,13/11/2023,RS154421,196.40,0.00,1 PLY BLUE INTERFOLD 3600 SHEETS,Cleaning Materials
Wyre Council,http://opendatacommunities.org/doc/district-council/wyre,29/11/2023,Resources,Support Services,135B,Key Engineering & Hygiene Supplies LTD,13/11/2023,RS154421,3.80,0.00,20 X 15 BLEACHED DISH CLOTHS EA,Cleaning Materials
Wyre Council,http://opendatacommunities.org/doc/district-council/wyre,29/11/2023,Resources,Support Services,135B,Key Engineering & Hygiene Supplies LTD,13/11/2023,RS154421,8.24,0.00,FLORATILE GENERAL PURPOSE  CLEANER 5 LTR,Cleaning Materials
Wyre Council,http://opendatacommunities.org/doc/district-council/wyre,29/11/2023,Resources,Support Services,135B,Key Engineering & Hygiene Supplies LTD,13/11/2023,RS154421,6.38,0.00,KEYPINE GENERAL DISINFECTANT 5LTR,Cleaning Materials
Wyre Council,http://opendatacommunities.org/doc/district-council/wyre,29/11/2023,Resources,Support Services,135B,Key Engineering & Hygiene Supplies LTD,13/11/2023,RS154421,2.80,0.00,RED STRIPE DISH CLOTH EA,Cleaning Materials
Wyre Council,http://opendatacommunities.org/doc/district-council/wyre,29/11/2023,Resources,Support Services,135B,Key Engineering & Hygiene Supplies LTD,13/11/2023,RS154421,12.29,0.00,BLUE 2 PLY CENTREFEED ROLL 150M X 180MM 410 SHEETS,Cleaning Materials
Wyre Council,http://opendatacommunities.org/doc/district-council/wyre,29/11/2023,Resources,Support Services,135B,Key Engineering & Hygiene Supplies LTD,22/11/2023,RS154691,7.52,0.00,EVANS FOAMING LEMON SOAP 5L,Cleaning Materials
Wyre Council,http://opendatacommunities.org/doc/district-council/wyre,29/11/2023,People and Places,Planning and Development Servs,132C,Key Engineering & Hygiene Supplies LTD,15/11/2023,PE154546,7.62,0.00,RED 200GM EXEL PY MOP HEAD ( PUSH FIT),Cleaning Materials
Wyre Council,http://opendatacommunities.org/doc/district-council/wyre,29/11/2023,People and Places,Cultural and Related Services,132A,Key Engineering & Hygiene Supplies LTD,27/11/2023,PE154799,24.58,0.00,BLUE CENTRE FEED ROLLS 150MX175MM (PACK OF 6),Cleaning Materials
Wyre Council,http://opendatacommunities.org/doc/district-council/wyre,29/11/2023,People and Places,Cultural and Related Services,132A,Key Engineering & Hygiene Supplies LTD,27/11/2023,PE154799,7.30,0.00,BLUE VINYL DISPOSB GLOVES POWDERED LARGE PER100 BLUE,Cleaning Materials
Wyre Council,http://opendatacommunities.org/doc/district-council/wyre,29/11/2023,People and Places,Cultural and Related Services,132A,Key Engineering & Hygiene Supplies LTD,27/11/2023,PE154799,7.30,0.00,BLUE VINYL DISPOSB GLOVES POWDERED MEDIUM PER100 BLUE,Cleaning Materials
Wyre Council,http://opendatacommunities.org/doc/district-council/wyre,29/11/2023,People and Places,Cultural and Related Services,132A,Key Engineering & Hygiene Supplies LTD,07/11/2023,PE154259,13.97,0.00,GREEN 1 PLY INTER-FOLD HAND TOWEL 250L X 190W 3600 SHEETS,Cleaning Materials
Wyre Council,http://opendatacommunities.org/doc/district-council/wyre,29/11/2023,People and Places,Cultural and Related Services,132A,Key Engineering & Hygiene Supplies LTD,07/11/2023,PE154259,20.90,0.00,Order code A 004A   Evans Cyclone Spray with Bleach 750ml,Cleaning Materials
Wyre Council,http://opendatacommunities.org/doc/district-council/wyre,29/11/2023,Finance,Support Services,135B,,07/11/2023,WPST00124449,1723.96,0.00,03/11/23 FLEXOPTIX GMBH Network Hardware,Comp Hardware Purchases
Wyre Council,http://opendatacommunities.org/doc/district-council/wyre,29/11/2023,Resources,Support Services,135B,Insight Direct (UK) Limited,27/11/2023,RS154832,397.98,0.00,Intel Ethernet Converged Network Adapter X710-DA2 - network adapter - PCIe 3.0 x8 - 10 Gigabit SFP+ x 2Insight #: X710DA2BLKMfr #: X710DA2BLK,Comp Hardware Purchases
Wyre Council,http://opendatacommunities.org/doc/district-council/wyre,29/11/2023,Resources,Support Services,135B,Insight Direct (UK) Limited,27/11/2023,RS154815,206.99,0.00,Intel Ethernet Converged Network Adapter X710-DA2 - network adapter - PCIe 3.0 x8 - 10 Gigabit SFP+ x 2Insight #: X710DA2Mfr #: X710DA2,Comp Hardware Purchases
Wyre Council,http://opendatacommunities.org/doc/district-council/wyre,29/11/2023,Resources,Support Services,135B,Amazon Business,23/11/2023,RS154664,133.10,0.00,"x1 Jabra Evolve 65 SE Wireless Mono Headset - Bluetooth Headset with Noise-Cancelling Microphone, Long-Lasting Battery and Charging Stand - MS Teams Certified, works with all other platforms - Black",Comp Hardware Purchases
Wyre Council,http://opendatacommunities.org/doc/district-council/wyre,29/11/2023,Resources,Support Services,135B,Amazon Business,23/11/2023,RS154662,122.58,0.00,"x1 Poly - Voyager 4310 UC Wireless Headset + Charge Stand (Plantronics) - Single-Ear Headset- Connect to PC/Mac via USB-A Bluetooth Adapter, Cell Phone via Bluetooth-Works w/ Teams (Certified), Zoom&More",Comp Hardware Purchases
Wyre Council,http://opendatacommunities.org/doc/district-council/wyre,29/11/2023,Resources,Support Services,135B,Amazon Business,23/11/2023,RS154641,133.78,0.00,"x1 Yealink WH62 Mono UC Wireless Noise Canceling Headset - Connects and Works with USB Enabled Deskphones, Computers and Softphones",Comp Hardware Purchases
Wyre Council,http://opendatacommunities.org/doc/district-council/wyre,29/11/2023,Resources,Support Services,135B,Amazon Business,01/11/2023,RS154112,11.64,0.00,x2 TP-Link Nano USB Bluetooth 4.0 Adapter,Comp Hardware Purchases
Wyre Council,http://opendatacommunities.org/doc/district-council/wyre,29/11/2023,Resources,Support Services,135B,Amazon Business,20/11/2023,RS154113,23.84,0.00,x2 FSKE 3 Meters C19 Power Cable UK Mains Plug to IEC 320 C19 14AWG Extension Cord Leads,Comp Hardware Purchases
Wyre Council,http://opendatacommunities.org/doc/district-council/wyre,29/11/2023,Resources,Support Services,135B,Amazon Business,22/11/2023,RS154674,308.32,0.00,"Logitech H390 USB Headset with Noise-Cancelling Mic Black, 16 Count.",Comp Hardware Purchases
Wyre Council,http://opendatacommunities.org/doc/district-council/wyre,29/11/2023,Resources,Support Services,135B,Amazon Business,22/11/2023,RS154156,26.79,0.00,x1 BW USB Gadget PC Sensor Hygrometer Thermometer Hid TEMPerHUM Temperature Humidity Recorder,Comp Hardware Purchases
Wyre Council,http://opendatacommunities.org/doc/district-council/wyre,29/11/2023,Resources,Support Services,135B,Amazon Business,13/11/2023,RS154123,924.96,0.00,"Logitech H390 USB Headset with Noise-Cancelling Mic Black, 16 Count",Comp Hardware Purchases
Wyre Council,http://opendatacommunities.org/doc/district-council/wyre,29/11/2023,Resources,Support Services,135B,Amazon Business,22/11/2023,RS154675,132.03,0.00,"SAMSUNG Galaxy A14 5G 64GB Black EU 16,72cm (6,6``) LCD Display, Android 13, 50MP Triple-Kamera.",Comp Hardware Purchases
Wyre Council,http://opendatacommunities.org/doc/district-council/wyre,29/11/2023,Resources,Support Services,135B,Amazon Business,22/11/2023,RS154673,33.30,0.00,"BLACKSYNCZE iPhone Charger Cable 3Pack 2M/6.6FT, [MFi Certified] Lightning Cable Nylon Braided Fast iPhone Charging Cable Lead Compatible with iPhone 11 12 13 14 Pro Max Mini XR XS X 8 7 6 Plus 5 SE.",Comp Hardware Purchases
Wyre Council,http://opendatacommunities.org/doc/district-council/wyre,29/11/2023,Resources,Support Services,135B,Amazon Business,22/11/2023,RS154672,27.87,0.00,Luxafor Flag LED USB Busy Light Indicator � Status and Do Not Disturb Light (20 Inch Cable).,Comp Hardware Purchases
Wyre Council,http://opendatacommunities.org/doc/district-council/wyre,29/11/2023,Resources,Support Services,135B,Amazon Business,22/11/2023,RS154673,31.21,0.00,LUXAFOR Flag LED USB Busy Light Indicator � Black Flag LED Availability Indicator That Eliminates Workspace Distractions and Boosts Productivity  1.5m Cable (59 inch Cable (USB)).,Comp Hardware Purchases
Wyre Council,http://opendatacommunities.org/doc/district-council/wyre,29/11/2023,Resources,Support Services,135B,Amazon Business,16/11/2023,RS154566,924.96,0.00,"Logitech H390 USB Headset with Noise-Cancelling Mic Black, 16 Count.",Comp Hardware Purchases
Wyre Council,http://opendatacommunities.org/doc/district-council/wyre,29/11/2023,Resources,Support Services,135B,Amazon Business,27/11/2023,RS154562,959.70,0.00,"Samsung F24T450FQR - T45F Series - LED monitor - 24`` - 1920 x 1080 Full HD (1080p) @ 75 Hz - IPS - 250 cd/m� - 1000:1-5 ms - 2xHDMI, DisplayPort - black.",Comp Hardware Purchases
Wyre Council,http://opendatacommunities.org/doc/district-council/wyre,29/11/2023,Resources,Support Services,135B,Amazon Business,07/11/2023,RS154288,124.56,0.00,"SAMSUNG Galaxy A14 5G 64GB Black EU 16,72cm (6,6``) LCD Display, Android 13, 50MP Triple-Kamera.",Comp Hardware Purchases
Wyre Council,http://opendatacommunities.org/doc/district-council/wyre,29/11/2023,Resources,Support Services,135B,Amazon Business,07/11/2023,RS154296,349.17,0.00,"ASUS ProArt Display PA279CV Professional Monitor - 27-inch, IPS, 4K UHD (3840 x 2160), 100% sRGB, 100% Rec. 709, Color Accuracy &#916;E ( 2, Calman Verified, USB-C, ProArt Preset & Palette.",Comp Hardware Purchases
Wyre Council,http://opendatacommunities.org/doc/district-council/wyre,29/11/2023,Resources,Support Services,135B,Amazon Business,22/11/2023,RS154671,8.06,0.00,TECKNET Mouse Mat with Memory Foam Rest -Non-slip Rubber base- Special-Textured Water-Resistant Surface.,Computer Stationery and Consumables
Wyre Council,http://opendatacommunities.org/doc/district-council/wyre,29/11/2023,Resources,Support Services,135B,Amazon Business,22/11/2023,RS154670,26.64,0.00,"OWKEY Case for Samsung Galaxy A14 5G/4G with Built-in Screen Protector Anti-Scratch, 360 Degree Full Body Military Grade Rugged Phone Cover for Samsung Galaxy A14 5G/4G 6.6-Inch (Black)",Computer Stationery and Consumables
Wyre Council,http://opendatacommunities.org/doc/district-council/wyre,29/11/2023,Resources,Support Services,135B,Amazon Business,22/11/2023,RS154669,153.14,0.00,TECKNET Mouse Mat with Memory Foam Rest -Non-slip Rubber base- Special-Textured Water-Resistant Surface.,Computer Stationery and Consumables
Wyre Council,http://opendatacommunities.org/doc/district-council/wyre,29/11/2023,Resources,Support Services,135B,Civica UK LTD,27/11/2023,RS154780,1544.00,0.00,Report writing day for BPR,Consultants Fees
Wyre Council,http://opendatacommunities.org/doc/district-council/wyre,29/11/2023,Resources,Support Services,135B,Civica UK LTD,27/11/2023,RS152518,4632.00,0.00,Consultancy Days - 3 training days 2 business review days,Consultants Fees
Wyre Council,http://opendatacommunities.org/doc/district-council/wyre,29/11/2023,Resources,Support Services,135B,Civica UK LTD,27/11/2023,RS153231,-1544.00,0.00,Credit against C/FS2823040,Consultants Fees
Wyre Council,http://opendatacommunities.org/doc/district-council/wyre,29/11/2023,People and Places,Planning and Development Servs,132C,Hermolle Associates LTD,24/11/2023,PE154684,5250.00,0.00,"To carry out RACC surveys to   Fleetwood YMCA Building (inc pool)- Esplanade, Fleetwood, FY7 6HF  Thornton YMCA Building Victoria Rd East, Thornton Cleveleys FY5 3SX  Poulton YMCA Building � Breck Rd,  Poulton le Fylde FY6 7HJ  Garstang YMCA building Wind",Consultants Fees
Wyre Council,http://opendatacommunities.org/doc/district-council/wyre,29/11/2023,People and Places,Support Services,135B,Lancashire County Council,23/11/2023,PE154577,2100.00,0.00,LCC Estates Support,Consultants Fees
Wyre Council,http://opendatacommunities.org/doc/district-council/wyre,29/11/2023,Resources,Support Services,135B,Phoenix Software LTD,03/11/2023,RS154230,125.00,0.00,Microsoft License Statement,Consultants Fees
Wyre Council,http://opendatacommunities.org/doc/district-council/wyre,29/11/2023,Resources,Support Services,135B,NEC Software Solutions UK Limited,27/11/2023,RS154830,1100.00,0.00,"CRM 144839 - SAG1 day Document Management Consultancy with Lesley Abel, to be delivered: Remotely, during normal working hours.",Consultants Fees
Wyre Council,http://opendatacommunities.org/doc/district-council/wyre,29/11/2023,Resources,Support Services,135B,PEARSON INSIGHT LTD,20/11/2023,RS154653,2000.00,0.00,Staff Survey 2023,Consultants Fees
Wyre Council,http://opendatacommunities.org/doc/district-council/wyre,29/11/2023,People and Places,Environmental Services,132B,Bloom Procurement Services Ltd,21/11/2023,PE154668,13686.00,0.00,Preparation of Heat Decarbonisation Plans EvaluationPart of Low Carbon Skills Fund Grant,Consultants Fees
Wyre Council,http://opendatacommunities.org/doc/district-council/wyre,29/11/2023,People and Places,Environmental Services,132B,Bloom Procurement Services Ltd,07/11/2023,PE154126,4772.00,0.00,Preparation of Heat Decarbonisation Plans Evaluation Part of Low Carbon Skills Fund Grant,Consultants Fees
Wyre Council,http://opendatacommunities.org/doc/district-council/wyre,29/11/2023,People and Places,Planning and Development Servs,132C,Jeremy Benn Associates Limited,08/11/2023,PE154323,3096.00,0.00,Fylde Coast Strategic Flood Risk Assessment (Level 1),Consultants Fees
Wyre Council,http://opendatacommunities.org/doc/district-council/wyre,29/11/2023,People and Places,"Cultural, Environ and Planning",137B,Halcrow Group LTD,02/11/2023,PE154198,1431.05,0.00,"Extend the existing OBC commission to include the following, as defined in your proposal dated 4 July 2023, Beach Management Plan fee value 40,652, excluding VAT",Consultants Fees (New CCR)
Wyre Council,http://opendatacommunities.org/doc/district-council/wyre,29/11/2023,People and Places,"Cultural, Environ and Planning",137B,The Lancashire Wildlife Trust Ltd,29/11/2023,PE154627,9600.00,0.00,Employment of Engagement Officer,Consultants Fees (New CCR)
Wyre Council,http://opendatacommunities.org/doc/district-council/wyre,29/11/2023,People and Places,"Cultural, Environ and Planning",137B,The Lancashire Wildlife Trust Ltd,29/11/2023,PE154627,325.94,0.00,Travel Expenses,Consultants Fees (New CCR)
Wyre Council,http://opendatacommunities.org/doc/district-council/wyre,29/11/2023,People and Places,"Cultural, Environ and Planning",137B,The Lancashire Wildlife Trust Ltd,29/11/2023,PE154627,234.51,0.00,Project costs,Consultants Fees (New CCR)
Wyre Council,http://opendatacommunities.org/doc/district-council/wyre,29/11/2023,People and Places,"Cultural, Environ and Planning",137B,KEYSTONE DESIGN LTD,03/11/2023,PE154235,2650.00,0.00,"To David Hadwin,Keystone Design Associated Ltd,Development House,261 Church Street,Blackpool.FY1 3PB. Carry out inspection of 6 properties on Jubilee Drive, report, hypothesis to cause of cracking to property. 850 Establish crack monito",Consultants Fees (New CCR)
Wyre Council,http://opendatacommunities.org/doc/district-council/wyre,29/11/2023,People and Places,"Cultural, Environ and Planning",137B,Purcell Architecture Limited,13/11/2023,PE154096,16213.95,0.00,Fleetwood Market.  Additional Fees for Architect (MEP/Struct.Eng/QS +12.5% Admin Markup),Consultants Fees (New CCR)
Wyre Council,http://opendatacommunities.org/doc/district-council/wyre,29/11/2023,People and Places,"Cultural, Environ and Planning",137B,Purcell Architecture Limited,13/11/2023,PE154096,74.65,0.00,Credited on PE154234: Travel,Consultants Fees (New CCR)
Wyre Council,http://opendatacommunities.org/doc/district-council/wyre,29/11/2023,People and Places,"Cultural, Environ and Planning",137B,Susannah Bleakley Consulting,06/11/2023,PE154277,6585.50,0.00,ECO-Cobs Project,Consultants Fees (New CCR)
Wyre Council,http://opendatacommunities.org/doc/district-council/wyre,29/11/2023,People and Places,"Cultural, Environ and Planning",137B,Morecambe Bay Partnership,30/11/2023,PE154901,6746.00,0.00,"Our Future - Historical Coastal Change Community Project 
WP1 - Community & Engagement  Planning / delivery",Consultants Fees (New CCR)
Wyre Council,http://opendatacommunities.org/doc/district-council/wyre,29/11/2023,People and Places,"Cultural, Environ and Planning",137B,Morecambe Bay Partnership,30/11/2023,PE154901,7168.00,0.00,Our Future Coast - WP2 - Delivery,Consultants Fees (New CCR)
Wyre Council,http://opendatacommunities.org/doc/district-council/wyre,29/11/2023,People and Places,"Cultural, Environ and Planning",137B,WSP UK Limited,23/11/2023,PE154639,1359.22,0.00,"Project Management Services Annual  Annual amount 78,000  Potentially for 4 years   Order to replace PEO0025462",Consultants Fees (New CCR)
Wyre Council,http://opendatacommunities.org/doc/district-council/wyre,29/11/2023,People and Places,"Cultural, Environ and Planning",137B,M J Wilkinson,27/11/2023,PE154791,171.60,0.00,Labour 23/10/23 - 27/10/23,Contract (New CCR)
Wyre Council,http://opendatacommunities.org/doc/district-council/wyre,29/11/2023,People and Places,"Cultural, Environ and Planning",137B,M J Wilkinson,27/11/2023,PE154791,506.64,0.00,Hitachi ZX26U Excavator Time sheet 1115424/10/23 - 26/10/23,Contract (New CCR)
Wyre Council,http://opendatacommunities.org/doc/district-council/wyre,29/11/2023,People and Places,"Cultural, Environ and Planning",137B,M J Wilkinson,27/11/2023,PE154791,26.41,0.00,Delivery charge 24/10/23,Contract (New CCR)
Wyre Council,http://opendatacommunities.org/doc/district-council/wyre,29/11/2023,People and Places,"Cultural, Environ and Planning",137B,M J Wilkinson,27/11/2023,PE154791,26.41,0.00,Collection charge 24/10/23,Contract (New CCR)
Wyre Council,http://opendatacommunities.org/doc/district-council/wyre,29/11/2023,People and Places,"Cultural, Environ and Planning",137B,M J Wilkinson,27/11/2023,PE154791,26.41,0.00,Delivery charge 25/10/23,Contract (New CCR)
Wyre Council,http://opendatacommunities.org/doc/district-council/wyre,29/11/2023,People and Places,"Cultural, Environ and Planning",137B,M J Wilkinson,27/11/2023,PE154791,26.41,0.00,Collection charge 25/10/23,Contract (New CCR)
Wyre Council,http://opendatacommunities.org/doc/district-council/wyre,29/11/2023,People and Places,"Cultural, Environ and Planning",137B,M J Wilkinson,27/11/2023,PE154791,26.41,0.00,Delivery charge 26/10/23,Contract (New CCR)
Wyre Council,http://opendatacommunities.org/doc/district-council/wyre,29/11/2023,People and Places,"Cultural, Environ and Planning",137B,M J Wilkinson,27/11/2023,PE154791,26.41,0.00,Collection charge 26/10/23TEBAY,Contract (New CCR)
Wyre Council,http://opendatacommunities.org/doc/district-council/wyre,29/11/2023,People and Places,"Cultural, Environ and Planning",137B,F PARKINSON LTD,10/11/2023,PE154395,155986.19,0.00,Fleetwood Market Contract Works 2023/24,Contract (New CCR)
Wyre Council,http://opendatacommunities.org/doc/district-council/wyre,29/11/2023,People and Places,"Cultural, Environ and Planning",137B,F PARKINSON LTD,09/11/2023,PE154393,24297.21,0.00,Fleetwood Market Refurbishments.  Additional Works Brought Forward into the Main Contract,Contract (New CCR)
Wyre Council,http://opendatacommunities.org/doc/district-council/wyre,29/11/2023,People and Places,"Cultural, Environ and Planning",137B,F PARKINSON LTD,09/11/2023,PE154394,650.01,0.00,Fleetwood Market Contract (UKSPF) - 2023/24,Contract (New CCR)
Wyre Council,http://opendatacommunities.org/doc/district-council/wyre,29/11/2023,People and Places,"Cultural, Environ and Planning",137B,F PARKINSON LTD,09/11/2023,PE154392,27960.54,0.00,Fleetwood Market.  Annex & Associated Works,Contract (New CCR)
Wyre Council,http://opendatacommunities.org/doc/district-council/wyre,29/11/2023,People and Places,"Cultural, Environ and Planning",137B,Balfour Beatty Civil Engineering Ltd,08/11/2023,PE154330,879047.65,0.00,"FAO Chloe SumnerBalfour Beatty Civil Engineering LtdChaddock Lane WorsleyManchesterM28 1XYWyre Beach Management Scheme Phase 2 � Construction Works.Cost 35,601,957.69Carl Green / Mike Wilkinson",Contract (New CCR)
Wyre Council,http://opendatacommunities.org/doc/district-council/wyre,29/11/2023,People and Places,"Cultural, Environ and Planning",137B,Balfour Beatty Civil Engineering Ltd,08/11/2023,PE154325,184200.67,0.00,"FAO Chloe Sumner Balfour Beatty Civil Engineering Ltd Chaddock Lane  Worsley Manchester M28 1XY  Tel, 0161 638 0800 Chloe.Sumner@balfourbeatty.com   Wyre Beach Management Scheme Phase 1 - Construction Works.  Cost 2,687,156.94",Contract (New CCR)
Wyre Council,http://opendatacommunities.org/doc/district-council/wyre,29/11/2023,Resources,Housing General Fund,134A,Airey Consultancy Services,13/11/2023,RS154426,550.00,0.00,Council Reduction Scheme Annual Update Service 2024,Corporate and Professional Subscriptions
Wyre Council,http://opendatacommunities.org/doc/district-council/wyre,29/11/2023,People and Places,Cultural and Related Services,132A,Marketing Lancashire Limited,20/11/2023,PE154284,4500.00,0.00,Marketing Lancashire membership,Corporate and Professional Subscriptions
Wyre Council,http://opendatacommunities.org/doc/district-council/wyre,29/11/2023,Resources,Support Services,135B,SOCITM LTD,08/11/2023,RS154319,1995.00,0.00,Essential Membership 2024 Membership period: 1st January2024 - 31st December 2024,Corporate and Professional Subscriptions
Wyre Council,http://opendatacommunities.org/doc/district-council/wyre,29/11/2023,Resources,Support Services,135B,Mercato Solutions Ltd,01/11/2023,RS154184,7500.00,0.00,1 year subscription to KnowledgeBus - Concurrent Multi User,Corporate and Professional Subscriptions
Wyre Council,http://opendatacommunities.org/doc/district-council/wyre,29/11/2023,Resources,Support Services,135B,BRADLEY ENVIRONMENTAL CONSULTANTS LTD,14/11/2023,RS154467,710.11,0.00,"To deliver 1/2 day NL Asbestos Refresher for Managers at Committee Room 1, Civic Centre9 November 2023 start at 9 a.m.",Corporate Training - Health and Safety
Wyre Council,http://opendatacommunities.org/doc/district-council/wyre,29/11/2023,Resources,Support Services,135B,CMS Training Ltd,28/11/2023,RS154848,780.00,0.00,"To delivery of Dealing with Conflict and Aggression training at our premises, Civic Centre, Poulton Le Fylde16 November 2023.9.30 start time",Corporate Training - Health and Safety
Wyre Council,http://opendatacommunities.org/doc/district-council/wyre,29/11/2023,Finance,Current Assets,130B,,07/11/2023,WPST00124390,25370.19,0.00,03/11/23 Ctax Refunds,Council Tax Refunds
Wyre Council,http://opendatacommunities.org/doc/district-council/wyre,29/11/2023,Finance,Current Assets,130B,,28/11/2023,WPST00126339,27180.81,0.00,24/11/23 Ctax Refunds,Council Tax Refunds
Wyre Council,http://opendatacommunities.org/doc/district-council/wyre,29/11/2023,Finance,Current Assets,130B,,14/11/2023,WPST00125037,15897.69,0.00,10/11/23 Ctax Refunds,Council Tax Refunds
Wyre Council,http://opendatacommunities.org/doc/district-council/wyre,29/11/2023,Finance,Current Assets,130B,,21/11/2023,WPST00125571,9557.89,0.00,17/11/23 Ctax Refunds,Council Tax Refunds
Wyre Council,http://opendatacommunities.org/doc/district-council/wyre,29/11/2023,People and Places,Cultural and Related Services,132A,Preston City Council,29/11/2023,PE154870,10.00,0.00,200 x Fun Arts A5 1pp Garstang and Knott End combo,Creative People and Places Contribution
Wyre Council,http://opendatacommunities.org/doc/district-council/wyre,29/11/2023,People and Places,Cultural and Related Services,132A,Amazon Business,29/11/2023,PE154869,15.67,0.00,"3 x Crystals 50 Bingo Marker Pens, Bingo Pens, Felt Pens Mixed Colours (9.99)1 x Christmas Wreath with Lights 30cm, 20 LED Battery Christmas Rattan Wreath with Timer, 8 Mode, Artificial DIY Xmas Wreath Christmas Front door Home Decorations for Indoor",Creative People and Places Contribution
Wyre Council,http://opendatacommunities.org/doc/district-council/wyre,29/11/2023,People and Places,Cultural and Related Services,132A,Amazon Business,29/11/2023,PE154868,2.49,0.00,"3 x Crystals 50 Bingo Marker Pens, Bingo Pens, Felt Pens Mixed Colours (9.99)1 x Christmas Wreath with Lights 30cm, 20 LED Battery Christmas Rattan Wreath with Timer, 8 Mode, Artificial DIY Xmas Wreath Christmas Front door Home Decorations for Indoor",Creative People and Places Contribution
Wyre Council,http://opendatacommunities.org/doc/district-council/wyre,29/11/2023,People and Places,Cultural and Related Services,132A,Amazon Business,29/11/2023,PE154867,29.97,0.00,"3 x Crystals 50 Bingo Marker Pens, Bingo Pens, Felt Pens Mixed Colours (9.99)1 x Christmas Wreath with Lights 30cm, 20 LED Battery Christmas Rattan Wreath with Timer, 8 Mode, Artificial DIY Xmas Wreath Christmas Front door Home Decorations for Indoor",Creative People and Places Contribution
Wyre Council,http://opendatacommunities.org/doc/district-council/wyre,29/11/2023,People and Places,Cultural and Related Services,132A,Amazon Business,29/11/2023,PE154866,31.67,0.00,"3 x Crystals 50 Bingo Marker Pens, Bingo Pens, Felt Pens Mixed Colours (9.99)1 x Christmas Wreath with Lights 30cm, 20 LED Battery Christmas Rattan Wreath with Timer, 8 Mode, Artificial DIY Xmas Wreath Christmas Front door Home Decorations for Indoor",Creative People and Places Contribution
Wyre Council,http://opendatacommunities.org/doc/district-council/wyre,29/11/2023,People and Places,Environmental Services,132B,EK Motors Factors LTD,14/11/2023,PE154524,24.41,0.00,Parts,Daywork Materials (Excl.Tyres)
Wyre Council,http://opendatacommunities.org/doc/district-council/wyre,29/11/2023,People and Places,Support Services,135B,EK Motors Factors LTD,14/11/2023,PE154510,24.70,0.00,Parts,Daywork Materials (Excl.Tyres)
Wyre Council,http://opendatacommunities.org/doc/district-council/wyre,29/11/2023,People and Places,Support Services,135B,EK Motors Factors LTD,14/11/2023,PE154509,74.48,0.00,Parts,Daywork Materials (Excl.Tyres)
Wyre Council,http://opendatacommunities.org/doc/district-council/wyre,29/11/2023,People and Places,Environmental Services,132B,EK Motors Factors LTD,14/11/2023,PE154523,259.90,0.00,Parts,Daywork Materials (Excl.Tyres)
Wyre Council,http://opendatacommunities.org/doc/district-council/wyre,29/11/2023,People and Places,Environmental Services,132B,EK Motors Factors LTD,14/11/2023,PE154522,245.25,0.00,Parts,Daywork Materials (Excl.Tyres)
Wyre Council,http://opendatacommunities.org/doc/district-council/wyre,29/11/2023,People and Places,Cultural and Related Services,132A,EK Motors Factors LTD,14/11/2023,PE154519,44.18,0.00,Parts,Daywork Materials (Excl.Tyres)
Wyre Council,http://opendatacommunities.org/doc/district-council/wyre,29/11/2023,People and Places,Cultural and Related Services,132A,EK Motors Factors LTD,14/11/2023,PE154520,249.94,0.00,Parts,Daywork Materials (Excl.Tyres)
Wyre Council,http://opendatacommunities.org/doc/district-council/wyre,29/11/2023,People and Places,Cultural and Related Services,132A,EK Motors Factors LTD,14/11/2023,PE154521,51.66,0.00,Parts,Daywork Materials (Excl.Tyres)
Wyre Council,http://opendatacommunities.org/doc/district-council/wyre,29/11/2023,People and Places,Parking Services,133F,EK Motors Factors LTD,14/11/2023,PE154526,49.00,0.00,Parts,Daywork Materials (Excl.Tyres)
Wyre Council,http://opendatacommunities.org/doc/district-council/wyre,29/11/2023,People and Places,Environmental Services,132B,EK Motors Factors LTD,14/11/2023,PE154525,306.62,0.00,Parts,Daywork Materials (Excl.Tyres)
Wyre Council,http://opendatacommunities.org/doc/district-council/wyre,29/11/2023,People and Places,Environmental Services,132B,Lancashire DAF,13/11/2023,PE154066,204.00,0.00,discs and pads  V58,Daywork Materials (Excl.Tyres)
Wyre Council,http://opendatacommunities.org/doc/district-council/wyre,29/11/2023,People and Places,Environmental Services,132B,Malcolm McCulloch & Sons LTD,15/11/2023,PE154504,79.80,0.00,Q8,Daywork Materials (Excl.Tyres)
Wyre Council,http://opendatacommunities.org/doc/district-council/wyre,29/11/2023,People and Places,Support Services,135B,ABLE LORRY LOADERS LTD,10/11/2023,PE154040,649.79,0.00,load test/ grease filters and various related service items for V39,Daywork Materials (Excl.Tyres)
Wyre Council,http://opendatacommunities.org/doc/district-council/wyre,29/11/2023,People and Places,Environmental Services,132B,Amazon Business,06/11/2023,PE153344,47.97,0.00,goods as already received on invoice 490427035-2023-334 - construction waterproof beacon flash strobe bumper tail light work bar,Daywork Materials (Excl.Tyres)
Wyre Council,http://opendatacommunities.org/doc/district-council/wyre,29/11/2023,People and Places,Environmental Services,132B,Amazon Business,23/11/2023,PE154564,13.00,0.00,Washer pump,Daywork Materials (Excl.Tyres)
Wyre Council,http://opendatacommunities.org/doc/district-council/wyre,29/11/2023,People and Places,Environmental Services,132B,Hako Machines Limited,09/11/2023,PE154232,597.24,0.00,spare wheel V144,Daywork Materials (Excl.Tyres)
Wyre Council,http://opendatacommunities.org/doc/district-council/wyre,29/11/2023,People and Places,Environmental Services,132B,Hako Machines Limited,29/11/2023,PE154795,66.67,0.00,Water Sep - Fuel Pre Filter CM1650,Daywork Materials (Excl.Tyres)
Wyre Council,http://opendatacommunities.org/doc/district-council/wyre,29/11/2023,People and Places,Environmental Services,132B,Hako Machines Limited,29/11/2023,PE154794,49.34,0.00,Motor Oil filter,Daywork Materials (Excl.Tyres)
Wyre Council,http://opendatacommunities.org/doc/district-council/wyre,29/11/2023,People and Places,Environmental Services,132B,Hako Machines Limited,24/11/2023,PE154710,130.86,0.00,Fuel Filer - 01500310,Daywork Materials (Excl.Tyres)
Wyre Council,http://opendatacommunities.org/doc/district-council/wyre,29/11/2023,People and Places,Environmental Services,132B,Hako Machines Limited,24/11/2023,PE154710,295.44,0.00,Filter Cartridge - 01493180,Daywork Materials (Excl.Tyres)
Wyre Council,http://opendatacommunities.org/doc/district-council/wyre,29/11/2023,People and Places,Environmental Services,132B,Hako Machines Limited,24/11/2023,PE154710,8.63,0.00,Freight,Daywork Materials (Excl.Tyres)
Wyre Council,http://opendatacommunities.org/doc/district-council/wyre,29/11/2023,Resources,Support Services,135B,THE NETWORKING PEOPLE (TNP) LTD,06/11/2023,RS154245,1087.50,0.00,Professional Services days,Disaster Recovery
Wyre Council,http://opendatacommunities.org/doc/district-council/wyre,29/11/2023,People and Places,Cultural and Related Services,132A,Carlsberg UK LTD,01/11/2023,PE154094,359.14,0.00,M Hall Bar,Drinks
Wyre Council,http://opendatacommunities.org/doc/district-council/wyre,29/11/2023,People and Places,Cultural and Related Services,132A,Carlsberg UK LTD,01/11/2023,PE154089,136.80,0.00,CO2 & Mixed gas,Drinks
Wyre Council,http://opendatacommunities.org/doc/district-council/wyre,29/11/2023,People and Places,Cultural and Related Services,132A,Carlsberg UK LTD,30/11/2023,PE154838,138.32,0.00,co2 & Mixed gas Cylinders,Drinks
Wyre Council,http://opendatacommunities.org/doc/district-council/wyre,29/11/2023,People and Places,Cultural and Related Services,132A,Carlsberg UK LTD,14/11/2023,PE154378,1033.39,0.00,Marine Hall bar stock,Drinks
Wyre Council,http://opendatacommunities.org/doc/district-council/wyre,29/11/2023,People and Places,Cultural and Related Services,132A,Carlsberg UK LTD,14/11/2023,PE154093,136.74,0.00,Tetleys smoothflow keg,Drinks
Wyre Council,http://opendatacommunities.org/doc/district-council/wyre,29/11/2023,People and Places,Cultural and Related Services,132A,Carlsberg UK LTD,22/11/2023,PE154570,469.86,0.00,Marine Hall Bar Order,Drinks
Wyre Council,http://opendatacommunities.org/doc/district-council/wyre,29/11/2023,People and Places,Cultural and Related Services,132A,L W C Drinks LTD,15/11/2023,PE154556,3545.38,0.00,Wine order - Marine Hall Bar,Drinks
Wyre Council,http://opendatacommunities.org/doc/district-council/wyre,29/11/2023,People and Places,Cultural and Related Services,132A,L W C Drinks LTD,02/11/2023,PE154211,518.40,0.00,Wine - Marine Hall,Drinks
Wyre Council,http://opendatacommunities.org/doc/district-council/wyre,29/11/2023,People and Places,Cultural and Related Services,132A,N Power LTD,15/11/2023,PE154430,1303.28,0.00,"MPAN 1600000125794 Garstang Swimming Pool, Birch Rd, R3 1WJ electricity charges for the period 01/10/23 to 31/10/23    4833.600 kWh used",Electricity
Wyre Council,http://opendatacommunities.org/doc/district-council/wyre,29/11/2023,People and Places,Cultural and Related Services,132A,N Power LTD,15/11/2023,PE154427,7692.87,0.00,"MPAN 1600000162884 Fleetwood Leisure Centre, The Esplanade, FY7 6HF Electricity charges for the period  01/10/23-31/10/23   31251.400 kWh used",Electricity
Wyre Council,http://opendatacommunities.org/doc/district-council/wyre,29/11/2023,People and Places,Cultural and Related Services,132A,N Power LTD,15/11/2023,PE154428,7615.80,0.00,"MPAN 2500000793090 Thornton Leisure Centre, Victoria Rd E, FY5 3SX Electricity charges for the period 01/10/23 to 31/10/23   28166.200 kWh used",Electricity
Wyre Council,http://opendatacommunities.org/doc/district-council/wyre,29/11/2023,People and Places,Cultural and Related Services,132A,N Power LTD,15/11/2023,PE154480,914.84,0.00,"MPAN1610023220857 YMCA Garstang Leisure Centre, Windsor Rd, Garstang, PR3 1ED electricity charges for the period 01/10//23 to 31/10/23   2915.100 Kwh used",Electricity
Wyre Council,http://opendatacommunities.org/doc/district-council/wyre,29/11/2023,People and Places,Cultural and Related Services,132A,N Power LTD,15/11/2023,PE154429,4515.54,0.00,"MPAN 2500000676813 Swimming & Fitness Centre, Breck Rd, Poulton le Fylde, FY6 7HUElectricity charges for the period 01/10/23 to 31/10/23   15735.600 kWh used",Electricity
Wyre Council,http://opendatacommunities.org/doc/district-council/wyre,29/11/2023,People and Places,Environmental Services,132B,N Power LTD,07/11/2023,PE154267,6.45,0.00,1610036002855 unmetered supply Civic Centre: 11/10/23 to 31/10/23 (1.0 kWh),Electricity
Wyre Council,http://opendatacommunities.org/doc/district-council/wyre,29/11/2023,People and Places,Environmental Services,132B,N Power LTD,07/11/2023,PE154266,135.94,0.00,1610036002846 unmetered supply lighting Civic Centre: 01/10/23 to 10/10/23 (270.8 kWh),Electricity
Wyre Council,http://opendatacommunities.org/doc/district-council/wyre,29/11/2023,People and Places,Environmental Services,132B,N Power LTD,07/11/2023,PE154266,205.67,0.00,1610036002846 unmetered supply lighting Civic Centre: 11/10/23 to 31/10/23 (609.4 kWh),Electricity
Wyre Council,http://opendatacommunities.org/doc/district-council/wyre,29/11/2023,People and Places,Environmental Services,132B,N Power LTD,07/11/2023,PE154267,0.23,0.00,1610036002855 unmetered supply Civic Centre: 01/10/23 to 10/10/23 (0.5 kWh),Electricity
Wyre Council,http://opendatacommunities.org/doc/district-council/wyre,29/11/2023,People and Places,Parking Services,133F,N Power LTD,07/11/2023,PE154266,770.30,0.00,1610036002846 unmetered supply lighting Civic Centre: 01/10/23 to 10/10/23 (1534.9 kWh),Electricity
Wyre Council,http://opendatacommunities.org/doc/district-council/wyre,29/11/2023,People and Places,Parking Services,133F,N Power LTD,07/11/2023,PE154266,1165.47,0.00,1610036002846 unmetered supply lighting Civic Centre: 11/10/23 to 31/10/23 (3453.1 kWh),Electricity
Wyre Council,http://opendatacommunities.org/doc/district-council/wyre,29/11/2023,People and Places,Parking Services,133F,N Power LTD,07/11/2023,PE154291,331.25,0.00,"1620000821031 unmetered supply lighting, Civic Centre,01/10/23 to 31/10/23 (907kWh)",Electricity
Wyre Council,http://opendatacommunities.org/doc/district-council/wyre,29/11/2023,People and Places,Parking Services,133F,N Power LTD,07/11/2023,PE154291,210.44,0.00,"1620000821031 unmetered supply lighting, Civic Centre,01/10/23 to 31/10/23 (419.3kWh)",Electricity
Wyre Council,http://opendatacommunities.org/doc/district-council/wyre,29/11/2023,People and Places,Parking Services,133F,N Power LTD,07/11/2023,PE154267,1.33,0.00,1610036002855 unmetered supply Civic Centre: 01/10/23 to 10/10/23 (2.6 kWh),Electricity
Wyre Council,http://opendatacommunities.org/doc/district-council/wyre,29/11/2023,People and Places,Parking Services,133F,N Power LTD,07/11/2023,PE154267,36.55,0.00,1610036002855 unmetered supply Civic Centre: 11/10/23 to 31/10/23 (5.7 kWh),Electricity
Wyre Council,http://opendatacommunities.org/doc/district-council/wyre,29/11/2023,People and Places,Environmental Services,132B,OPUS Energy LTD,23/11/2023,PE154451,19.78,0.00,"1610004421200 New Lane Pumping Station 2,New Lane, Thornton FY5 5NH  01/10/23-31/10/23 24.00kwh",Electricity
Wyre Council,http://opendatacommunities.org/doc/district-council/wyre,29/11/2023,People and Places,Environmental Services,132B,OPUS Energy LTD,23/11/2023,PE154450,45.31,0.00,"1610004421042 New Lane Pumping Station 1, New Lane Thornton Cleveleys FY5 5NS 01/10/23-31/10/236.00kwh",Electricity
Wyre Council,http://opendatacommunities.org/doc/district-council/wyre,29/11/2023,People and Places,Cultural and Related Services,132A,OPUS Energy LTD,23/11/2023,PE154445,6.57,0.00,"1610004305443 Blackpool Old Road, Sports Pavilion, Cottam Hall FY6 7RH01/10/23-31/10/230.00 kwh",Electricity
Wyre Council,http://opendatacommunities.org/doc/district-council/wyre,29/11/2023,People and Places,Cultural and Related Services,132A,OPUS Energy LTD,23/11/2023,PE154456,756.66,0.00,"1610004773866 Thornton Little Theatre, Fleetwood Road Thornton FY5 4AD 01/10/23-31/10/23  2262.40 kwh",Electricity
Wyre Council,http://opendatacommunities.org/doc/district-council/wyre,29/11/2023,People and Places,Cultural and Related Services,132A,OPUS Energy LTD,23/11/2023,PE154455,102.96,0.00,"1610004742431 Visitors Centre, River Road, Thornton Cleveleys FY5 5LR01/10/23-31/10/23483.00",Electricity
Wyre Council,http://opendatacommunities.org/doc/district-council/wyre,29/11/2023,People and Places,Environmental Services,132B,OPUS Energy LTD,23/11/2023,PE154446,354.02,0.00,"1610004313728 Public Conveniences, Teanlowe Centre, Queensway Poulton FY6 7DF01/10/23-31/10/231094.20 kwh",Electricity
Wyre Council,http://opendatacommunities.org/doc/district-council/wyre,29/11/2023,People and Places,Environmental Services,132B,OPUS Energy LTD,23/11/2023,PE154452,384.59,0.00,"1610004665168 Public Conveniences, Cleveleys Bus Station, Rough Lea Road FY5 1BW01/10/23-31/10/231202.00",Electricity
Wyre Council,http://opendatacommunities.org/doc/district-council/wyre,29/11/2023,People and Places,Environmental Services,132B,OPUS Energy LTD,23/11/2023,PE154458,91.33,0.00,"1610023232505 Public Conveniences, High Street Car Park, Garstang PR3 1FA 01/10/23-31/10/23  175.19 Kwh",Electricity
Wyre Council,http://opendatacommunities.org/doc/district-council/wyre,29/11/2023,People and Places,Environmental Services,132B,OPUS Energy LTD,23/11/2023,PE154454,200.64,0.00,"16100047442413 Stanah Pumphouse 11, River Road, Thornton Cleveleys FY5 5LR01/10/23-31/10/23569.00",Electricity
Wyre Council,http://opendatacommunities.org/doc/district-council/wyre,29/11/2023,People and Places,Cultural and Related Services,132A,OPUS Energy LTD,23/11/2023,PE154460,15.78,0.00,"1630000861704 North Promenade Kiosk, Childrens Corner, Thornton Cleveleys FY5 1DB02/10/23-31/10/230.00 Kwh used",Electricity
Wyre Council,http://opendatacommunities.org/doc/district-council/wyre,29/11/2023,People and Places,Cultural and Related Services,132A,OPUS Energy LTD,23/11/2023,PE154457,112.23,0.00,"1610004863632 Beach Bungalows, The Esplanade, Fleetwood FY7 6QD 01/10/23-31/10/23  352 kwh",Electricity
Wyre Council,http://opendatacommunities.org/doc/district-council/wyre,29/11/2023,People and Places,Central Services to the Public,131C,OPUS Energy LTD,23/11/2023,PE154448,1373.53,0.00,1610004322012 WRVS Teanlowe Day Centre Queensway Poulton FY6 7ST01/10/23-31/10/234437.29 kwh,Electricity
Wyre Council,http://opendatacommunities.org/doc/district-council/wyre,29/11/2023,People and Places,Environmental Services,132B,OPUS Energy LTD,23/11/2023,PE154449,633.32,0.00,"1610004347328 Garstang Road East Cemetery, Garstang Road East, Poulton FY6 7SN - meter 101/10/23-31/10/231621.00 kwh",Electricity
Wyre Council,http://opendatacommunities.org/doc/district-council/wyre,29/11/2023,People and Places,Cultural and Related Services,132A,OPUS Energy LTD,23/11/2023,PE154459,418.30,0.00,"1640000960322 The Mount Lodge, The Esplanade, Fleetwood FY7 6EZ01/10/23-31/10/231428.40",Electricity
Wyre Council,http://opendatacommunities.org/doc/district-council/wyre,29/11/2023,People and Places,Cultural and Related Services,132A,OPUS Energy LTD,23/11/2023,PE154447,42.45,0.00,"1610004318841 Jean Stansfield Bowling Green, Vicarage Road Poulton FY6 7BE01/10/23-31/10/23106.09 kwh",Electricity
Wyre Council,http://opendatacommunities.org/doc/district-council/wyre,29/11/2023,People and Places,Cultural and Related Services,132A,OPUS Energy LTD,23/11/2023,PE154453,52.50,0.00,"1610004724089 North Drive Pavilion, North Drive, Thornton FY5 2QD01/10/23-31/10/23106.00",Electricity
Wyre Council,http://opendatacommunities.org/doc/district-council/wyre,29/11/2023,People and Places,Environmental Services,132B,Corona Energy Retail 4 Limited,20/11/2023,PE153705,402.81,0.00,1610004742413 Stanah Pumphouse 11 River  Road Stanah Pumphouse 11 FY55LR 01/09/23 to 01/10/23 E (499Kwh),Electricity
Wyre Council,http://opendatacommunities.org/doc/district-council/wyre,29/11/2023,People and Places,Environmental Services,132B,Corona Energy Retail 4 Limited,20/11/2023,PE153693,24.37,0.00,1610004421200 Pumping Station 2 New Lane  Pumping Station 2 FY55NH 01/09/23 to 01/10/23 D (12Kwh),Electricity
Wyre Council,http://opendatacommunities.org/doc/district-council/wyre,29/11/2023,People and Places,Cultural and Related Services,132A,Corona Energy Retail 4 Limited,20/11/2023,PE153697,1579.83,0.00,1610004773866 Wyre Borough Council Lecture  Hall Lecture Hall FY54AD 01/09/23 to 01/10/23 E (662Kwh),Electricity
Wyre Council,http://opendatacommunities.org/doc/district-council/wyre,29/11/2023,People and Places,Cultural and Related Services,132A,Corona Energy Retail 4 Limited,20/11/2023,PE153706,59.39,0.00,1610004305434 Sports Pavilion Sports  Pavilion Cottam Hall FY67RH 01/09/23 to 01/10/23 E (25Kwh),Electricity
Wyre Council,http://opendatacommunities.org/doc/district-council/wyre,29/11/2023,People and Places,Cultural and Related Services,132A,Corona Energy Retail 4 Limited,20/11/2023,PE153703,31.46,0.00,1610004305443 Sports Pavilion Sports  Pavilion Cottam Hall FY67RH 01/09/23 to 01/10/23 E (39Kwh),Electricity
Wyre Council,http://opendatacommunities.org/doc/district-council/wyre,29/11/2023,People and Places,Cultural and Related Services,132A,Corona Energy Retail 4 Limited,20/11/2023,PE154550,146.19,0.00,1610004305434 Sports Pavilion Sports  Pavilion Cottam Hall FY67RH 01/10/23 to 31/10/23 E (29 kWh),Electricity
Wyre Council,http://opendatacommunities.org/doc/district-council/wyre,29/11/2023,People and Places,Cultural and Related Services,132A,Corona Energy Retail 4 Limited,20/11/2023,PE153692,80.97,0.00,1610004318841 Jean Stansfield Bowling Green  Vicarage Road Jean Stansfield Bowling Green FY67BE 01/09/23 to 01/10/23 D  (92Kwh),Electricity
Wyre Council,http://opendatacommunities.org/doc/district-council/wyre,29/11/2023,People and Places,Cultural and Related Services,132A,Corona Energy Retail 4 Limited,20/11/2023,PE153694,108.50,0.00,1610004724089 Pavilion North Drive Pavilion  FY52QD 01/09/23 to 01/10/23 D (128Kwh),Electricity
Wyre Council,http://opendatacommunities.org/doc/district-council/wyre,29/11/2023,People and Places,Environmental Services,132B,Corona Energy Retail 4 Limited,20/11/2023,PE153700,1414.06,0.00,1610004347328 East Cemetry Garstang Road  East East Cemetry FY67SN 01/09/23 to 01/10/23 D (1858Kwh),Electricity
Wyre Council,http://opendatacommunities.org/doc/district-council/wyre,29/11/2023,People and Places,Environmental Services,132B,Corona Energy Retail 4 Limited,20/11/2023,PE153702,25.74,0.00,1610004421042 Pumping Station;1 New Lane  Pumping Station;1 FY55NS 01/09/23 to 01/10/23 E (2Kwh),Electricity
Wyre Council,http://opendatacommunities.org/doc/district-council/wyre,29/11/2023,People and Places,Cultural and Related Services,132A,Corona Energy Retail 4 Limited,20/11/2023,PE153696,238.89,0.00,1610004863632 Beach Bungalows The Esplanade  Beach Bungalows FY76QD 01/09/23 to 01/10/23 E (156Kwh),Electricity
Wyre Council,http://opendatacommunities.org/doc/district-council/wyre,29/11/2023,People and Places,Cultural and Related Services,132A,Corona Energy Retail 4 Limited,20/11/2023,PE154549,603.23,0.00,1650000008330 The Mount Pavilion Mount Road  Fleetwood FY76EZ 01/10/23 to 31/10/23 E (1228 kWh),Electricity
Wyre Council,http://opendatacommunities.org/doc/district-council/wyre,29/11/2023,People and Places,Cultural and Related Services,132A,Corona Energy Retail 4 Limited,20/11/2023,PE153707,972.49,0.00,1640000960322 The Mount Lodge The Esplanade  The Mount Lodge FY76EZ 01/09/23 to 01/10/23 D (1245Kwh),Electricity
Wyre Council,http://opendatacommunities.org/doc/district-council/wyre,29/11/2023,People and Places,Cultural and Related Services,132A,Corona Energy Retail 4 Limited,20/11/2023,PE153559,791.61,0.00,1650000008330 The Mount Pavilion Mount Road  Fleetwood FY76EZ (01/09/23 to 01/10/23)(1060kWh),Electricity
Wyre Council,http://opendatacommunities.org/doc/district-council/wyre,29/11/2023,People and Places,Cultural and Related Services,132A,Corona Energy Retail 4 Limited,20/11/2023,PE153704,8.14,0.00,1610004742404 River Road Thornton Cleveleys  River Road FY55LR 01/09/23 to 01/10/23 R (0Kwh),Electricity
Wyre Council,http://opendatacommunities.org/doc/district-council/wyre,29/11/2023,People and Places,Cultural and Related Services,132A,Corona Energy Retail 4 Limited,20/11/2023,PE153699,970.67,0.00,1610004742399 River Road Thornton Cleveleys  River Road FY55LR 01/09/23 to 01/10/23 D (1229Kwh),Electricity
Wyre Council,http://opendatacommunities.org/doc/district-council/wyre,29/11/2023,People and Places,Cultural and Related Services,132A,Corona Energy Retail 4 Limited,20/11/2023,PE154548,124.00,0.00,1610004742404 River Road Thornton Cleveleys  River Road FY55LR 01/10/23 to 31/10/23 R (Standing charge only),Electricity
Wyre Council,http://opendatacommunities.org/doc/district-council/wyre,29/11/2023,People and Places,Environmental Services,132B,Corona Energy Retail 4 Limited,20/11/2023,PE153709,712.57,0.00,1610004313728 Public Convenience Off  Queensway Teanlowe Centre FY67DF 01/09/23 to 01/10/23 D (904Kwh),Electricity
Wyre Council,http://opendatacommunities.org/doc/district-council/wyre,29/11/2023,People and Places,Environmental Services,132B,Corona Energy Retail 4 Limited,20/11/2023,PE153708,830.06,0.00,1610004665168 Public Conven Public Conven  Bus Station FY51BW 01/09/23 to 01/10/23 D (1047Kwh),Electricity
Wyre Council,http://opendatacommunities.org/doc/district-council/wyre,29/11/2023,People and Places,Environmental Services,132B,Corona Energy Retail 4 Limited,20/11/2023,PE153698,131.99,0.00,1610023232505 Public Conveniences Public  Conveniences Car Park PR31EA 01/09/23 to 01/10/23 D (147Kwh),Electricity
Wyre Council,http://opendatacommunities.org/doc/district-council/wyre,29/11/2023,People and Places,Central Services to the Public,131C,Corona Energy Retail 4 Limited,20/11/2023,PE153695,3033.09,0.00,1610004322012 Womens Royal Voluntary  Service Teanlowe Day Centre Teanlowe Day Centre FY67ST 01/09/23 to 01/10/23 D  (3867Kwh),Electricity
Wyre Council,http://opendatacommunities.org/doc/district-council/wyre,29/11/2023,People and Places,Support Services,135B,Corona Energy Retail 4 Limited,23/11/2023,PE154382,13227.75,0.00,1600000162857 Civic Centre Breck Road  Blackpool FY39DT 01/10/23 to 31/10/23 (36022kWh),Electricity
Wyre Council,http://opendatacommunities.org/doc/district-council/wyre,29/11/2023,People and Places,Cultural and Related Services,132A,Corona Energy Retail 4 Limited,23/11/2023,PE154385,7045.71,0.00,1600000162875 Marine Hall The Esplanade  Fleetwood FY76HF 01/10/23 to 31/10/23 (16842kWh),Electricity
Wyre Council,http://opendatacommunities.org/doc/district-council/wyre,29/11/2023,People and Places,Cultural and Related Services,132A,Corona Energy Retail 4 Limited,23/11/2023,PE154384,1372.66,0.00,1630000670291 Promendae Cafe North  Promenade Thornton-Cleveleys FY51DB 01/10/23 to 31/10/23 (3718kWh),Electricity
Wyre Council,http://opendatacommunities.org/doc/district-council/wyre,29/11/2023,People and Places,Planning and Development Servs,132C,Corona Energy Retail 4 Limited,23/11/2023,PE154381,804.01,0.00,1620000784666 Main Hall Adelaide Street  Fleetwood FY76AB 01/10/23 to 31/10/23 (0kWh),Electricity
Wyre Council,http://opendatacommunities.org/doc/district-council/wyre,29/11/2023,People and Places,Environmental Services,132B,Corona Energy Retail 4 Limited,23/11/2023,PE154383,177.01,0.00,1600000023675 Royles Brook Pumping Station  Off Victoria Road East Thornton FY55OX 01/10/23 to 31/10/23 (480kWh),Electricity
Wyre Council,http://opendatacommunities.org/doc/district-council/wyre,29/11/2023,People and Places,Cultural and Related Services,132A,Corona Energy Retail 4 Limited,23/11/2023,PE154379,239.37,0.00,1640000233705 Coastal Observation Point  Rossal Point Fleetwood FY78AF 01/10/23 to 31/10/23 (627kWh),Electricity
Wyre Council,http://opendatacommunities.org/doc/district-council/wyre,29/11/2023,People and Places,Planning and Development Servs,132C,Corona Energy Retail 4 Limited,23/11/2023,PE154380,2533.78,0.00,1640000184606 Council Depot Copse Road  Fleetwood FY76RP 01/10/23 to 31/10/23 (6947kWh),Electricity
Wyre Council,http://opendatacommunities.org/doc/district-council/wyre,29/11/2023,People and Places,Planning and Development Servs,132C,Drax Energy Solutions Limited,10/11/2023,PE153644,82.47,0.00,3200000534782  Electricity charges for the period 12/09/23-30/09/23 for unit 9 Dock Ave Fleetwood - 17 KWH used,Electricity
Wyre Council,http://opendatacommunities.org/doc/district-council/wyre,29/11/2023,People and Places,Planning and Development Servs,132C,Drax Energy Solutions Limited,10/11/2023,PE153643,47.04,0.00,3200000534782  Electricity charges for the period 01/09/23-11/09/23 for unit 9 Dock Ave Fleetwood - 8 KWH used,Electricity
Wyre Council,http://opendatacommunities.org/doc/district-council/wyre,29/11/2023,People and Places,Planning and Development Servs,132C,Drax Energy Solutions Limited,10/11/2023,PE154402,132.07,0.00,"3200000534791 10 Dock Ave, Fleetwood  01/101/23 to 31/10/23 (23kWh) A",Electricity
Wyre Council,http://opendatacommunities.org/doc/district-council/wyre,29/11/2023,People and Places,Planning and Development Servs,132C,Drax Energy Solutions Limited,10/11/2023,PE154401,133.47,0.00,"3200000534782 Unit 9 Dock Avenue, Fleetwood  01/10/23 to 31/10/23 (27kWh) A",Electricity
Wyre Council,http://opendatacommunities.org/doc/district-council/wyre,29/11/2023,People and Places,Planning and Development Servs,132C,Drax Energy Solutions Limited,10/11/2023,PE153646,81.71,0.00,3200000534791  Electricity charges for the period 12/09/23 to 30/09/23 for Unit 10 Dock Ave Fleetwood - 15 KWH used,Electricity
Wyre Council,http://opendatacommunities.org/doc/district-council/wyre,29/11/2023,People and Places,Planning and Development Servs,132C,Drax Energy Solutions Limited,10/11/2023,PE153645,46.66,0.00,3200000534791  Electricity charges for the period 01-09-23 to 11-09-23 for Unit 10 Dock Ave Fleetwood - 7 KWH used,Electricity
Wyre Council,http://opendatacommunities.org/doc/district-council/wyre,29/11/2023,People and Places,Environmental Services,132B,Engie Power Limited,01/11/2023,PE153797,120.76,0.00,"1610004885487 PC, Preston St, Fleetwood,  FY7 6JA 01/09/23 to 30/09/23 (139kWh) E",Electricity
Wyre Council,http://opendatacommunities.org/doc/district-council/wyre,29/11/2023,People and Places,Cultural and Related Services,132A,Engie Power Limited,01/11/2023,PE153794,84.71,0.00,"1610004932427 King Georges Field,  Boradwater, Fleetwood Road, Fleetwood, Lancashire, FY7 8BD 01/09/23 to  30/09/23 (51.4kWh) E",Electricity
Wyre Council,http://opendatacommunities.org/doc/district-council/wyre,29/11/2023,People and Places,Environmental Services,132B,Engie Power Limited,01/11/2023,PE153784,421.53,0.00,"1610004828771 Council Depot, Chatsworth Day  Centre, Chatsworth Ave, Fleetwood, FY7 8AP 01/09/23 to 30/09/23 (981.9kWh) E",Electricity
Wyre Council,http://opendatacommunities.org/doc/district-council/wyre,29/11/2023,People and Places,Environmental Services,132B,Engie Power Limited,01/11/2023,PE153788,181.56,0.00,"1610013371994 PC, The Weind, Great  Eccleston, PR3 0ZU 01/09/23 to 30/09/23 (309.4kWh) E",Electricity
Wyre Council,http://opendatacommunities.org/doc/district-council/wyre,29/11/2023,People and Places,Environmental Services,132B,Engie Power Limited,01/11/2023,PE153791,260.10,0.00,"1610023251891 PC, Gubberford Lane, Scorton,  PR3 1BL 01/09/23 to 30/09/23 (529.5kWh) E",Electricity
Wyre Council,http://opendatacommunities.org/doc/district-council/wyre,29/11/2023,People and Places,Environmental Services,132B,Engie Power Limited,01/11/2023,PE153790,204.72,0.00,"1610023195261 PC, Smallwood Hey, Pilling,  Preston, PR3 6HJ 01/09/23 to 30/09/23 (374.3kWh) E",Electricity
Wyre Council,http://opendatacommunities.org/doc/district-council/wyre,29/11/2023,People and Places,Environmental Services,132B,Engie Power Limited,01/11/2023,PE153789,134.04,0.00,"1610023169146 Public Conveniences, Barton  Square, Knott End on Sea, Lancashire, FY6 0AG 01/09/23 to 30/09/23 (180.7kWh)  E",Electricity
Wyre Council,http://opendatacommunities.org/doc/district-council/wyre,29/11/2023,People and Places,Environmental Services,132B,Engie Power Limited,01/11/2023,PE153773,155.99,0.00,"1640000218200 PC, Bold St, Fleetwood, FY7  6BW 01/09/23 to 30/09/23 (331.6kWh) E",Electricity
Wyre Council,http://opendatacommunities.org/doc/district-council/wyre,29/11/2023,People and Places,Environmental Services,132B,Engie Power Limited,01/11/2023,PE153780,129.07,0.00,"1610004845322 PC, Beach Rd, Fleetwood, FY7  8PH 01/09/23 to 30/09/23 (162.3kWh) E",Electricity
Wyre Council,http://opendatacommunities.org/doc/district-council/wyre,29/11/2023,People and Places,Environmental Services,132B,Engie Power Limited,01/11/2023,PE153768,120.30,0.00,"1640000258365 PC, River Road, Thornton  Cleveleys, FY5 5LR 01/09/23 to 30/09/23 (222.4kWh) E",Electricity
Wyre Council,http://opendatacommunities.org/doc/district-council/wyre,29/11/2023,People and Places,Cultural and Related Services,132A,Engie Power Limited,01/11/2023,PE153779,411.79,0.00,"1610004863623 Pitch &amp; Putt Kiosk, Carr  Rd, The Esplanade, Fleetwood, FY7 6QE 01/09/23 to 30/09/23 (954.6kWh) E",Electricity
Wyre Council,http://opendatacommunities.org/doc/district-council/wyre,29/11/2023,People and Places,Cultural and Related Services,132A,Engie Power Limited,01/11/2023,PE153778,520.90,0.00,"1610004863605 Central Toilets Kiosk, The  Esplanade, Fleetwood, FY7 7BE 01/09/23 to 30/09/23 (1233.6kWh) A",Electricity
Wyre Council,http://opendatacommunities.org/doc/district-council/wyre,29/11/2023,People and Places,Cultural and Related Services,132A,Engie Power Limited,01/11/2023,PE153777,256.78,0.00,"1610004846558 Pump Station, The Esplanade,  Fleetwood, FY7 6HF 01/09/23 to 30/09/23 (520.2kWh) A",Electricity
Wyre Council,http://opendatacommunities.org/doc/district-council/wyre,29/11/2023,People and Places,Cultural and Related Services,132A,Engie Power Limited,01/11/2023,PE153781,478.64,0.00,"1610004846390 Pump House, Model Yacht Pond,  Laidleys Walk, Fleetwood, FY7 7JL 01/09/23 to 30/09/23 (1117.7kWh) A",Electricity
Wyre Council,http://opendatacommunities.org/doc/district-council/wyre,29/11/2023,People and Places,Cultural and Related Services,132A,Engie Power Limited,01/11/2023,PE153793,106.84,0.00,"1610004897394 Bowls House, Memorial Park,  Fleetwood, FY7 7AE 01/09/23 to 30/09/23 (100kWh) A",Electricity
Wyre Council,http://opendatacommunities.org/doc/district-council/wyre,29/11/2023,People and Places,Cultural and Related Services,132A,Engie Power Limited,01/11/2023,PE153792,411.79,0.00,"1610004897400 Ladies Bowls Pavilion,  Memorial Park, Fleetwood, FY7 7AE 01/09/23 to 30/09/23 (954.6kWh) E",Electricity
Wyre Council,http://opendatacommunities.org/doc/district-council/wyre,29/11/2023,People and Places,Cultural and Related Services,132A,Engie Power Limited,01/11/2023,PE153796,124.04,0.00,"1610004867488 Mount Pavilion, Mount Rd,  Fleetwood, FY7 6EZ 01/09/23 to 30/09/23 (200.6kWh) E",Electricity
Wyre Council,http://opendatacommunities.org/doc/district-council/wyre,29/11/2023,People and Places,Cultural and Related Services,132A,Engie Power Limited,01/11/2023,PE153798,412.14,0.00,"1610004890636 Fishermans Walk, Lord St,  Fleetwood, FY7 6DU 01/09/23 to 30/09/23 (955.6kWh) E",Electricity
Wyre Council,http://opendatacommunities.org/doc/district-council/wyre,29/11/2023,People and Places,Planning and Development Servs,132C,Engie Power Limited,01/11/2023,PE153771,298.87,0.00,"1640000947145 Kiosk 2, Fleetwood Market,  Adelaie St, Fleetwood, FY7 6AB 01/09/23 to 30/09/23 (768.7kWh) A",Electricity
Wyre Council,http://opendatacommunities.org/doc/district-council/wyre,29/11/2023,People and Places,Planning and Development Servs,132C,Engie Power Limited,01/11/2023,PE153770,48.16,0.00,"1640000947136 Kiosk 1, Fleetwood Market,  Adelaide St, Fleetwood, FY7 6AB 01/09/23 to 30/09/23 (1.7kWh) A",Electricity
Wyre Council,http://opendatacommunities.org/doc/district-council/wyre,29/11/2023,People and Places,Planning and Development Servs,132C,Engie Power Limited,01/11/2023,PE153767,68.98,0.00,"1640000947181 Kiosk 6, Fleetwood Market,  Adelaide St, Fleetwood, FY7 6AB 01/09/23 to 30/09/23 (65.4kWh) A",Electricity
Wyre Council,http://opendatacommunities.org/doc/district-council/wyre,29/11/2023,People and Places,Planning and Development Servs,132C,Engie Power Limited,01/11/2023,PE153766,114.25,0.00,"1640000947172 Kiosk 5, Fleetwood Market,  Adelaide St, Fleetwood, FY7 6AB 01/09/23 to 30/09/23 (203.9kWh) A",Electricity
Wyre Council,http://opendatacommunities.org/doc/district-council/wyre,29/11/2023,People and Places,Planning and Development Servs,132C,Engie Power Limited,01/11/2023,PE153765,53.16,0.00,"1640000947163 Kiosk 4, Fleetwood Market,  Adelaide St, Fleetwood, FY7 6AB 01/09/23 to 30/09/23 (17kWh) A",Electricity
Wyre Council,http://opendatacommunities.org/doc/district-council/wyre,29/11/2023,People and Places,Planning and Development Servs,132C,Engie Power Limited,01/11/2023,PE153764,99.34,0.00,"1640000947154 Kiosk 3, Fleetwood Market,  Adelaide St, Fleetwood, FY7 6AB 01/09/23 to 30/09/23 (158.3kWh) A",Electricity
Wyre Council,http://opendatacommunities.org/doc/district-council/wyre,29/11/2023,People and Places,Planning and Development Servs,132C,Engie Power Limited,01/11/2023,PE153776,47.86,0.00,"1640000947215 Landlord Supply, Fleetwood  Market, Adelaide St, Fleetwood, FY7 6AB 01/09/23 to 30/09/23 (0.8kWh) A",Electricity
Wyre Council,http://opendatacommunities.org/doc/district-council/wyre,29/11/2023,People and Places,Planning and Development Servs,132C,Engie Power Limited,01/11/2023,PE153774,72.70,0.00,"1640000947206 Kiosk 8, Fleetwood Market,  Adelaide St, Fleetwood, FY7 6AB 01/09/23 to 30/09/23 (76.8kWh) A",Electricity
Wyre Council,http://opendatacommunities.org/doc/district-council/wyre,29/11/2023,People and Places,Cultural and Related Services,132A,Engie Power Limited,01/11/2023,PE153772,276.74,0.00,"1640000118533 Feeder Pillar, Vicarage Rd,  Poulton le Fylde, FY6 7BE 01/09/23 to 30/09/23 (701kWh) A",Electricity
Wyre Council,http://opendatacommunities.org/doc/district-council/wyre,29/11/2023,People and Places,Cultural and Related Services,132A,Engie Power Limited,01/11/2023,PE153787,110.95,0.00,"1610004775074 The Windmill, Fleetwood Rd  North, Thornton Cleveleys, FY5 4BP 01/09/23 to 30/09/23 (111.5kWh) A",Electricity
Wyre Council,http://opendatacommunities.org/doc/district-council/wyre,29/11/2023,People and Places,Cultural and Related Services,132A,Engie Power Limited,01/11/2023,PE153783,179.82,0.00,"1610004775083 The Windmill, Fleetwood Road  North, Thornton Cleveleys, FY5 4BP 01/09/23 to 30/09/23 (412.2kWh) E",Electricity
Wyre Council,http://opendatacommunities.org/doc/district-council/wyre,29/11/2023,People and Places,Cultural and Related Services,132A,Engie Power Limited,01/11/2023,PE153782,71.34,0.00,"1610004846502 Valve House, Marine Lake,  Laidleys Walk, Fleetwood, FY7 7JL 01/09/23 to 30/09/23 (0.5kWh) E",Electricity
Wyre Council,http://opendatacommunities.org/doc/district-council/wyre,29/11/2023,People and Places,Environmental Services,132B,Engie Power Limited,01/11/2023,PE153786,179.63,0.00,"1610004845313 Fleetwood Corp Cemetery,  Beach Rd, Fleetwood, FY7 8PH 01/09/23 to 30/09/23 (411.5kWh) E",Electricity
Wyre Council,http://opendatacommunities.org/doc/district-council/wyre,29/11/2023,People and Places,Environmental Services,132B,Engie Power Limited,01/11/2023,PE153785,160.76,0.00,"1610004845304 Fleetwood Corp Cemetery,  Beach Rd, Fleetwood, FY7 8PH 01/09/23 to 30/09/23 (251.1kWh) A",Electricity
Wyre Council,http://opendatacommunities.org/doc/district-council/wyre,29/11/2023,People and Places,Environmental Services,132B,Engie Power Limited,01/11/2023,PE153795,193.54,0.00,"1610004933625 Springfield Pumping Station  17, Fleeetwood Road, Fleetwood, Lancashire, FY7 8TW 01/09/23 to 30/09/23  (357.2kWh) E",Electricity
Wyre Council,http://opendatacommunities.org/doc/district-council/wyre,29/11/2023,People and Places,Cultural and Related Services,132A,Engie Power Limited,01/11/2023,PE153769,80.29,0.00,"1640000400837 PC, River Road, Thornton  Cleveleys, FY5 5LR 01/09/23 to 30/09/23 (100kWh) E",Electricity
Wyre Council,http://opendatacommunities.org/doc/district-council/wyre,29/11/2023,People and Places,Cultural and Related Services,132A,Engie Power Limited,01/11/2023,PE153805,95.75,0.00,"1640000004924 Feeder Pillar, Hawthorne  Park, Hawthorne Rd, Thornton Cleveleys, FY5 5DH 01/09/23 to 30/09/23  (66.7kWh) A",Electricity
Wyre Council,http://opendatacommunities.org/doc/district-council/wyre,29/11/2023,People and Places,Cultural and Related Services,132A,Engie Power Limited,01/11/2023,PE153800,71.23,0.00,"1610004863776 Tourist Information Office,  The Esplanade, Fleetwood, FY7 6DL 01/09/23 to 30/09/23 (0.2kWh) A",Electricity
Wyre Council,http://opendatacommunities.org/doc/district-council/wyre,29/11/2023,People and Places,Environmental Services,132B,Engie Power Limited,01/11/2023,PE153804,105.56,0.00,"1620001343345 PC, Thornton Centre, Victoria  Rd East, FY5 5DZ 01/09/23 to 30/09/23 (96.4kWh) A",Electricity
Wyre Council,http://opendatacommunities.org/doc/district-council/wyre,29/11/2023,People and Places,Environmental Services,132B,Engie Power Limited,01/11/2023,PE153807,241.29,0.00,"1630000740099 PC, Wyreside, Knott End on  Sea, FY6 0AA 01/09/23 to 30/09/23 (476.8kWh) E",Electricity
Wyre Council,http://opendatacommunities.org/doc/district-council/wyre,29/11/2023,People and Places,Environmental Services,132B,Engie Power Limited,01/11/2023,PE153806,198.90,0.00,"1630000584632 PC, rear of Tesco, Rough Lea  Rd, Thornton Cleveleys, FY5 1BW 01/09/23 to 30/09/23 (358kWh) E",Electricity
Wyre Council,http://opendatacommunities.org/doc/district-council/wyre,29/11/2023,People and Places,Environmental Services,132B,Engie Power Limited,01/11/2023,PE153808,129.79,0.00,"1630000819048 Public Conveniences,  Cherestanc Square, Garstang, Lancashire, PR3 1EF 01/09/23 to 30/09/23  (164.3kWh) E",Electricity
Wyre Council,http://opendatacommunities.org/doc/district-council/wyre,29/11/2023,People and Places,Cultural and Related Services,132A,Engie Power Limited,01/11/2023,PE153799,223.87,0.00,"1610004897385 Tennis Pavillion, Memorial  Park, Fleetwood, FY7 7AE 01/09/23 to 30/09/23 (457.1kWh) E",Electricity
Wyre Council,http://opendatacommunities.org/doc/district-council/wyre,29/11/2023,People and Places,Cultural and Related Services,132A,Engie Power Limited,01/11/2023,PE153802,124.09,0.00,"1610004867441 Mount Hotel, Mount Rd,  Fleetwood, FY7 6RA 01/09/23 to 30/09/23 (200.8kWh) E",Electricity
Wyre Council,http://opendatacommunities.org/doc/district-council/wyre,29/11/2023,People and Places,Cultural and Related Services,132A,Engie Power Limited,01/11/2023,PE153801,347.52,0.00,"1610004867432 Mount Hotel, Mount Rd,  Fleetwood, FY7 6RA 01/09/23 to 30/09/23 (774.5kWh) E",Electricity
Wyre Council,http://opendatacommunities.org/doc/district-council/wyre,29/11/2023,People and Places,Cultural and Related Services,132A,Engie Power Limited,28/11/2023,PE154591,285.68,0.00,"1640000118533 Feeder Pillar, Vicarage Rd,  Poulton le Fylde, FY6 7BE 01/10/23 to 31/10/23 (723.5 kWh) Act",Electricity
Wyre Council,http://opendatacommunities.org/doc/district-council/wyre,29/11/2023,People and Places,Cultural and Related Services,132A,Engie Power Limited,28/11/2023,PE154601,479.26,0.00,"1610004863623 Pitch &amp; Putt Kiosk, Carr  Rd, The Esplanade, Fleetwood, FY7 6QE 01/10/23 to 31/10/23 (1112.9 kWh) Est",Electricity
Wyre Council,http://opendatacommunities.org/doc/district-council/wyre,29/11/2023,People and Places,Cultural and Related Services,132A,Engie Power Limited,28/11/2023,PE154598,448.97,0.00,"1610004863605 Central Toilets Kiosk, The  Esplanade, Fleetwood, FY7 7BE 01/10/23 to 31/10/23 (1029.8 kWh) Act",Electricity
Wyre Council,http://opendatacommunities.org/doc/district-council/wyre,29/11/2023,People and Places,Cultural and Related Services,132A,Engie Power Limited,28/11/2023,PE154597,203.70,0.00,"1610004846558 Pump Station, The Esplanade,  Fleetwood, FY7 6HF 01/10/23 to 31/10/23 (364.8 kWh) Act",Electricity
Wyre Council,http://opendatacommunities.org/doc/district-council/wyre,29/11/2023,People and Places,Cultural and Related Services,132A,Engie Power Limited,28/11/2023,PE154589,87.29,0.00,"1640000400837 Beach Huts, The Esplanade,  Fleetwood, FY7 6QD 01/10/23 to 31/10/23 (116.6 kWh) Est",Electricity
Wyre Council,http://opendatacommunities.org/doc/district-council/wyre,29/11/2023,People and Places,Environmental Services,132B,Engie Power Limited,28/11/2023,PE154613,221.56,0.00,"1610004933625 Springfield Pumping Station  17, Fleeetwood Road, Fleetwood, Lancashire, FY7 8TW 01/10/23 to 31/10/23  (437.4 kWh) Est",Electricity
Wyre Council,http://opendatacommunities.org/doc/district-council/wyre,29/11/2023,People and Places,Environmental Services,132B,Engie Power Limited,28/11/2023,PE154605,244.32,0.00,"1610004845313 Fleetwood Corp Cemetery,  Beach Rd, Fleetwood, FY7 8PH 01/10/23 to 31/10/23 (647.9 kWh) Est",Electricity
Wyre Council,http://opendatacommunities.org/doc/district-council/wyre,29/11/2023,People and Places,Environmental Services,132B,Engie Power Limited,28/11/2023,PE154604,312.42,0.00,"1610004845304 Fleetwood Corp Cemetery,  Beach Rd, Fleetwood, FY7 8PH 01/10/23 to 31/10/23 (669.5 kWh) Est",Electricity
Wyre Council,http://opendatacommunities.org/doc/district-council/wyre,29/11/2023,People and Places,Environmental Services,132B,Engie Power Limited,28/11/2023,PE154607,202.24,0.00,"1610013371994 PC, The Weind, Great  Eccleston, PR3 0ZU 01/10/23 to 31/10/23 (360.7 kWh) Est",Electricity
Wyre Council,http://opendatacommunities.org/doc/district-council/wyre,29/11/2023,People and Places,Environmental Services,132B,Engie Power Limited,28/11/2023,PE154614,131.37,0.00,"1610004885487 PC, Preston St, Fleetwood,  FY7 6JA 01/10/23 to 31/10/23 (162.1 kWh) Est",Electricity
Wyre Council,http://opendatacommunities.org/doc/district-council/wyre,29/11/2023,People and Places,Environmental Services,132B,Engie Power Limited,28/11/2023,PE154610,293.80,0.00,"1610023251891 PC, Gubberford Lane, Scorton,  PR3 1BL 01/10/23 to 31/10/23 (617.3 kWh) Est",Electricity
Wyre Council,http://opendatacommunities.org/doc/district-council/wyre,29/11/2023,People and Places,Environmental Services,132B,Engie Power Limited,28/11/2023,PE154609,229.25,0.00,"1610023195261 PC, Smallwood Hey, Pilling,  Preston, PR3 6HJ 01/10/23 to 31/10/23 (436.4 kWh) Est",Electricity
Wyre Council,http://opendatacommunities.org/doc/district-council/wyre,29/11/2023,People and Places,Environmental Services,132B,Engie Power Limited,28/11/2023,PE154608,148.91,0.00,"1610023169146 Public Conveniences, Barton  Square, Knott End on Sea, Lancashire, FY6 0AG 01/10/23 to 31/10/23 (218.9  kWh) Est",Electricity
Wyre Council,http://opendatacommunities.org/doc/district-council/wyre,29/11/2023,People and Places,Environmental Services,132B,Engie Power Limited,28/11/2023,PE154624,141.86,0.00,"1630000819048 Public Conveniences,  Cherestanc Square, Garstang, Lancashire, PR3 1EF 01/10/23 to 31/10/23 (191.5  kWh) Est",Electricity
Wyre Council,http://opendatacommunities.org/doc/district-council/wyre,29/11/2023,People and Places,Environmental Services,132B,Engie Power Limited,28/11/2023,PE154623,271.85,0.00,"1630000740099 PC, Wyreside, Knott End on  Sea, FY6 0AA 01/10/23 to 31/10/23 (555.8 kWh) Est",Electricity
Wyre Council,http://opendatacommunities.org/doc/district-council/wyre,29/11/2023,People and Places,Environmental Services,132B,Engie Power Limited,28/11/2023,PE154622,222.47,0.00,"1630000584632 PC, rear of Tesco, Rough Lea  Rd, Thornton Cleveleys, FY5 1BW 01/10/23 to 31/10/23 (417.4 kWh) Est",Electricity
Wyre Council,http://opendatacommunities.org/doc/district-council/wyre,29/11/2023,People and Places,Environmental Services,132B,Engie Power Limited,28/11/2023,PE154621,110.10,0.00,"1620001343345 PC, Thornton Centre, Victoria  Rd East, FY5 5DZ 01/10/23 to 31/10/23 (102.5 kWh) Est",Electricity
Wyre Council,http://opendatacommunities.org/doc/district-council/wyre,29/11/2023,People and Places,Cultural and Related Services,132A,Engie Power Limited,28/11/2023,PE154618,395.71,0.00,"1610004867432 Mount Hotel, Mount Rd,  Fleetwood, FY7 6RA 01/10/23 to 31/10/23 (902.9 kWh) Est",Electricity
Wyre Council,http://opendatacommunities.org/doc/district-council/wyre,29/11/2023,People and Places,Cultural and Related Services,132A,Engie Power Limited,28/11/2023,PE154600,315.78,0.00,"1610004846390 Pump House, Model Yacht Pond,  Laidleys Walk, Fleetwood, FY7 7JL 01/10/23 to 31/10/23 (678.9 kWh) Est",Electricity
Wyre Council,http://opendatacommunities.org/doc/district-council/wyre,29/11/2023,People and Places,Cultural and Related Services,132A,Engie Power Limited,28/11/2023,PE154612,479.31,0.00,"1610004897400 Ladies Bowls Pavilion,  Memorial Park, Fleetwood, FY7 7AE 01/10/23 to 31/10/23 (1113 kWh) Est",Electricity
Wyre Council,http://opendatacommunities.org/doc/district-council/wyre,29/11/2023,People and Places,Cultural and Related Services,132A,Engie Power Limited,28/11/2023,PE154611,204.06,0.00,"1610004897394 Bowls House, Memorial Park,  Fleetwood, FY7 7AE 01/10/23 to 31/10/23 (365.8 kWh) Act",Electricity
Wyre Council,http://opendatacommunities.org/doc/district-council/wyre,29/11/2023,People and Places,Cultural and Related Services,132A,Engie Power Limited,28/11/2023,PE154616,260.94,0.00,"1610004897385 Tennis Pavillion, Memorial  Park, Fleetwood, FY7 7AE 01/10/23 to 31/10/23 (569.3 kWh) Est",Electricity
Wyre Council,http://opendatacommunities.org/doc/district-council/wyre,29/11/2023,People and Places,Cultural and Related Services,132A,Engie Power Limited,28/11/2023,PE154606,116.56,0.00,"1610004775074 The Windmill, Fleetwood Rd  North, Thornton Cleveleys, FY5 4BP 01/10/23 to 31/10/23 (120.6 kWh) Act",Electricity
Wyre Council,http://opendatacommunities.org/doc/district-council/wyre,29/11/2023,People and Places,Cultural and Related Services,132A,Engie Power Limited,28/11/2023,PE154602,73.74,0.00,"1610004846502 Valve House, Marine Lake,  Laidleys Walk, Fleetwood, FY7 7JL 01/10/23 to 31/10/23 (0.6 kWh) Est",Electricity
Wyre Council,http://opendatacommunities.org/doc/district-council/wyre,29/11/2023,People and Places,Cultural and Related Services,132A,Engie Power Limited,28/11/2023,PE154615,479.66,0.00,"1610004890636 Fishermans Walk, Lord St,  Fleetwood, FY7 6DU 01/10/23 to 31/10/23 (1114 kWh) Est",Electricity
Wyre Council,http://opendatacommunities.org/doc/district-council/wyre,29/11/2023,People and Places,Environmental Services,132B,Engie Power Limited,28/11/2023,PE154603,405.70,0.00,"1610004828771 Council Depot, Chatsworth Day  Centre, Chatsworth Ave, Fleetwood, FY7 8AP 01/10/23 to 31/10/23 (930.9 kWh)  Est",Electricity
Wyre Council,http://opendatacommunities.org/doc/district-council/wyre,29/11/2023,People and Places,Cultural and Related Services,132A,Engie Power Limited,28/11/2023,PE154620,100.06,0.00,"1640000004924 Feeder Pillar, Hawthorne  Park, Hawthorne Rd, Thornton Cleveleys, FY5 5DH 01/10/23 to 31/10/23 (72.6  kWh) Act",Electricity
Wyre Council,http://opendatacommunities.org/doc/district-council/wyre,29/11/2023,People and Places,Cultural and Related Services,132A,Engie Power Limited,28/11/2023,PE154617,73.64,0.00,"1610004863776 Tourist Information Office,  The Esplanade, Fleetwood, FY7 6DL 01/10/23 to 31/10/23 (0.3 kWh) Act",Electricity
Wyre Council,http://opendatacommunities.org/doc/district-council/wyre,29/11/2023,People and Places,Planning and Development Servs,132C,Engie Power Limited,28/11/2023,PE154596,49.47,0.00,"1640000947215 Landlord Supply, Fleetwood  Market, Adelaide St, Fleetwood, FY7 6AB 01/10/23 to 31/10/23 (0.9 kWh) Act",Electricity
Wyre Council,http://opendatacommunities.org/doc/district-council/wyre,29/11/2023,People and Places,Planning and Development Servs,132C,Engie Power Limited,28/11/2023,PE154595,104.23,0.00,"1640000947206 Kiosk 8, Fleetwood Market,  Adelaide St, Fleetwood, FY7 6AB 01/10/23 to 31/10/23 (168.4 kWh) Act",Electricity
Wyre Council,http://opendatacommunities.org/doc/district-council/wyre,29/11/2023,People and Places,Planning and Development Servs,132C,Engie Power Limited,28/11/2023,PE154587,71.96,0.00,"1640000947181 Kiosk 6, Fleetwood Market,  Adelaide St, Fleetwood, FY7 6AB 01/10/23 to 31/10/23 (69.7 kWh) Act",Electricity
Wyre Council,http://opendatacommunities.org/doc/district-council/wyre,29/11/2023,People and Places,Planning and Development Servs,132C,Engie Power Limited,28/11/2023,PE154590,364.39,0.00,"1640000947145 Kiosk 2, Fleetwood Market,  Adelaie St, Fleetwood, FY7 6AB 01/10/23 to 31/10/23 (964.3 kWh) Act",Electricity
Wyre Council,http://opendatacommunities.org/doc/district-council/wyre,29/11/2023,People and Places,Planning and Development Servs,132C,Engie Power Limited,28/11/2023,PE154594,305.19,0.00,"1640000947190 Kiosk 7, Fleetwood Market,  Adelaide St, Fleetwood, FY7 6AB 01/10/23 to 31/10/23 (783.2 kWh) Act",Electricity
Wyre Council,http://opendatacommunities.org/doc/district-council/wyre,29/11/2023,People and Places,Planning and Development Servs,132C,Engie Power Limited,28/11/2023,PE154592,49.60,0.00,"1640000947136 Kiosk 1, Fleetwood Market,  Adelaide St, Fleetwood, FY7 6AB 01/10/23 to 31/10/23 (1.3 kWh) Act",Electricity
Wyre Council,http://opendatacommunities.org/doc/district-council/wyre,29/11/2023,People and Places,Planning and Development Servs,132C,Engie Power Limited,28/11/2023,PE154584,65.03,0.00,"1640000947154 Kiosk 3, Fleetwood Market,  Adelaide St, Fleetwood, FY7 6AB 01/10/23 to 31/10/23 (48.5 kWh) Act",Electricity
Wyre Council,http://opendatacommunities.org/doc/district-council/wyre,29/11/2023,People and Places,Planning and Development Servs,132C,Engie Power Limited,28/11/2023,PE154586,102.92,0.00,"1640000947172 Kiosk 5, Fleetwood Market,  Adelaide St, Fleetwood, FY7 6AB 01/10/23 to 31/10/23 (164.4 kWh) Act",Electricity
Wyre Council,http://opendatacommunities.org/doc/district-council/wyre,29/11/2023,People and Places,Planning and Development Servs,132C,Engie Power Limited,28/11/2023,PE154585,55.62,0.00,"1640000947163 Kiosk 4, Fleetwood Market,  Adelaide St, Fleetwood, FY7 6AB 01/10/23 to 31/10/23 (19.7 kWh) Act",Electricity
Wyre Council,http://opendatacommunities.org/doc/district-council/wyre,29/11/2023,People and Places,Environmental Services,132B,Engie Power Limited,28/11/2023,PE154593,175.55,0.00,"1640000218200 PC, Bold St, Fleetwood, FY7  6BW 01/10/23 to 31/10/23 (386.6 kWh) Est",Electricity
Wyre Council,http://opendatacommunities.org/doc/district-council/wyre,29/11/2023,People and Places,Environmental Services,132B,Engie Power Limited,28/11/2023,PE154588,133.94,0.00,"1640000258365 PC, River Road, Thornton  Cleveleys, FY5 5LR 01/10/23 to 31/10/23 (259.3 kWh) Est",Electricity
Wyre Council,http://opendatacommunities.org/doc/district-council/wyre,29/11/2023,People and Places,Environmental Services,132B,Engie Power Limited,28/11/2023,PE154599,141.04,0.00,"1610004845322 PC, Beach Rd, Fleetwood, FY7  8PH 01/10/23 to 31/10/23 (189.2 kWh) Est",Electricity
Wyre Council,http://opendatacommunities.org/doc/district-council/wyre,29/11/2023,People and Places,Environmental Services,132B,Engie Power Limited,23/11/2023,PE153883,118.05,0.00,"1610004885487 PC, Preston St, Fleetwood, FY7 6JA 01/06/23 to 30/06/23 (131.4kWh) E",Electricity
Wyre Council,http://opendatacommunities.org/doc/district-council/wyre,29/11/2023,People and Places,Environmental Services,132B,Engie Power Limited,23/11/2023,PE148155,488.04,0.00,"1610004885487 PC, Preston Street, Fleetwood  FY7 6JA 01/01/23 to 31/01/23 Est",Electricity
Wyre Council,http://opendatacommunities.org/doc/district-council/wyre,29/11/2023,People and Places,Environmental Services,132B,Engie Power Limited,23/11/2023,PE154086,362.12,0.00,"1610004885487 Public Conveniences, Preston Street, Fleetwood, Lancashire Fy7 6Ja 01/06/23 to 30/06/23 815.4 Kwh",Electricity
Wyre Council,http://opendatacommunities.org/doc/district-council/wyre,29/11/2023,People and Places,Environmental Services,132B,Engie Power Limited,23/11/2023,PE148154,499.04,0.00,"1610004885487 PC, Preston Street, Fleetwood  FY7 6JA 01/12/22 to 31/12/22 Est",Electricity
Wyre Council,http://opendatacommunities.org/doc/district-council/wyre,29/11/2023,People and Places,Environmental Services,132B,Engie Power Limited,23/11/2023,PE148153,446.15,0.00,"1610004885487 PC, Preston Street, Fleetwood  FY7 6JA 01/11/22 to 30/11/22 Est",Electricity
Wyre Council,http://opendatacommunities.org/doc/district-council/wyre,29/11/2023,People and Places,Environmental Services,132B,Engie Power Limited,23/11/2023,PE148152,390.82,0.00,"1610004885487 PC, Preston Street, Fleetwood  FY7 6JA 02/10/22 to 31/10/22 Est",Electricity
Wyre Council,http://opendatacommunities.org/doc/district-council/wyre,29/11/2023,People and Places,Environmental Services,132B,Engie Power Limited,23/11/2023,PE154085,382.54,0.00,"1610004885487 Public Conveniences, Preston Street, Fleetwood, Lancashire Fy7 6Ja 01/05/23 to 31/05/23 866.0 Kwh",Electricity
Wyre Council,http://opendatacommunities.org/doc/district-council/wyre,29/11/2023,People and Places,Environmental Services,132B,Engie Power Limited,23/11/2023,PE154084,394.84,0.00,"1610004885487 Public Conveniences, Preston Street, Fleetwood, Lancashire Fy7 6Ja 01/04/23 to 30/04/23 907.1 Kwh",Electricity
Wyre Council,http://opendatacommunities.org/doc/district-council/wyre,29/11/2023,People and Places,Environmental Services,132B,Engie Power Limited,23/11/2023,PE153901,123.22,0.00,"610004885487 PC, Preston St, Fleetwood, FY7 6JA  01/04/23 to 30/04/23  145.9  kWh E",Electricity
Wyre Council,http://opendatacommunities.org/doc/district-council/wyre,29/11/2023,People and Places,Environmental Services,132B,Engie Power Limited,23/11/2023,PE153896,126.00,0.00,"610004885487 PC, Preston St, Fleetwood, FY7 6JA 02/10/22 to 31/10/22  (158.2 kWh) E",Electricity
Wyre Council,http://opendatacommunities.org/doc/district-council/wyre,29/11/2023,People and Places,Environmental Services,132B,Engie Power Limited,23/11/2023,PE153905,120.76,0.00,"610004885487 PC, Preston St, Fleetwood, FY7 6JA  01/09/23 to 31/09/23 139 kWh E",Electricity
Wyre Council,http://opendatacommunities.org/doc/district-council/wyre,29/11/2023,People and Places,Environmental Services,132B,Engie Power Limited,23/11/2023,PE153904,121.74,0.00,"610004885487 PC, Preston St, Fleetwood, FY7 6JA  01/08/23 to 31/08/23 135.1 kWh E",Electricity
Wyre Council,http://opendatacommunities.org/doc/district-council/wyre,29/11/2023,People and Places,Environmental Services,132B,Engie Power Limited,23/11/2023,PE153903,120.99,0.00,"610004885487 PC, Preston St, Fleetwood, FY7 6JA  01/07/23 to 31/07/23 133.0  kWh E",Electricity
Wyre Council,http://opendatacommunities.org/doc/district-council/wyre,29/11/2023,People and Places,Environmental Services,132B,Engie Power Limited,23/11/2023,PE153902,123.31,0.00,"610004885487 PC, Preston St, Fleetwood, FY7 6JA  01/05/23 to 31/05/23  139.5  kWh E",Electricity
Wyre Council,http://opendatacommunities.org/doc/district-council/wyre,29/11/2023,People and Places,Environmental Services,132B,Engie Power Limited,23/11/2023,PE153900,134.55,0.00,"610004885487 PC, Preston St, Fleetwood, FY7 6JA  01/03/23 to 31/03/23  187.5  kWh E",Electricity
Wyre Council,http://opendatacommunities.org/doc/district-council/wyre,29/11/2023,People and Places,Environmental Services,132B,Engie Power Limited,23/11/2023,PE153899,138.75,0.00,"610004885487 PC, Preston St, Fleetwood, FY7 6JA  01/01/23 to 31/01/23  200.4  kWh E",Electricity
Wyre Council,http://opendatacommunities.org/doc/district-council/wyre,29/11/2023,People and Places,Environmental Services,132B,Engie Power Limited,23/11/2023,PE153898,140.48,0.00,"610004885487 PC, Preston St, Fleetwood, FY7 6JA  001/12/22 to 31/12/22  205.7  kWh) E",Electricity
Wyre Council,http://opendatacommunities.org/doc/district-council/wyre,29/11/2023,People and Places,Environmental Services,132B,Engie Power Limited,23/11/2023,PE153897,134.01,0.00,"610004885487 PC, Preston St, Fleetwood, FY7 6JA  01/22/22 to 30/11/22 181.3 kWh) E",Electricity
Wyre Council,http://opendatacommunities.org/doc/district-council/wyre,29/11/2023,People and Places,Environmental Services,132B,Engie Power Limited,23/11/2023,PE153882,123.83,0.00,"1610004885487 PC, Preston St, Fleetwood, FY7 6JA 01/02/23 to 28/02/23 (176.4kWh) E",Electricity
Wyre Council,http://opendatacommunities.org/doc/district-council/wyre,29/11/2023,People and Places,Planning and Development Servs,132C,Sophisticated Events,08/11/2023,PE154328,2070.00,0.00,Table decorations for the 2023 Wyre Business Awards 7th November 2023,Event Hospitality
Wyre Council,http://opendatacommunities.org/doc/district-council/wyre,29/11/2023,People and Places,Support Services,135B,Healthy Heads Education Ltd,02/11/2023,PE154215,310.00,0.00,Food Festival smoothie bike delivery - Healthy Heads,Event Hospitality
Wyre Council,http://opendatacommunities.org/doc/district-council/wyre,29/11/2023,People and Places,Planning and Development Servs,132C,Amazon Business,01/11/2023,PE154031,7.07,0.00,Balloons,Event Hospitality
Wyre Council,http://opendatacommunities.org/doc/district-council/wyre,29/11/2023,People and Places,Planning and Development Servs,132C,Amazon Business,01/11/2023,PE154063,7.91,0.00,WTA Decorations,Event Hospitality
Wyre Council,http://opendatacommunities.org/doc/district-council/wyre,29/11/2023,People and Places,Planning and Development Servs,132C,Amazon Business,01/11/2023,PE154062,8.32,0.00,WTA decorations,Event Hospitality
Wyre Council,http://opendatacommunities.org/doc/district-council/wyre,29/11/2023,People and Places,Planning and Development Servs,132C,Amazon Business,01/11/2023,PE154061,29.26,0.00,WTA decorations,Event Hospitality
Wyre Council,http://opendatacommunities.org/doc/district-council/wyre,29/11/2023,People and Places,Planning and Development Servs,132C,Amazon Business,28/11/2023,PE154225,7.91,0.00,Christmas balloons Wyre Business Awards,Event Hospitality
Wyre Council,http://opendatacommunities.org/doc/district-council/wyre,29/11/2023,People and Places,Planning and Development Servs,132C,Amazon Business,28/11/2023,PE154224,8.32,0.00,Christmas balloons -WBA,Event Hospitality
Wyre Council,http://opendatacommunities.org/doc/district-council/wyre,29/11/2023,People and Places,Planning and Development Servs,132C,Spencer Sutcliffe Security Ltd,15/11/2023,PE154558,120.25,0.00,security - business awards,Event Hospitality
Wyre Council,http://opendatacommunities.org/doc/district-council/wyre,29/11/2023,People and Places,Cultural and Related Services,132A,Lancashire And North West Magazine,28/11/2023,PE154376,895.00,0.00,GWF Front page advert and editorial,Exhibitions and Events
Wyre Council,http://opendatacommunities.org/doc/district-council/wyre,29/11/2023,People and Places,Cultural and Related Services,132A,Play Inclusion Project,03/11/2023,PE154246,939.66,0.00,Saturday SEND club delivery at YMCA Fleetwood (twice monthly).,External Coaching
Wyre Council,http://opendatacommunities.org/doc/district-council/wyre,29/11/2023,People and Places,Cultural and Related Services,132A,Play Inclusion Project,07/11/2023,PE154287,939.66,0.00,Saturday SEND club delivery at YMCA Fleetwood (twice monthly).,External Coaching
Wyre Council,http://opendatacommunities.org/doc/district-council/wyre,29/11/2023,People and Places,Environmental Services,132B,UK Health Security Agency,02/11/2023,PE154128,679.20,0.00,Shellfish Testing  23/24,Food and Drug Etc Samples
Wyre Council,http://opendatacommunities.org/doc/district-council/wyre,29/11/2023,People and Places,Support Services,135B,Allstar Business Solutions LTD,09/11/2023,PE154199,201.24,0.00,Fuel to 30/10/23,Fuel
Wyre Council,http://opendatacommunities.org/doc/district-council/wyre,29/11/2023,People and Places,Support Services,135B,Allstar Business Solutions LTD,09/11/2023,PE154199,154.56,0.00,Fuel to 30/10/23,Fuel
Wyre Council,http://opendatacommunities.org/doc/district-council/wyre,29/11/2023,People and Places,Support Services,135B,Allstar Business Solutions LTD,23/11/2023,PE154630,61.36,0.00,Fuel to 14/11/23,Fuel
Wyre Council,http://opendatacommunities.org/doc/district-council/wyre,29/11/2023,People and Places,Cultural and Related Services,132A,Robert Pinkus & Co LLP,02/11/2023,PE154202,1750.00,0.00,"Skippool Berths, Skippool Creek, Thornton Cleveleys,: Inspect site and provide written report",General and Electrical Repairs - Non-Bui
Wyre Council,http://opendatacommunities.org/doc/district-council/wyre,29/11/2023,People and Places,Support Services,135B,Lancashire County Council,15/11/2023,PE154545,2500.00,0.00,"Carry out installation of lighting to Vicarage Park, Poulton as discussed.",Grounds Lighting Maintenance
Wyre Council,http://opendatacommunities.org/doc/district-council/wyre,29/11/2023,People and Places,Environmental Services,132B,M J Wilkinson,27/11/2023,PE154802,550.00,0.00,Hire of Bogmaster to remove seal from Knott End Beach,Hazardous Waste Disposal
Wyre Council,http://opendatacommunities.org/doc/district-council/wyre,29/11/2023,People and Places,Cultural and Related Services,132A,Tina Dempsey,23/11/2023,PE153991,1200.00,0.00,For the contribution of art work and community engagement towards the production of the Little Book Of Hope - Inspired Minds arts and health project.   400 to be invoiced between April and June 2023 on completion of the engagement work within communities,Healthier Fleetwood Events & Activities
Wyre Council,http://opendatacommunities.org/doc/district-council/wyre,29/11/2023,People and Places,Cultural and Related Services,132A,Inspired Minds Training CIC,23/11/2023,PE154396,700.00,0.00,"For the project management of the Little Book of Hope, Inspired Minds arts and health project   500 to be invoiced between April and June 2023 on completion of the engagement work. 500  to invoiced by September 2023 on completion of the publishing and p",Healthier Fleetwood Events & Activities
Wyre Council,http://opendatacommunities.org/doc/district-council/wyre,29/11/2023,Resources,Cultural and Related Services,132A,Konica Minolta Business Solutions UK LTD,16/11/2023,RS153275,56.71,0.00,Copy and print charge Garstang TIC Printer,Hire of Tools or Equipment
Wyre Council,http://opendatacommunities.org/doc/district-council/wyre,29/11/2023,Resources,Planning and Development Servs,132C,Konica Minolta Business Solutions UK LTD,16/11/2023,RS153275,27.75,0.00,Copy and print charges 2023-2024  Fleetwood Market,Hire of Tools or Equipment
Wyre Council,http://opendatacommunities.org/doc/district-council/wyre,29/11/2023,Resources,Planning and Development Servs,132C,Konica Minolta Business Solutions UK LTD,13/11/2023,RS153226,34.65,0.00,1840080773 - Fleetwood Market,Hire of Tools or Equipment
Wyre Council,http://opendatacommunities.org/doc/district-council/wyre,29/11/2023,Resources,Cultural and Related Services,132A,Konica Minolta Business Solutions UK LTD,13/11/2023,RS153226,24.09,0.00,Garstang TIC Rental,Hire of Tools or Equipment
Wyre Council,http://opendatacommunities.org/doc/district-council/wyre,29/11/2023,Resources,Support Services,135B,Konica Minolta Business Solutions UK LTD,29/11/2023,RS154828,429.36,0.00,1165408088,Hire of Tools or Equipment
Wyre Council,http://opendatacommunities.org/doc/district-council/wyre,29/11/2023,Resources,Central Services to the Public,131C,Fylde Coast Womens Aid,14/11/2023,RS154463,10000.00,0.00,Funding from Wyre Council from Household Support Round 4,Household Support Fund
Wyre Council,http://opendatacommunities.org/doc/district-council/wyre,29/11/2023,Resources,Central Services to the Public,131C,West View Community Association,14/11/2023,RS154465,7000.00,0.00,Funding from Wyre Council from Household Support Round 4,Household Support Fund
Wyre Council,http://opendatacommunities.org/doc/district-council/wyre,29/11/2023,Resources,Central Services to the Public,131C,HELPPKE CIC,14/11/2023,RS154464,7000.00,0.00,Funding from Wyre Council from Household Support Round 4,Household Support Fund
Wyre Council,http://opendatacommunities.org/doc/district-council/wyre,29/11/2023,Resources,Central Services to the Public,131C,Huggg Limited,02/11/2023,RS154196,41400.00,0.00,SMI Class U Exemptions 207 x 200.00,Household Support Fund
Wyre Council,http://opendatacommunities.org/doc/district-council/wyre,29/11/2023,Resources,Central Services to the Public,131C,Huggg Limited,02/11/2023,RS154196,78000.00,0.00,SMI Disregards 390 x 200.00,Household Support Fund
Wyre Council,http://opendatacommunities.org/doc/district-council/wyre,29/11/2023,Resources,Central Services to the Public,131C,Huggg Limited,02/11/2023,RS154196,86000.00,0.00,Disabled Band Relief 430 x 200.00,Household Support Fund
Wyre Council,http://opendatacommunities.org/doc/district-council/wyre,29/11/2023,Resources,Central Services to the Public,131C,Faith In The Community,14/11/2023,RS154479,10000.00,0.00,Funding from Wyre Council from Household Support Round 4,Household Support Fund
Wyre Council,http://opendatacommunities.org/doc/district-council/wyre,29/11/2023,Resources,Central Services to the Public,131C,St Thomas Garstang Foodbank,14/11/2023,RS154466,5000.00,0.00,Funding from Wyre Council from Household Support Round 4,Household Support Fund
Wyre Council,http://opendatacommunities.org/doc/district-council/wyre,29/11/2023,People and Places,Environmental Services,132B,Poulton Pets LTD,06/11/2023,PE154229,1531.50,0.00,Provision of stray dog kennelling service 2023/24,Impounded Dogs Costs
Wyre Council,http://opendatacommunities.org/doc/district-council/wyre,29/11/2023,Resources,Support Services,135B,Daisy Communications LTD,27/11/2023,RS154227,19.39,0.00,Service Charges 01/11/23 to  30/11/23,Internet and Telephone Charges
Wyre Council,http://opendatacommunities.org/doc/district-council/wyre,29/11/2023,Resources,Cultural and Related Services,132A,Daisy Communications LTD,27/11/2023,RS154227,13.87,0.00,Service Charges 01/11/23 to  30/11/23,Internet and Telephone Charges
Wyre Council,http://opendatacommunities.org/doc/district-council/wyre,29/11/2023,Resources,Cultural and Related Services,132A,Daisy Communications LTD,27/11/2023,RS154227,33.25,0.00,Service Charges 01/11/23 to  30/11/23,Internet and Telephone Charges
Wyre Council,http://opendatacommunities.org/doc/district-council/wyre,29/11/2023,Resources,Corporate and Democratic Core,131A,Daisy Communications LTD,27/11/2023,RS154227,13.87,0.00,Service Charges 01/11/23 to 30/11/23,Internet and Telephone Charges
Wyre Council,http://opendatacommunities.org/doc/district-council/wyre,29/11/2023,Resources,Support Services,135B,Daisy Communications LTD,27/11/2023,RS154227,80.86,0.00,Service Charges 01/11/23 to  30/11/23,Internet and Telephone Charges
Wyre Council,http://opendatacommunities.org/doc/district-council/wyre,29/11/2023,Resources,Support Services,135B,Vodafone LTD,07/11/2023,RS153328,404.49,0.00,edicated Access Bearer - 01/07/23-30/09/2023,Internet and Telephone Charges
Wyre Council,http://opendatacommunities.org/doc/district-council/wyre,29/11/2023,Resources,Support Services,135B,Vodafone LTD,07/11/2023,RS153328,199.98,0.00,PSN-Direct Network Service Provider -  01/10/23-31/12/23,Internet and Telephone Charges
Wyre Council,http://opendatacommunities.org/doc/district-council/wyre,29/11/2023,Resources,Support Services,135B,THE NETWORKING PEOPLE (TNP) LTD,17/11/2023,RS154637,4284.00,0.00,"Annual Rental 0.1/0.1Gb Internet service, 3 year minimum term at Fleetwood Market, FY7 6AB",Internet and Telephone Charges
Wyre Council,http://opendatacommunities.org/doc/district-council/wyre,29/11/2023,Resources,Support Services,135B,THE NETWORKING PEOPLE (TNP) LTD,15/11/2023,RS154560,700.00,0.00,"TNPCC-STD-ANN - TNP CloudConnect Annual: Standard Deployment, Minimum 1 700.00 20.0 700.00Term 3 Years",Internet and Telephone Charges
Wyre Council,http://opendatacommunities.org/doc/district-council/wyre,29/11/2023,Resources,Support Services,135B,THE NETWORKING PEOPLE (TNP) LTD,15/11/2023,RS154560,2950.00,0.00," TNPCC-PC1K-ANN - TNP CloudConnect Annual: Recurring Portal Charge per 1,000 concurrent users, Minimum Term 3 Years",Internet and Telephone Charges
Wyre Council,http://opendatacommunities.org/doc/district-council/wyre,29/11/2023,People and Places,Cultural and Related Services,132A,Northern Citrus Products LTD,15/11/2023,PE154559,494.20,0.00,Kiosk stock - Marine Hall,Kiosk stock
Wyre Council,http://opendatacommunities.org/doc/district-council/wyre,29/11/2023,People and Places,Cultural and Related Services,132A,Northern Citrus Products LTD,29/11/2023,PE154879,792.82,0.00,Kiosk stock,Kiosk stock
Wyre Council,http://opendatacommunities.org/doc/district-council/wyre,29/11/2023,Resources,Central Services to the Public,131C,Lancashire County Council,30/11/2023,RS154904,578.00,0.00,Wyre Council Con29 Searches for October 2023 - 34 @ 17.00 each,L.C.C. Search Fees
Wyre Council,http://opendatacommunities.org/doc/district-council/wyre,29/11/2023,Resources,Central Services to the Public,131C,Lancashire County Council,30/11/2023,RS154903,493.00,0.00,Wyre Council Con29 Searches for September 2023 - 29 @ 17.00 each,L.C.C. Search Fees
Wyre Council,http://opendatacommunities.org/doc/district-council/wyre,29/11/2023,Resources,Central Services to the Public,131C,Lancashire County Council,01/11/2023,RS153522,561.00,0.00,Wyre Council Con29 Searches for August 2023 - 33 @ 17.00 each,L.C.C. Search Fees
Wyre Council,http://opendatacommunities.org/doc/district-council/wyre,29/11/2023,Resources,Central Services to the Public,131C,Lancashire County Council,01/11/2023,RS153522,510.00,0.00,Wyre Council Con29 Searches for July 2023 - 30 @ 17.00 each,L.C.C. Search Fees
Wyre Council,http://opendatacommunities.org/doc/district-council/wyre,29/11/2023,People and Places,Planning and Development Servs,132C,Kings Chambers,27/11/2023,PE154837,675.00,0.00,"Legal advice The Cube, Breck Road, Poulton Le Fylde Enforcment, 22/00071/NOCOMP (appeal) - Philp Robson",Legal Fees
Wyre Council,http://opendatacommunities.org/doc/district-council/wyre,29/11/2023,People and Places,Planning and Development Servs,132C,Kings Chambers,27/11/2023,PE154836,7750.00,0.00,"Legal advice and Public Inquiry work, The Cube, Breck Road, Poulton Le Fylde Enforcment 22/00071/NOCOMP (appeal) - Philp Robson",Legal Fees
Wyre Council,http://opendatacommunities.org/doc/district-council/wyre,29/11/2023,People and Places,Support Services,135B,Lancashire DAF,13/11/2023,PE154185,113.00,0.00,MOT  T002,Licences/MOT Certificates
Wyre Council,http://opendatacommunities.org/doc/district-council/wyre,29/11/2023,People and Places,Support Services,135B,Lancashire DAF,13/11/2023,PE154185,50.00,0.00,Axel Lane Fee,Licences/MOT Certificates
Wyre Council,http://opendatacommunities.org/doc/district-council/wyre,29/11/2023,People and Places,Environmental Services,132B,Lancashire DAF,01/11/2023,PE154152,65.00,0.00,MOT Test fee,Licences/MOT Certificates
Wyre Council,http://opendatacommunities.org/doc/district-council/wyre,29/11/2023,People and Places,Environmental Services,132B,Lancashire DAF,01/11/2023,PE154152,126.00,0.00,MOT Test fee,Licences/MOT Certificates
Wyre Council,http://opendatacommunities.org/doc/district-council/wyre,29/11/2023,People and Places,Support Services,135B,Lancashire DAF,09/11/2023,PE153720,91.00,0.00,Mot V39,Licences/MOT Certificates
Wyre Council,http://opendatacommunities.org/doc/district-council/wyre,29/11/2023,People and Places,Support Services,135B,Lancashire DAF,09/11/2023,PE153720,45.00,0.00,Mot V39,Licences/MOT Certificates
Wyre Council,http://opendatacommunities.org/doc/district-council/wyre,29/11/2023,People and Places,Highways,133B,Lancashire County Council,15/11/2023,PE154545,7495.00,0.00,"Carry out installation of lighting to Vicarage Park, Poulton as discussed.",Maint. of Unadopted Assets - Engineers
Wyre Council,http://opendatacommunities.org/doc/district-council/wyre,29/11/2023,People and Places,Planning and Development Servs,132C,Amazon Business,14/11/2023,PE154485,16.64,0.00,led bulbs x 2 boxes,Maintenance of Tools or Equipment
Wyre Council,http://opendatacommunities.org/doc/district-council/wyre,29/11/2023,People and Places,Highways,133B,Dr Tree Surgeons,16/11/2023,PE154580,850.00,0.00,Quote Number: 876Quote Date: 9th Oct `23Valid For: 30 DaysAccount: WYRE01Quote Ref: Prudy Hill1 The removing of epicormic growth to the first break and. re&#8208;pollardingof 5 x limes 1 x Chestnut & 1x Whitebeam (for hard pollarding asloo,Maintenance of Trees and Shrubs
Wyre Council,http://opendatacommunities.org/doc/district-council/wyre,29/11/2023,People and Places,Highways,133B,T-Fer Tree Surgeons,01/11/2023,PE154173,150.00,0.00,"Quote 0033 16/10/23Outside 55 Chester Avenue, PoultonRemove dead tree and stump.150Total Net amount 150VAT @20% 0Quote total 150",Maintenance of Trees and Shrubs
Wyre Council,http://opendatacommunities.org/doc/district-council/wyre,29/11/2023,People and Places,Highways,133B,T-Fer Tree Surgeons,01/11/2023,PE154176,290.00,0.00,"Quote 0034b  16/10/23Oaklands Hackensall road, Knott End On SeaRemove fallen branches90Tidy up cuts and tip back for services200Total net amount 290VAT @ 20% 0Quote total 290",Maintenance of Trees and Shrubs
Wyre Council,http://opendatacommunities.org/doc/district-council/wyre,29/11/2023,People and Places,Highways,133B,T-Fer Tree Surgeons,28/11/2023,PE154859,200.00,0.00,"Quote 0030 091023175 Arundel drive, CarltonAsh on verge, deadwood and crown lift over highway, verge.      200Total net amount 200VAT @ 20% 0Quote 200",Maintenance of Trees and Shrubs
Wyre Council,http://opendatacommunities.org/doc/district-council/wyre,29/11/2023,People and Places,Highways,133B,T-Fer Tree Surgeons,20/11/2023,PE154648,450.00,0.00,"Quote 0037 06/11/23Shore green, ThorntonMinor tree works on Shore green, Thornton450Total net amount 450VAT @20% 0Quote total 450",Maintenance of Trees and Shrubs
Wyre Council,http://opendatacommunities.org/doc/district-council/wyre,29/11/2023,People and Places,Highways,133B,T-Fer Tree Surgeons,17/11/2023,PE154632,120.00,0.00,"Quote 0039 13/11/2023      262 blackpool rd, PoultonAsh � crown lift/ crown reduce from highway60273 blackpool rdCherry � crown lift / crown reduce from highway60Total net amount 120 Vat @20% 0Total quote amount 120",Maintenance of Trees and Shrubs
Wyre Council,http://opendatacommunities.org/doc/district-council/wyre,29/11/2023,Resources,Support Services,135B,European Electronique LTD,02/11/2023,RS154194,14141.60,0.00,Data Exploration,Managed Services SaaS
Wyre Council,http://opendatacommunities.org/doc/district-council/wyre,29/11/2023,Resources,Support Services,135B,European Electronique LTD,02/11/2023,RS154194,7995.20,0.00,PLATFORM : Platform,Managed Services SaaS
Wyre Council,http://opendatacommunities.org/doc/district-council/wyre,29/11/2023,Resources,Support Services,135B,European Electronique LTD,02/11/2023,RS154194,4017.90,0.00,1 PLATFORM-BASE : Base Platform,Managed Services SaaS
Wyre Council,http://opendatacommunities.org/doc/district-council/wyre,29/11/2023,Resources,Support Services,135B,European Electronique LTD,02/11/2023,RS154194,3663.08,0.00,1Onboarding Service,Managed Services SaaS
Wyre Council,http://opendatacommunities.org/doc/district-council/wyre,29/11/2023,Resources,Support Services,135B,European Electronique LTD,02/11/2023,RS154194,879.14,0.00,1 COOPM :  Project Management,Managed Services SaaS
Wyre Council,http://opendatacommunities.org/doc/district-council/wyre,29/11/2023,Resources,Support Services,135B,European Electronique LTD,02/11/2023,RS154194,321.41,0.00,1 Sensor/Scanner Shipping,Managed Services SaaS
Wyre Council,http://opendatacommunities.org/doc/district-council/wyre,29/11/2023,Resources,Support Services,135B,European Electronique LTD,02/11/2023,RS154194,16272.33,0.00,"3 :  Sensor, 2X10g Multi-mode fiber SFP+ Modules with LC Connector",Managed Services SaaS
Wyre Council,http://opendatacommunities.org/doc/district-council/wyre,29/11/2023,Resources,Support Services,135B,European Electronique LTD,02/11/2023,RS154194,77148.80,0.00,USER :  User License,Managed Services SaaS
Wyre Council,http://opendatacommunities.org/doc/district-council/wyre,29/11/2023,Resources,Support Services,135B,European Electronique LTD,02/11/2023,RS154194,28448.62,0.00,SE : Server License,Managed Services SaaS
Wyre Council,http://opendatacommunities.org/doc/district-council/wyre,29/11/2023,Resources,Support Services,135B,European Electronique LTD,02/11/2023,RS154194,10030.70,0.00,365 : Office 365 User License,Managed Services SaaS
Wyre Council,http://opendatacommunities.org/doc/district-council/wyre,29/11/2023,Resources,Support Services,135B,European Electronique LTD,02/11/2023,RS154194,482.18,0.00,Server License,Managed Services SaaS
Wyre Council,http://opendatacommunities.org/doc/district-council/wyre,29/11/2023,People and Places,Support Services,135B,EK Motors Factors LTD,14/11/2023,PE154517,14.64,0.00,Parts,Materials and Consumables
Wyre Council,http://opendatacommunities.org/doc/district-council/wyre,29/11/2023,People and Places,Support Services,135B,EK Motors Factors LTD,14/11/2023,PE154516,39.04,0.00,Parts,Materials and Consumables
Wyre Council,http://opendatacommunities.org/doc/district-council/wyre,29/11/2023,People and Places,Support Services,135B,EK Motors Factors LTD,14/11/2023,PE154515,9.76,0.00,Parts,Materials and Consumables
Wyre Council,http://opendatacommunities.org/doc/district-council/wyre,29/11/2023,People and Places,Support Services,135B,EK Motors Factors LTD,14/11/2023,PE154514,21.94,0.00,Parts,Materials and Consumables
Wyre Council,http://opendatacommunities.org/doc/district-council/wyre,29/11/2023,People and Places,Support Services,135B,EK Motors Factors LTD,14/11/2023,PE154512,34.40,0.00,Parts,Materials and Consumables
Wyre Council,http://opendatacommunities.org/doc/district-council/wyre,29/11/2023,People and Places,Support Services,135B,EK Motors Factors LTD,14/11/2023,PE154511,5.16,0.00,Parts,Materials and Consumables
Wyre Council,http://opendatacommunities.org/doc/district-council/wyre,29/11/2023,People and Places,Support Services,135B,EK Motors Factors LTD,14/11/2023,PE153664,40.99,0.00,Parts,Materials and Consumables
Wyre Council,http://opendatacommunities.org/doc/district-council/wyre,29/11/2023,People and Places,Support Services,135B,EK Motors Factors LTD,14/11/2023,PE154518,27.50,0.00,Parts,Materials and Consumables
Wyre Council,http://opendatacommunities.org/doc/district-council/wyre,29/11/2023,People and Places,Support Services,135B,EK Motors Factors LTD,14/11/2023,PE154513,10.40,0.00,Parts,Materials and Consumables
Wyre Council,http://opendatacommunities.org/doc/district-council/wyre,29/11/2023,People and Places,Environmental Services,132B,Bucher Municipal Limited,30/11/2023,PE154826,517.40,0.00,Chanel Brush,Materials and Consumables
Wyre Council,http://opendatacommunities.org/doc/district-council/wyre,29/11/2023,People and Places,Support Services,135B,Key Engineering & Hygiene Supplies LTD,09/11/2023,PE154370,189.90,0.00,Supply gloves as your quotation 21168,Materials and Consumables
Wyre Council,http://opendatacommunities.org/doc/district-council/wyre,29/11/2023,People and Places,Support Services,135B,Key Engineering & Hygiene Supplies LTD,09/11/2023,PE154372,73.74,0.00,"Supply blue rolls as per quotation 21159Delivery to Wyre Council, Copse Road Depot, Copse Road, Fleetwood, FY7 6RP",Materials and Consumables
Wyre Council,http://opendatacommunities.org/doc/district-council/wyre,29/11/2023,People and Places,Environmental Services,132B,Key Engineering & Hygiene Supplies LTD,09/11/2023,PE154372,73.74,0.00,"Supply blue rolls as per quotation 21159Delivery to Wyre Council, Copse Road Depot, Copse Road, Fleetwood, FY7 6RP",Materials and Consumables
Wyre Council,http://opendatacommunities.org/doc/district-council/wyre,29/11/2023,People and Places,Support Services,135B,Key Engineering & Hygiene Supplies LTD,23/11/2023,PE154738,221.28,0.00,"URGENT SUPPLY AS QUOTE 21189Delivery to Wyre Council, Copse Road Depot, Copse Road, Fleetwood, FY7 6RP.",Materials and Consumables
Wyre Council,http://opendatacommunities.org/doc/district-council/wyre,29/11/2023,People and Places,Support Services,135B,Key Engineering & Hygiene Supplies LTD,23/11/2023,PE154716,124.28,0.00,"URGENT SUPPLY AS QUOTE 21189Delivery to Wyre Council, Copse Road Depot, Copse Road, Fleetwood, FY7 6RP.",Materials and Consumables
Wyre Council,http://opendatacommunities.org/doc/district-council/wyre,29/11/2023,People and Places,Environmental Services,132B,Key Engineering & Hygiene Supplies LTD,20/11/2023,PE154652,40.50,0.00,"Supply and deliver gloves as your quotation 21316Delivery to Wyre Council, FAO Doug Barclay, Copse Road Depot, Copse Road, Fleetwood, FY7 6RP",Materials and Consumables
Wyre Council,http://opendatacommunities.org/doc/district-council/wyre,29/11/2023,People and Places,Support Services,135B,Key Engineering & Hygiene Supplies LTD,23/11/2023,PE154716,-124.28,0.00,"URGENT SUPPLY AS QUOTE 21189Delivery to Wyre Council, Copse Road Depot, Copse Road, Fleetwood, FY7 6RP.",Materials and Consumables
Wyre Council,http://opendatacommunities.org/doc/district-council/wyre,29/11/2023,People and Places,Support Services,135B,Malcolm McCulloch & Sons LTD,15/11/2023,PE154504,305.50,0.00,Q8,Materials and Consumables
Wyre Council,http://opendatacommunities.org/doc/district-council/wyre,29/11/2023,People and Places,Support Services,135B,Malcolm McCulloch & Sons LTD,15/11/2023,PE154504,83.70,0.00,12 packs Toilet rolls,Materials and Consumables
Wyre Council,http://opendatacommunities.org/doc/district-council/wyre,29/11/2023,People and Places,Environmental Services,132B,Malcolm McCulloch & Sons LTD,15/11/2023,PE154504,83.70,0.00,12 packs Toilet rolls,Materials and Consumables
Wyre Council,http://opendatacommunities.org/doc/district-council/wyre,29/11/2023,People and Places,Environmental Services,132B,Malcolm McCulloch & Sons LTD,15/11/2023,PE154504,697.90,0.00,Granules,Materials and Consumables
Wyre Council,http://opendatacommunities.org/doc/district-council/wyre,29/11/2023,People and Places,Support Services,135B,Malcolm McCulloch & Sons LTD,15/11/2023,PE154504,225.00,0.00,Traffic,Materials and Consumables
Wyre Council,http://opendatacommunities.org/doc/district-council/wyre,29/11/2023,People and Places,Support Services,135B,Malcolm McCulloch & Sons LTD,14/11/2023,PE154506,140.00,0.00,Bund,Materials and Consumables
Wyre Council,http://opendatacommunities.org/doc/district-council/wyre,29/11/2023,People and Places,Support Services,135B,Malcolm McCulloch & Sons LTD,14/11/2023,PE154505,168.00,0.00,Adblue,Materials and Consumables
Wyre Council,http://opendatacommunities.org/doc/district-council/wyre,29/11/2023,People and Places,Support Services,135B,Malcolm McCulloch & Sons LTD,14/11/2023,PE154505,590.72,0.00,Q8,Materials and Consumables
Wyre Council,http://opendatacommunities.org/doc/district-council/wyre,29/11/2023,People and Places,Support Services,135B,Malcolm McCulloch & Sons LTD,14/11/2023,PE154505,56.80,0.00,Q8,Materials and Consumables
Wyre Council,http://opendatacommunities.org/doc/district-council/wyre,29/11/2023,People and Places,Support Services,135B,Malcolm McCulloch & Sons LTD,14/11/2023,PE154506,115.00,0.00,Spill tray,Materials and Consumables
Wyre Council,http://opendatacommunities.org/doc/district-council/wyre,29/11/2023,People and Places,Environmental Services,132B,Scarab Sweepers Ltd,08/11/2023,PE154318,2213.19,0.00,Polyester - Steel brush,Materials and Consumables
Wyre Council,http://opendatacommunities.org/doc/district-council/wyre,29/11/2023,People and Places,Environmental Services,132B,Aitch Tools & Fasteners LTD,20/11/2023,PE154659,15.00,0.00,Materials  Order no S273831,Materials and Consumables
Wyre Council,http://opendatacommunities.org/doc/district-council/wyre,29/11/2023,People and Places,Environmental Services,132B,Aitch Tools & Fasteners LTD,17/11/2023,PE154636,89.40,0.00,Materials,Materials and Consumables
Wyre Council,http://opendatacommunities.org/doc/district-council/wyre,29/11/2023,People and Places,Support Services,135B,Aitch Tools & Fasteners LTD,20/11/2023,PE154659,1262.00,0.00,Materials  Order no S273831,Materials and Consumables
Wyre Council,http://opendatacommunities.org/doc/district-council/wyre,29/11/2023,People and Places,Support Services,135B,Walkers Nurseries & Plant Centre,08/11/2023,PE154282,3084.56,0.00,Supply Winter Bedding and Bulbs for 2023 in 6 packs as per email from Jane Ferguson Wyre Winter 2023 Bedding PoultonThorntonOver WyreFleetwoodTotalUnit �Total �         Bellis Medics Mxd   83030011300.17192.10Bellis Medic,Materials and Consumables
Wyre Council,http://opendatacommunities.org/doc/district-council/wyre,29/11/2023,People and Places,Cultural and Related Services,132A,HUWS GRAY LTD,08/11/2023,PE154316,243.82,0.00,Memorial bench 1 x1 ton MOTx2 4.8 by 6x2 planksmaterials for WECP and memorial bench,Materials and Consumables
Wyre Council,http://opendatacommunities.org/doc/district-council/wyre,29/11/2023,People and Places,Environmental Services,132B,HUWS GRAY LTD,06/11/2023,PE154262,223.68,0.00,2023/2024 Direct Works/ Sea Wall Engineer purchases for works around the Borough,Materials and Consumables
Wyre Council,http://opendatacommunities.org/doc/district-council/wyre,29/11/2023,People and Places,Environmental Services,132B,HUWS GRAY LTD,06/11/2023,PE154263,353.96,0.00,2023/2024 Direct Works/ Sea Wall Engineer purchases for works around the Borough,Materials and Consumables
Wyre Council,http://opendatacommunities.org/doc/district-council/wyre,29/11/2023,People and Places,Environmental Services,132B,HUWS GRAY LTD,06/11/2023,PE154079,335.52,0.00,2023/2024 Direct Works/ Sea Wall Engineer purchases for works around the Borough,Materials and Consumables
Wyre Council,http://opendatacommunities.org/doc/district-council/wyre,29/11/2023,People and Places,Support Services,135B,HUWS GRAY LTD,15/11/2023,PE154502,102.68,0.00,Materials,Materials and Consumables
Wyre Council,http://opendatacommunities.org/doc/district-council/wyre,29/11/2023,People and Places,Support Services,135B,HUWS GRAY LTD,01/11/2023,PE154151,55.16,0.00,Materials,Materials and Consumables
Wyre Council,http://opendatacommunities.org/doc/district-council/wyre,29/11/2023,People and Places,Support Services,135B,HUWS GRAY LTD,01/11/2023,PE154160,490.00,0.00,Supply as your quotation Q5L00857/1Durston garden productsD20ETS enriched top soil 20L @ 3.50 each Collection to be arranged with Roger Brocklebank w/b 23rd October 2023,Materials and Consumables
Wyre Council,http://opendatacommunities.org/doc/district-council/wyre,29/11/2023,People and Places,Environmental Services,132B,HUWS GRAY LTD,01/11/2023,PE154193,289.10,0.00,2023/2024 Direct Works/ Sea Wall Engineer purchases for works around the Borough,Materials and Consumables
Wyre Council,http://opendatacommunities.org/doc/district-council/wyre,29/11/2023,People and Places,Environmental Services,132B,HUWS GRAY LTD,23/11/2023,PE154022,383.77,0.00,2023/2024 Direct Works/ Sea Wall Engineer purchases for works around the Borough,Materials and Consumables
Wyre Council,http://opendatacommunities.org/doc/district-council/wyre,29/11/2023,People and Places,Support Services,135B,HUWS GRAY LTD,15/11/2023,PE154499,62.97,0.00,Materials,Materials and Consumables
Wyre Council,http://opendatacommunities.org/doc/district-council/wyre,29/11/2023,People and Places,Support Services,135B,HUWS GRAY LTD,15/11/2023,PE154501,67.86,0.00,Materials,Materials and Consumables
Wyre Council,http://opendatacommunities.org/doc/district-council/wyre,29/11/2023,People and Places,Support Services,135B,HUWS GRAY LTD,15/11/2023,PE154500,17.25,0.00,Concrete block Keith Urwin,Materials and Consumables
Wyre Council,http://opendatacommunities.org/doc/district-council/wyre,29/11/2023,People and Places,Housing General Fund,134A,HUWS GRAY LTD,15/11/2023,PE154440,213.00,0.00,Invoice IF722887,Materials and Consumables
Wyre Council,http://opendatacommunities.org/doc/district-council/wyre,29/11/2023,People and Places,Support Services,135B,George Hewitt Fabrications,27/11/2023,PE154805,160.00,0.00,2 Stainless steel trays @ 160,Materials and Consumables
Wyre Council,http://opendatacommunities.org/doc/district-council/wyre,29/11/2023,People and Places,Environmental Services,132B,George Hewitt Fabrications,27/11/2023,PE154805,1400.00,0.00,4 Stainless Steel Bollards with holders @ 1400,Materials and Consumables
Wyre Council,http://opendatacommunities.org/doc/district-council/wyre,29/11/2023,People and Places,Support Services,135B,Amazon Business,23/11/2023,PE154565,24.49,0.00,Toner Cartridges,Materials and Consumables
Wyre Council,http://opendatacommunities.org/doc/district-council/wyre,29/11/2023,Resources,Housing General Fund,134A,J A DICKENS LIMITED,09/11/2023,RS154389,300.00,0.00,REDACT,Minor Adaptations
Wyre Council,http://opendatacommunities.org/doc/district-council/wyre,29/11/2023,Resources,Housing General Fund,134A,J A DICKENS LIMITED,09/11/2023,RS154389,280.00,0.00,REDACT,Minor Adaptations
Wyre Council,http://opendatacommunities.org/doc/district-council/wyre,29/11/2023,Resources,Housing General Fund,134A,J A DICKENS LIMITED,08/11/2023,RS154352,94.00,0.00,REDACT,Minor Adaptations
Wyre Council,http://opendatacommunities.org/doc/district-council/wyre,29/11/2023,Resources,Housing General Fund,134A,J A DICKENS LIMITED,08/11/2023,RS154353,180.00,0.00,REDACT,Minor Adaptations
Wyre Council,http://opendatacommunities.org/doc/district-council/wyre,29/11/2023,Resources,Housing General Fund,134A,J A DICKENS LIMITED,08/11/2023,RS154353,128.00,0.00,REDACT,Minor Adaptations
Wyre Council,http://opendatacommunities.org/doc/district-council/wyre,29/11/2023,Resources,Housing General Fund,134A,J A DICKENS LIMITED,08/11/2023,RS154354,120.00,0.00,REDACT,Minor Adaptations
Wyre Council,http://opendatacommunities.org/doc/district-council/wyre,29/11/2023,Resources,Housing General Fund,134A,J A DICKENS LIMITED,08/11/2023,RS154354,120.00,0.00,REDACT,Minor Adaptations
Wyre Council,http://opendatacommunities.org/doc/district-council/wyre,29/11/2023,Resources,Housing General Fund,134A,J A DICKENS LIMITED,08/11/2023,RS154355,140.00,0.00,REDACT,Minor Adaptations
Wyre Council,http://opendatacommunities.org/doc/district-council/wyre,29/11/2023,Resources,Housing General Fund,134A,J A DICKENS LIMITED,08/11/2023,RS154355,120.00,0.00,REDACT,Minor Adaptations
Wyre Council,http://opendatacommunities.org/doc/district-council/wyre,29/11/2023,Resources,Housing General Fund,134A,J A DICKENS LIMITED,08/11/2023,RS154356,220.00,0.00,REDACT,Minor Adaptations
Wyre Council,http://opendatacommunities.org/doc/district-council/wyre,29/11/2023,Resources,Housing General Fund,134A,J A DICKENS LIMITED,08/11/2023,RS154356,200.00,0.00,REDACT,Minor Adaptations
Wyre Council,http://opendatacommunities.org/doc/district-council/wyre,29/11/2023,Resources,Housing General Fund,134A,J A DICKENS LIMITED,08/11/2023,RS154357,300.00,0.00,REDACT,Minor Adaptations
Wyre Council,http://opendatacommunities.org/doc/district-council/wyre,29/11/2023,Resources,Housing General Fund,134A,J A DICKENS LIMITED,08/11/2023,RS154357,320.00,0.00,REDACT,Minor Adaptations
Wyre Council,http://opendatacommunities.org/doc/district-council/wyre,29/11/2023,Resources,Housing General Fund,134A,J A DICKENS LIMITED,08/11/2023,RS154358,300.00,0.00,REDACT,Minor Adaptations
Wyre Council,http://opendatacommunities.org/doc/district-council/wyre,29/11/2023,Resources,Housing General Fund,134A,J A DICKENS LIMITED,08/11/2023,RS154358,340.00,0.00,REDACT,Minor Adaptations
Wyre Council,http://opendatacommunities.org/doc/district-council/wyre,29/11/2023,Resources,Housing General Fund,134A,J A DICKENS LIMITED,08/11/2023,RS154359,360.00,0.00,REDACT,Minor Adaptations
Wyre Council,http://opendatacommunities.org/doc/district-council/wyre,29/11/2023,Resources,Housing General Fund,134A,J A DICKENS LIMITED,08/11/2023,RS154359,420.00,0.00,REDACT,Minor Adaptations
Wyre Council,http://opendatacommunities.org/doc/district-council/wyre,29/11/2023,Resources,Housing General Fund,134A,J A DICKENS LIMITED,08/11/2023,RS154362,70.00,0.00,REDACT,Minor Adaptations
Wyre Council,http://opendatacommunities.org/doc/district-council/wyre,29/11/2023,Resources,Housing General Fund,134A,J A DICKENS LIMITED,08/11/2023,RS154350,90.00,0.00,REDACT,Minor Adaptations
Wyre Council,http://opendatacommunities.org/doc/district-council/wyre,29/11/2023,Resources,Housing General Fund,134A,J A DICKENS LIMITED,08/11/2023,RS154350,64.00,0.00,REDACT,Minor Adaptations
Wyre Council,http://opendatacommunities.org/doc/district-council/wyre,29/11/2023,Resources,Housing General Fund,134A,J A DICKENS LIMITED,08/11/2023,RS154351,70.00,0.00,REDACT,Minor Adaptations
Wyre Council,http://opendatacommunities.org/doc/district-council/wyre,29/11/2023,Resources,Housing General Fund,134A,J A DICKENS LIMITED,08/11/2023,RS154351,84.00,0.00,REDACT,Minor Adaptations
Wyre Council,http://opendatacommunities.org/doc/district-council/wyre,29/11/2023,Resources,Housing General Fund,134A,J A DICKENS LIMITED,08/11/2023,RS154352,60.00,0.00,REDACT,Minor Adaptations
Wyre Council,http://opendatacommunities.org/doc/district-council/wyre,29/11/2023,Resources,Housing General Fund,134A,J A DICKENS LIMITED,08/11/2023,RS154362,84.00,0.00,REDACT,Minor Adaptations
Wyre Council,http://opendatacommunities.org/doc/district-council/wyre,29/11/2023,Finance,Current Liabilities,130C,,27/11/2023,WPST00126210,10000.00,0.00,23/11/2023LANCASHIRE COUNTYMVF OVERPAY,Miscellaneous Debits
Wyre Council,http://opendatacommunities.org/doc/district-council/wyre,29/11/2023,Resources,Support Services,135B,VODAFONE LIMITED,24/11/2023,RS154547,20.00,0.00,Phone Charges 01/11/23 to 30/11/23,Mobile Devices
Wyre Council,http://opendatacommunities.org/doc/district-council/wyre,29/11/2023,Resources,Support Services,135B,VODAFONE LIMITED,22/11/2023,RS154547,52.00,0.00,Phone Charges 01/11/23 to 30/11/23,Mobile Devices
Wyre Council,http://opendatacommunities.org/doc/district-council/wyre,29/11/2023,Resources,Central Services to the Public,131C,VODAFONE LIMITED,22/11/2023,RS154547,12.00,0.00,Phone Charges 01/11/23 to 30/11/23,Mobile Devices
Wyre Council,http://opendatacommunities.org/doc/district-council/wyre,29/11/2023,Resources,Environmental Services,132B,VODAFONE LIMITED,22/11/2023,RS154547,84.00,0.00,Phone Charges 01/11/23 to 30/11/23,Mobile Devices
Wyre Council,http://opendatacommunities.org/doc/district-council/wyre,29/11/2023,Resources,Support Services,135B,VODAFONE LIMITED,22/11/2023,RS154547,12.15,0.00,Phone Charges 01/11/23 to 30/11/23,Mobile Devices
Wyre Council,http://opendatacommunities.org/doc/district-council/wyre,29/11/2023,Resources,Cultural and Related Services,132A,VODAFONE LIMITED,22/11/2023,RS154547,12.00,0.00,Phone Charges 01/11/23 to 30/11/23,Mobile Devices
Wyre Council,http://opendatacommunities.org/doc/district-council/wyre,29/11/2023,Resources,Support Services,135B,VODAFONE LIMITED,22/11/2023,RS154547,168.00,0.00,Phone Charges 01/11/23 to 30/11/23,Mobile Devices
Wyre Council,http://opendatacommunities.org/doc/district-council/wyre,29/11/2023,Resources,Support Services,135B,VODAFONE LIMITED,22/11/2023,RS154547,180.00,0.00,Phone Charges 01/11/23 to 30/11/23,Mobile Devices
Wyre Council,http://opendatacommunities.org/doc/district-council/wyre,29/11/2023,Resources,Support Services,135B,VODAFONE LIMITED,22/11/2023,RS154547,24.00,0.00,Phone Charges 01/11/23 to 30/11/23,Mobile Devices
Wyre Council,http://opendatacommunities.org/doc/district-council/wyre,29/11/2023,Resources,Support Services,135B,VODAFONE LIMITED,22/11/2023,RS154547,196.33,0.00,Phone Charges 01/11/23 to 30/11/23,Mobile Devices
Wyre Council,http://opendatacommunities.org/doc/district-council/wyre,29/11/2023,Resources,Environmental Services,132B,VODAFONE LIMITED,22/11/2023,RS154547,16.00,0.00,Phone Charges 01/11/23 to 30/11/23,Mobile Devices
Wyre Council,http://opendatacommunities.org/doc/district-council/wyre,29/11/2023,Resources,Housing General Fund,134A,VODAFONE LIMITED,22/11/2023,RS154547,36.00,0.00,Phone Charges 01/11/23 to 30/11/23,Mobile Devices
Wyre Council,http://opendatacommunities.org/doc/district-council/wyre,29/11/2023,Resources,Support Services,135B,VODAFONE LIMITED,22/11/2023,RS154547,36.00,0.00,Phone Charges 01/11/23 to 30/11/23,Mobile Devices
Wyre Council,http://opendatacommunities.org/doc/district-council/wyre,29/11/2023,Resources,Support Services,135B,VODAFONE LIMITED,22/11/2023,RS154547,120.00,0.00,Phone Charges 01/11/23 to 30/11/23,Mobile Devices
Wyre Council,http://opendatacommunities.org/doc/district-council/wyre,29/11/2023,Resources,Support Services,135B,VODAFONE LIMITED,22/11/2023,RS154547,72.00,0.00,Phone Charges 01/11/23 to 30/11/23,Mobile Devices
Wyre Council,http://opendatacommunities.org/doc/district-council/wyre,29/11/2023,Resources,Support Services,135B,VODAFONE LIMITED,22/11/2023,RS154547,156.00,0.00,Phone Charges 01/11/23 to 30/11/23,Mobile Devices
Wyre Council,http://opendatacommunities.org/doc/district-council/wyre,29/11/2023,Resources,Cultural and Related Services,132A,VODAFONE LIMITED,22/11/2023,RS154547,24.00,0.00,Phone Charges 01/11/23 to 30/11/23,Mobile Devices
Wyre Council,http://opendatacommunities.org/doc/district-council/wyre,29/11/2023,Resources,Housing General Fund,134A,VODAFONE LIMITED,22/11/2023,RS154547,12.00,0.00,Phone Charges 01/11/23 to 30/11/23,Mobile Devices
Wyre Council,http://opendatacommunities.org/doc/district-council/wyre,29/11/2023,Resources,Housing General Fund,134A,VODAFONE LIMITED,22/11/2023,RS154547,72.00,0.00,Phone Charges 01/11/23 to 30/11/23,Mobile Devices
Wyre Council,http://opendatacommunities.org/doc/district-council/wyre,29/11/2023,Resources,Housing General Fund,134A,VODAFONE LIMITED,22/11/2023,RS154547,32.00,0.00,Phone Charges 01/11/23 to 30/11/23,Mobile Devices
Wyre Council,http://opendatacommunities.org/doc/district-council/wyre,29/11/2023,Resources,Support Services,135B,VODAFONE LIMITED,22/11/2023,RS154547,36.00,0.00,Phone Charges 01/11/23 to 30/11/23,Mobile Devices
Wyre Council,http://opendatacommunities.org/doc/district-council/wyre,29/11/2023,Resources,Support Services,135B,VODAFONE LIMITED,22/11/2023,RS154547,292.00,0.00,Phone Charges 01/11/23 to 30/11/23,Mobile Devices
Wyre Council,http://opendatacommunities.org/doc/district-council/wyre,29/11/2023,Resources,Support Services,135B,VODAFONE LIMITED,22/11/2023,RS154547,50.71,0.00,Phone Charges 01/11/23 to 30/11/23,Mobile Devices
Wyre Council,http://opendatacommunities.org/doc/district-council/wyre,29/11/2023,Resources,Support Services,135B,VODAFONE LIMITED,22/11/2023,RS154547,32.00,0.00,Phone Charges 01/11/23 to 30/11/23,Mobile Devices
Wyre Council,http://opendatacommunities.org/doc/district-council/wyre,29/11/2023,Resources,Support Services,135B,VODAFONE LIMITED,22/11/2023,RS154547,36.00,0.00,Phone Charges 01/11/23 to 30/11/23,Mobile Devices
Wyre Council,http://opendatacommunities.org/doc/district-council/wyre,29/11/2023,Resources,Cultural and Related Services,132A,VODAFONE LIMITED,22/11/2023,RS154547,24.00,0.00,Phone Charges 01/11/23 to 30/11/23,Mobile Devices
Wyre Council,http://opendatacommunities.org/doc/district-council/wyre,29/11/2023,Resources,Cultural and Related Services,132A,VODAFONE LIMITED,22/11/2023,RS154547,12.00,0.00,Phone Charges 01/11/23 to 30/11/23,Mobile Devices
Wyre Council,http://opendatacommunities.org/doc/district-council/wyre,29/11/2023,Resources,Support Services,135B,VODAFONE LIMITED,22/11/2023,RS154547,80.00,0.00,Phone Charges 01/11/23 to 30/11/23,Mobile Devices
Wyre Council,http://opendatacommunities.org/doc/district-council/wyre,29/11/2023,Resources,Support Services,135B,VODAFONE LIMITED,22/11/2023,RS154547,48.00,0.00,Phone Charges 01/11/23 to 30/11/23,Mobile Devices
Wyre Council,http://opendatacommunities.org/doc/district-council/wyre,29/11/2023,Resources,Support Services,135B,VODAFONE LIMITED,22/11/2023,RS154547,48.00,0.00,Phone Charges 01/11/23 to 30/11/23,Mobile Devices
Wyre Council,http://opendatacommunities.org/doc/district-council/wyre,29/11/2023,Resources,Central Services to the Public,131C,VODAFONE LIMITED,22/11/2023,RS154547,24.00,0.00,Phone Charges 01/11/23 to 30/11/23,Mobile Devices
Wyre Council,http://opendatacommunities.org/doc/district-council/wyre,29/11/2023,Resources,Support Services,135B,VODAFONE LIMITED,22/11/2023,RS154547,12.00,0.00,Phone Charges 01/11/23 to 30/11/23,Mobile Devices
Wyre Council,http://opendatacommunities.org/doc/district-council/wyre,29/11/2023,Resources,Corporate and Democratic Core,131A,VODAFONE LIMITED,22/11/2023,RS154547,12.00,0.00,Phone Charges 01/11/23 to 30/11/23,Mobile Devices
Wyre Council,http://opendatacommunities.org/doc/district-council/wyre,29/11/2023,People and Places,Highways,133B,Andrew Signs LTD,10/11/2023,PE154414,135.00,0.00,name plates and polycarb sheeting,Naming of Streets
Wyre Council,http://opendatacommunities.org/doc/district-council/wyre,29/11/2023,People and Places,Highways,133B,Aitch Tools & Fasteners LTD,17/11/2023,PE154636,19.80,0.00,Materials,Naming of Streets
Wyre Council,http://opendatacommunities.org/doc/district-council/wyre,29/11/2023,Finance,Current Assets,130B,,28/11/2023,WPST00126338,57752.78,0.00,24/11/23 NNDR Refunds,NNDR Refunds
Wyre Council,http://opendatacommunities.org/doc/district-council/wyre,29/11/2023,Finance,Current Assets,130B,,21/11/2023,WPST00125570,124073.44,0.00,17/11/23 NNDR Refunds,NNDR Refunds
Wyre Council,http://opendatacommunities.org/doc/district-council/wyre,29/11/2023,Finance,General Fund below the line,136A,DEPARTMENT FOR COMMUNITIES AND LOCAL GOVERNMENT,22/11/2023,WPST00125803,643840.00,0.00,R V B C GENERAL -21/11/23,NNDR Tariff to Government
Wyre Council,http://opendatacommunities.org/doc/district-council/wyre,29/11/2023,Finance,Collection Fund Revenue Accts,138A,DEPARTMENT FOR COMMUNITIES AND LOCAL GOVERNMENT,22/11/2023,WPST00125836,1022749.00,0.00,DLUHC - Business Rates CentralShare21/11,NNDR Tariff to Government
Wyre Council,http://opendatacommunities.org/doc/district-council/wyre,29/11/2023,Resources,Support Services,135B,People Asset Management LTD,06/11/2023,RS154243,566.00,0.00,Monthly PAYG Charges,Occupational Health Fees
Wyre Council,http://opendatacommunities.org/doc/district-council/wyre,29/11/2023,Resources,Support Services,135B,People Asset Management LTD,06/11/2023,RS154243,493.50,0.00,Monthly PAYG Charges,Occupational Health Fees
Wyre Council,http://opendatacommunities.org/doc/district-council/wyre,29/11/2023,Resources,Support Services,135B,Karen Openshaw Consultancy,01/11/2023,RS154181,520.00,0.00,Listening Services until March 22024,Occupational Health Fees
Wyre Council,http://opendatacommunities.org/doc/district-council/wyre,29/11/2023,Resources,Support Services,135B,Karen Openshaw Consultancy,27/11/2023,RS154797,350.00,0.00,Listening Services until March 22024,Occupational Health Fees
Wyre Council,http://opendatacommunities.org/doc/district-council/wyre,29/11/2023,People and Places,Planning and Development Servs,132C,Police and Crime Commissioner for Lancashire,20/11/2023,PE154640,9189.00,0.00,Wyre Council`s contribution towards the domestic abuse element of the Lancashire Victim Services contract for 2023 / 2024,Other Contributions
Wyre Council,http://opendatacommunities.org/doc/district-council/wyre,29/11/2023,People and Places,Environmental Services,132B,DANFO (UK) LTD,02/11/2023,PE154203,23387.86,0.00,Public Conveniences - Maintenance and Cleaning 2023/24,Other Establishments
Wyre Council,http://opendatacommunities.org/doc/district-council/wyre,29/11/2023,Finance,Collection Fund Revenue Accts,138A,LANCASHIRE COUNTY COUNCIL,28/11/2023,WPST00126282,6061941.00,0.00,LCC 23/24 Council tax,Other Local Authorities
Wyre Council,http://opendatacommunities.org/doc/district-council/wyre,29/11/2023,Finance,Collection Fund Revenue Accts,138A,LANCASHIRE FIRE AUTHORITY,28/11/2023,WPST00126283,297674.00,0.00,LCC 22/23 Council tax surplus,Other Local Authorities
Wyre Council,http://opendatacommunities.org/doc/district-council/wyre,29/11/2023,Finance,Collection Fund Revenue Accts,138A,LANCASHIRE FIRE AUTHORITY,28/11/2023,WPST00126286,316703.00,0.00,Lancs Fire 23/24 Council tax,Other Local Authorities
Wyre Council,http://opendatacommunities.org/doc/district-council/wyre,29/11/2023,Finance,Collection Fund Revenue Accts,138A,,28/11/2023,WPST00126287,15190.00,0.00,Lanc fire 22/23 Council tax surplus,Other Local Authorities
Wyre Council,http://opendatacommunities.org/doc/district-council/wyre,29/11/2023,Finance,Collection Fund Revenue Accts,138A,LANCASHIRE FIRE AUTHORITY,28/11/2023,WPST00126288,25569.00,0.00,Lancs Fire 23/24 business rates,Other Local Authorities
Wyre Council,http://opendatacommunities.org/doc/district-council/wyre,29/11/2023,Finance,Collection Fund Revenue Accts,138A,LANCASHIRE COUNTY COUNCIL,28/11/2023,WPST00126284,230119.00,0.00,LCC 23/24 business rates,Other Local Authorities
Wyre Council,http://opendatacommunities.org/doc/district-council/wyre,29/11/2023,Finance,Collection Fund Revenue Accts,138A,,27/11/2023,WPST00126101,967972.00,0.00,PCCL 23/24 Council Tax,Other Local Authorities
Wyre Council,http://opendatacommunities.org/doc/district-council/wyre,29/11/2023,Finance,Collection Fund Revenue Accts,138A,,27/11/2023,WPST00126102,46481.00,0.00,PCCL - 22/23 Council Tax Surplus,Other Local Authorities
Wyre Council,http://opendatacommunities.org/doc/district-council/wyre,29/11/2023,Resources,Cultural and Related Services,132A,Visual Print and Design Ltd,20/11/2023,RS154260,260.00,0.00,5 x The Mount History pull up banners Diff a/w on each,Other Materials
Wyre Council,http://opendatacommunities.org/doc/district-council/wyre,29/11/2023,People and Places,Cultural and Related Services,132A,GARRY CARR BUILDING SERVICES LTD,28/11/2023,PE154292,9798.00,0.00,"To carry out rub down of woodwork and re-paint windows, doors, gutters, rwps, fascias, and re paint masonry to plinth GF -  - all as per quotation below  1/. Power wash full building.  2/. Strip existing paint to 15 no. windows, 32 no. 6� x 6� support pos",Other Materials
Wyre Council,http://opendatacommunities.org/doc/district-council/wyre,29/11/2023,People and Places,Cultural and Related Services,132A,GARRY CARR BUILDING SERVICES LTD,27/11/2023,PE154264,1790.00,0.00,"All as per your quotation please carry out external painting of 2 no. pairs of entrance gates and 4 no. sections of railings to Mount Pavilion Grounds  1/. Prepare surfaces to remove rust, spot prime with Awatrol C.I.P. Primer, followed by 1no.       full",Other Materials
Wyre Council,http://opendatacommunities.org/doc/district-council/wyre,29/11/2023,People and Places,Cultural and Related Services,132A,SHARD SURFACING LTD,24/11/2023,PE154745,6153.32,0.00,Works to be carried out as your quotation 2023.237 of 19/09/2023  Please liaise with Georgia Luckett any further details Materiials,Other Materials
Wyre Council,http://opendatacommunities.org/doc/district-council/wyre,29/11/2023,People and Places,Cultural and Related Services,132A,SHARD SURFACING LTD,24/11/2023,PE154745,1538.33,0.00,Works to be carried out as your quotation 2023.237 of 19/09/2023  Please liaise with Georgia Luckett any further details labour,Other Materials
Wyre Council,http://opendatacommunities.org/doc/district-council/wyre,29/11/2023,People and Places,Parking Services,133F,Park Now Limited,27/11/2023,PE154442,714.49,0.00,RingGo Fees for 1 April 2023 - 31 March 2024 - service charges - text summary charges - text reminder charges - card processing fess,Other Parking Fees and Commission
Wyre Council,http://opendatacommunities.org/doc/district-council/wyre,29/11/2023,People and Places,Parking Services,133F,M J Wilkinson,27/11/2023,PE154790,168.88,0.00,Hitachi ZX26 Excavator Time sheet 1115316/10/23,"Paths, Roads and Car Park Mtnce Annual"
Wyre Council,http://opendatacommunities.org/doc/district-council/wyre,29/11/2023,People and Places,Parking Services,133F,M J Wilkinson,27/11/2023,PE154790,152.08,0.00,Bomag BW120 RollerTime sheet 1115216/10/23,"Paths, Roads and Car Park Mtnce Annual"
Wyre Council,http://opendatacommunities.org/doc/district-council/wyre,29/11/2023,People and Places,Parking Services,133F,M J Wilkinson,27/11/2023,PE154790,26.41,0.00,Delivery Charge ZX26,"Paths, Roads and Car Park Mtnce Annual"
Wyre Council,http://opendatacommunities.org/doc/district-council/wyre,29/11/2023,People and Places,Parking Services,133F,M J Wilkinson,27/11/2023,PE154790,26.41,0.00,Collection Charge ZX26,"Paths, Roads and Car Park Mtnce Annual"
Wyre Council,http://opendatacommunities.org/doc/district-council/wyre,29/11/2023,People and Places,Parking Services,133F,M J Wilkinson,27/11/2023,PE154790,26.41,0.00,Delivery Charge TV1200 Roller,"Paths, Roads and Car Park Mtnce Annual"
Wyre Council,http://opendatacommunities.org/doc/district-council/wyre,29/11/2023,People and Places,Parking Services,133F,M J Wilkinson,27/11/2023,PE154790,26.41,0.00,Collection Charge  TV1200 Roller,"Paths, Roads and Car Park Mtnce Annual"
Wyre Council,http://opendatacommunities.org/doc/district-council/wyre,29/11/2023,People and Places,Parking Services,133F,George Hewitt Fabrications,27/11/2023,PE154805,400.00,0.00,"Straightening 6 overhead barriers, welding up and replacing ends @ 400","Paths, Roads and Car Park Mtnce Annual"
Wyre Council,http://opendatacommunities.org/doc/district-council/wyre,29/11/2023,People and Places,Parking Services,133F,George Hewitt Fabrications,27/11/2023,PE154805,800.00,0.00,New 7.2m Overhead barrier 800,"Paths, Roads and Car Park Mtnce Annual"
Wyre Council,http://opendatacommunities.org/doc/district-council/wyre,29/11/2023,Finance,Corporate and Democratic Core,131A,LANCASHIRE COUNTY COUNCIL,01/11/2023,WPST00123743,98977.23,0.00,Compensatory Added Years pension,Pension Increase Act Payments
Wyre Council,http://opendatacommunities.org/doc/district-council/wyre,29/11/2023,People and Places,Cultural and Related Services,132A,PPL PRS Ltd,22/11/2023,PE154701,616.78,0.00,PRS Marine Hall - July - Sept 2023,Performing Rights
Wyre Council,http://opendatacommunities.org/doc/district-council/wyre,29/11/2023,People and Places,Cultural and Related Services,132A,PPL PRS Ltd,22/11/2023,PE154702,593.36,0.00,PRS Marine Hall - Apr - July 2023,Performing Rights
Wyre Council,http://opendatacommunities.org/doc/district-council/wyre,29/11/2023,People and Places,Support Services,135B,Allstar Business Solutions LTD,09/11/2023,PE154199,422.22,0.00,Fuel to 30/10/23,Petrol
Wyre Council,http://opendatacommunities.org/doc/district-council/wyre,29/11/2023,People and Places,Support Services,135B,Allstar Business Solutions LTD,23/11/2023,PE154630,157.69,0.00,Fuel to 14/11/23,Petrol
Wyre Council,http://opendatacommunities.org/doc/district-council/wyre,29/11/2023,People and Places,Cultural and Related Services,132A,M D Security,06/11/2023,PE154183,50.00,0.00,Rossall Tower: Carried out emergency light test on whole site,Planned Building Maintenance
Wyre Council,http://opendatacommunities.org/doc/district-council/wyre,29/11/2023,People and Places,Cultural and Related Services,132A,M D Security,06/11/2023,PE154182,60.00,0.00,Marine Hall: Emergency light test with info given from site to location of lights and test points,Planned Building Maintenance
Wyre Council,http://opendatacommunities.org/doc/district-council/wyre,29/11/2023,People and Places,Environmental Services,132B,M D Security,27/11/2023,PE154720,50.00,0.00,Chatsworth Depot: Carried out emeergecny light test on whole site for November 23,Planned Building Maintenance
Wyre Council,http://opendatacommunities.org/doc/district-council/wyre,29/11/2023,People and Places,Planning and Development Servs,132C,M D Security,27/11/2023,PE154721,60.00,0.00,Copse Rd Depot inc transport depot: Emergency light test on whole site November 23,Planned Building Maintenance
Wyre Council,http://opendatacommunities.org/doc/district-council/wyre,29/11/2023,People and Places,Cultural and Related Services,132A,M D Security,22/11/2023,PE154574,50.00,0.00,Marsh Mill: Emergency ligh test on whole site for Nov 23,Planned Building Maintenance
Wyre Council,http://opendatacommunities.org/doc/district-council/wyre,29/11/2023,People and Places,Cultural and Related Services,132A,M D Security,22/11/2023,PE154573,60.00,0.00,Marine Hall: Emergency light test with info given from sute to location of lights and test points for Nov 23,Planned Building Maintenance
Wyre Council,http://opendatacommunities.org/doc/district-council/wyre,29/11/2023,People and Places,Cultural and Related Services,132A,M D Security,22/11/2023,PE154571,50.00,0.00,Mount Pavilion and Studios: Carried out emergency light test to whole sites for Nov 23,Planned Building Maintenance
Wyre Council,http://opendatacommunities.org/doc/district-council/wyre,29/11/2023,People and Places,Cultural and Related Services,132A,M D Security,22/11/2023,PE154572,50.00,0.00,Riverside Rangers Room: Emergency light test to whole site for Nov 23,Planned Building Maintenance
Wyre Council,http://opendatacommunities.org/doc/district-council/wyre,29/11/2023,People and Places,Cultural and Related Services,132A,M D Security,22/11/2023,PE154575,50.00,0.00,Little Thornton Theatre: Emergency light test on whole site for Nov 23,Planned Building Maintenance
Wyre Council,http://opendatacommunities.org/doc/district-council/wyre,29/11/2023,People and Places,Central Services to the Public,131C,COWLEY FIRE,07/11/2023,PE153907,285.63,0.00,Teanlow Day Centre: service fire equipment,Planned Building Maintenance
Wyre Council,http://opendatacommunities.org/doc/district-council/wyre,29/11/2023,People and Places,Cultural and Related Services,132A,COWLEY FIRE,07/11/2023,PE153523,660.68,0.00,Marine Hall - service fire equipment,Planned Building Maintenance
Wyre Council,http://opendatacommunities.org/doc/district-council/wyre,29/11/2023,People and Places,Cultural and Related Services,132A,COWLEY FIRE,07/11/2023,PE153881,60.31,0.00,Munt Pavilion - service fire equipment,Planned Building Maintenance
Wyre Council,http://opendatacommunities.org/doc/district-council/wyre,29/11/2023,People and Places,Cultural and Related Services,132A,COWLEY FIRE,07/11/2023,PE153880,66.32,0.00,Mount Cottages - service fire equipment,Planned Building Maintenance
Wyre Council,http://opendatacommunities.org/doc/district-council/wyre,29/11/2023,People and Places,Support Services,135B,John Carney,10/11/2023,PE154410,380.00,0.00,"Civic Centre, Main Block: For cleaning out all gutters, lead valleys and valleys to above.  Unblocking outlets, clearing off all leaves and debris to all buildings",Planned Building Maintenance
Wyre Council,http://opendatacommunities.org/doc/district-council/wyre,29/11/2023,People and Places,Planning and Development Servs,132C,David Broschomb,28/11/2023,PE154855,2000.00,0.00,Charted Surveyors Dabro Associates have been instructed to carry out an RICS Red Book valuation of the Councils interest in Fleetwood Golf Club to inform the Councils ongoing consideration of a sale to the Club.,Planned Building Maintenance
Wyre Council,http://opendatacommunities.org/doc/district-council/wyre,29/11/2023,Finance,Central Services to the Public,131C,SANTANDER,08/11/2023,WPST00124515,755.54,0.00,06/11/23 Santander charges Oct 23,Plastic Cards Processing Fees
Wyre Council,http://opendatacommunities.org/doc/district-council/wyre,29/11/2023,People and Places,Support Services,135B,GB  Sport & Leisure UK LTD,16/11/2023,PE154582,800.00,0.00,SP-01-061 Curve Cradle Seat � Coloured � Flat Packed,Playground Equipment
Wyre Council,http://opendatacommunities.org/doc/district-council/wyre,29/11/2023,People and Places,Support Services,135B,GB  Sport & Leisure UK LTD,16/11/2023,PE154582,705.00,0.00,SP-01-024A 1.0m Birds Nest Seat � Cantilever,Playground Equipment
Wyre Council,http://opendatacommunities.org/doc/district-council/wyre,29/11/2023,People and Places,Support Services,135B,GB  Sport & Leisure UK LTD,16/11/2023,PE154582,1331.00,0.00,SP-01-014A 1.2m Birds Nest Seat Rosette� A Frame,Playground Equipment
Wyre Council,http://opendatacommunities.org/doc/district-council/wyre,29/11/2023,People and Places,Support Services,135B,GB  Sport & Leisure UK LTD,16/11/2023,PE154582,270.00,0.00,SP-36-029 Prosafe Gate Motor Only,Playground Equipment
Wyre Council,http://opendatacommunities.org/doc/district-council/wyre,29/11/2023,People and Places,Support Services,135B,GB  Sport & Leisure UK LTD,16/11/2023,PE154582,232.95,0.00,Delivery,Playground Equipment
Wyre Council,http://opendatacommunities.org/doc/district-council/wyre,29/11/2023,Resources,Support Services,135B,BLACKPOOL AND FYLDE COLLEGE,22/11/2023,RS154078,3500.00,0.00,Chris Webster - Construction HND,Post Entry/Professional Training
Wyre Council,http://opendatacommunities.org/doc/district-council/wyre,29/11/2023,Resources,Support Services,135B,INST. Cemetery & Crematorium Management,07/11/2023,RS154294,502.00,0.00,Education Module for Louise Phillips,Post Entry/Professional Training
Wyre Council,http://opendatacommunities.org/doc/district-council/wyre,29/11/2023,Resources,Support Services,135B,INST. Cemetery & Crematorium Management,07/11/2023,RS154294,93.00,0.00,Education Module for Louise Phillips,Post Entry/Professional Training
Wyre Council,http://opendatacommunities.org/doc/district-council/wyre,29/11/2023,Resources,Central Services to the Public,131C,Critiqom LTD,07/11/2023,RS154270,264.21,0.00,IQ post - Electoral Services Oct 23,Postage
Wyre Council,http://opendatacommunities.org/doc/district-council/wyre,29/11/2023,Resources,Support Services,135B,Critiqom LTD,07/11/2023,RS154270,288.90,0.00,IQ Post - Planning Services Oct 23,Postage
Wyre Council,http://opendatacommunities.org/doc/district-council/wyre,29/11/2023,Resources,Housing General Fund,134A,Critiqom LTD,07/11/2023,RS154270,29.77,0.00,Benefit Notifications Services Oct 23,Postage
Wyre Council,http://opendatacommunities.org/doc/district-council/wyre,29/11/2023,Resources,Housing General Fund,134A,Critiqom LTD,07/11/2023,RS154271,134.60,0.00,Benefit Notifications Postage Oct 23,Postage
Wyre Council,http://opendatacommunities.org/doc/district-council/wyre,29/11/2023,Resources,Central Services to the Public,131C,Critiqom LTD,07/11/2023,RS154271,1942.47,0.00,Daily Bills Postage Oct 23,Postage
Wyre Council,http://opendatacommunities.org/doc/district-council/wyre,29/11/2023,Resources,Central Services to the Public,131C,Critiqom LTD,07/11/2023,RS154270,429.39,0.00,Daily Bills Services Oct 23,Postage
Wyre Council,http://opendatacommunities.org/doc/district-council/wyre,29/11/2023,Resources,Cultural and Related Services,132A,Critiqom LTD,07/11/2023,RS154270,1.83,0.00,IQ Post - Marine Hall Services Oct 23,Postage
Wyre Council,http://opendatacommunities.org/doc/district-council/wyre,29/11/2023,Resources,Support Services,135B,Critiqom LTD,09/11/2023,RS154270,3.69,0.00,NNDR Reminders Services Oct 23,Postage
Wyre Council,http://opendatacommunities.org/doc/district-council/wyre,29/11/2023,Resources,Support Services,135B,Critiqom LTD,09/11/2023,RS154270,103.18,0.00,Ctax Summons Services Oct 23,Postage
Wyre Council,http://opendatacommunities.org/doc/district-council/wyre,29/11/2023,Resources,Support Services,135B,Critiqom LTD,09/11/2023,RS154270,2.69,0.00,NNDR Summons Services Oct 23,Postage
Wyre Council,http://opendatacommunities.org/doc/district-council/wyre,29/11/2023,Resources,Support Services,135B,Critiqom LTD,09/11/2023,RS154270,740.75,0.00,IQ post - Off Serv Admin Services Oct 23,Postage
Wyre Council,http://opendatacommunities.org/doc/district-council/wyre,29/11/2023,Resources,Support Services,135B,Critiqom LTD,09/11/2023,RS154270,0.62,0.00,IQ post - Recovery Services Oct 23,Postage
Wyre Council,http://opendatacommunities.org/doc/district-council/wyre,29/11/2023,Resources,Support Services,135B,Critiqom LTD,09/11/2023,RS154271,557.09,0.00,Council Tax Reminders Postage Oct 23,Postage
Wyre Council,http://opendatacommunities.org/doc/district-council/wyre,29/11/2023,Resources,Support Services,135B,Critiqom LTD,09/11/2023,RS154271,25.88,0.00,NNDR Reminders Postage Oct 23,Postage
Wyre Council,http://opendatacommunities.org/doc/district-council/wyre,29/11/2023,Resources,Support Services,135B,Critiqom LTD,09/11/2023,RS154271,312.05,0.00,Council Tax Summons Postage Oct 23,Postage
Wyre Council,http://opendatacommunities.org/doc/district-council/wyre,29/11/2023,Resources,Support Services,135B,Critiqom LTD,09/11/2023,RS154271,10.13,0.00,NNDR Summons Postage Oct 23,Postage
Wyre Council,http://opendatacommunities.org/doc/district-council/wyre,29/11/2023,Resources,Support Services,135B,Critiqom LTD,09/11/2023,RS154270,162.16,0.00,Ctax Reminders Services Oct 23,Postage
Wyre Council,http://opendatacommunities.org/doc/district-council/wyre,29/11/2023,Resources,Support Services,135B,Critiqom LTD,17/11/2023,RS154628,10.00,0.00,Data Quality Infractions Oct 23,Postage
Wyre Council,http://opendatacommunities.org/doc/district-council/wyre,29/11/2023,Resources,Support Services,135B,Critiqom LTD,07/11/2023,RS154270,959.22,0.00,IQ post - CC Services Oct 23,Postage
Wyre Council,http://opendatacommunities.org/doc/district-council/wyre,29/11/2023,People and Places,Cultural and Related Services,132A,Bates Office Services Ltd,22/11/2023,PE154694,225.00,0.00,SECOND CLASS STAMPS BOOK OF 100,Postage
Wyre Council,http://opendatacommunities.org/doc/district-council/wyre,29/11/2023,People and Places,Environmental Services,132B,Preston City Council,02/11/2023,PE154046,9.70,0.00,60 black print sets of White -yellow carbonated as a pad . for Mandy Seddon,Printing
Wyre Council,http://opendatacommunities.org/doc/district-council/wyre,29/11/2023,Finance,Housing General Fund,134A,,08/11/2023,WPST00124516,9100.00,0.00,06/11/23 HB PAYMENTS Ukraine,Private Contractors
Wyre Council,http://opendatacommunities.org/doc/district-council/wyre,29/11/2023,Finance,Housing General Fund,134A,,08/11/2023,WPST00124517,700.00,0.00,06/11/23 HB PAYMENTS Ukraine,Private Contractors
Wyre Council,http://opendatacommunities.org/doc/district-council/wyre,29/11/2023,Finance,Housing General Fund,134A,,28/11/2023,WPST00126337,700.00,0.00,24/11/23 HB PAYMENTS Ukraine,Private Contractors
Wyre Council,http://opendatacommunities.org/doc/district-council/wyre,29/11/2023,People and Places,Public Transport,133G,Wyre Marine Services,15/11/2023,PE154538,17370.00,0.00,"Knott End Ferry Service Schedule of  payments Oct 2023 - April 2024 12 Oct - 11 Nov  - 9,518.33 12 Nov - 11 Dec  - 9,518.33 12 Dec - 11 Jan  - 9,518.33 12 Jan - 11 Feb  - 9,518.33 12 Feb - 11 Mar  - 9,518.34 12 Mar - 11 Apr  - 9,518.34",Private Contractors
Wyre Council,http://opendatacommunities.org/doc/district-council/wyre,29/11/2023,People and Places,Public Transport,133G,Wyre Marine Services,15/11/2023,PE154538,8685.00,0.00,Fleetwood - Knott End Ferry Service Schedule of payments April - Sep 2023  12 Apr 2023 - 11 May 2023 = 9518.33 12 May 2023 - 11 Jun 2023 = 9518.33 12 Jun 2023 - 11 Jul 2023 = 9518.33 12 Jul 2023 - 11 Aug  2023 = 9518.33 12 Aug 2023 - 11 Sep 2023 = 95,Private Contractors
Wyre Council,http://opendatacommunities.org/doc/district-council/wyre,29/11/2023,People and Places,Parking Services,133F,NSL Services Group,08/11/2023,PE154360,4682.80,0.00,Provide enforcement officer for Wyre Council car parks - 1 April 2023 - 31 March 2024,Private Contractors
Wyre Council,http://opendatacommunities.org/doc/district-council/wyre,29/11/2023,People and Places,Environmental Services,132B,A & D DRAIN SERVICES LTD,08/11/2023,PE154300,900.00,0.00,To attend site at Victoria Rd E on 09/10/23 to jet clean surface water culvert and carry out cctv survey.  Watercourse required dredging to reduce water level in system,Private Contractors
Wyre Council,http://opendatacommunities.org/doc/district-council/wyre,29/11/2023,Resources,Housing General Fund,134A,Salvation Army,14/11/2023,RS154441,19638.61,0.00,Refugee resettlement support Q2 2023/4,Private Contractors
Wyre Council,http://opendatacommunities.org/doc/district-council/wyre,29/11/2023,People and Places,Environmental Services,132B,AMBER CONSULTANCY (MARPLE) LTD,29/11/2023,PE154886,860.00,0.00,"for  100 D rated food safety and hygiene inspections to include allergen management , completion of inspection documentation , letters for 0,1 and 2 rather premises where necessary , to input visit on the council data base system and communication of any",Private Contractors
Wyre Council,http://opendatacommunities.org/doc/district-council/wyre,29/11/2023,Resources,Planning and Development Servs,132C,Lancashire County Council,10/11/2023,RS154405,4250.00,0.00,REPF Business Planning Day,Project Costs
Wyre Council,http://opendatacommunities.org/doc/district-council/wyre,29/11/2023,Resources,Planning and Development Servs,132C,Preston City Council,02/11/2023,RS154197,62.17,0.00,3 x generic consultation bus stops,Project Costs
Wyre Council,http://opendatacommunities.org/doc/district-council/wyre,29/11/2023,Resources,Planning and Development Servs,132C,Preston City Council,02/11/2023,RS154197,48.89,0.00,1000 x A5 1pp - Community Matters carers drop in leaflet,Project Costs
Wyre Council,http://opendatacommunities.org/doc/district-council/wyre,29/11/2023,People and Places,Planning and Development Servs,132C,Preston City Council,02/11/2023,PE154046,755.78,0.00,15 x pull up banners for Fleetwood consultation,Project Costs
Wyre Council,http://opendatacommunities.org/doc/district-council/wyre,29/11/2023,People and Places,Planning and Development Servs,132C,MSG Media Limited,02/11/2023,PE154208,375.00,0.00,"Cleveleys Transport StudyLINK MAG - September 2023 10,000 A5 D/SLINK MAG - September 2023 10,000 A5 Leaflets FY5 distribution",Project Costs
Wyre Council,http://opendatacommunities.org/doc/district-council/wyre,29/11/2023,People and Places,Planning and Development Servs,132C,MSG Media Limited,02/11/2023,PE154208,150.00,0.00,"Cleveleys Transport StudyLINK MAG - September 2023 10,000 A5 D/SLINK MAG - September 2023 10,000 A5 Leaflets FY5 distribution",Project Costs
Wyre Council,http://opendatacommunities.org/doc/district-council/wyre,29/11/2023,People and Places,Planning and Development Servs,132C,Relandscape LTD,08/11/2023,PE154326,1239.00,0.00,"Works to Cottam Hall Masterplan, Poulton.    Arranged by Christina Marginson",Project Costs
Wyre Council,http://opendatacommunities.org/doc/district-council/wyre,29/11/2023,People and Places,Planning and Development Servs,132C,IBI GROUP UK LTD,13/11/2023,PE154346,-7600.00,0.00,Offsets PE153862: Development appraisal,Project Costs
Wyre Council,http://opendatacommunities.org/doc/district-council/wyre,29/11/2023,People and Places,Planning and Development Servs,132C,IBI GROUP UK LTD,13/11/2023,PE153862,7600.00,0.00,Credited PE154346: Development appraisal,Project Costs
Wyre Council,http://opendatacommunities.org/doc/district-council/wyre,29/11/2023,People and Places,Planning and Development Servs,132C,IBI GROUP UK LTD,13/11/2023,PE154423,9600.00,0.00,E14: Relevant feasibility studies � Fleetwood Waterfront Leisure Masterplan fees,Project Costs
Wyre Council,http://opendatacommunities.org/doc/district-council/wyre,29/11/2023,People and Places,Cultural and Related Services,132A,PARTICIPANT UK LTD,08/11/2023,PE154349,1090.00,0.00,Booking and system fees for Easter and Summer and Xmas 2023,Project Costs
Wyre Council,http://opendatacommunities.org/doc/district-council/wyre,29/11/2023,People and Places,Cultural and Related Services,132A,Healthy Heads Education Ltd,01/11/2023,PE153860,1000.00,0.00,HAF Summerfest smoothie bike delivery and materials - Healthy Heads,Project Costs
Wyre Council,http://opendatacommunities.org/doc/district-council/wyre,29/11/2023,People and Places,Cultural and Related Services,132A,Fordstone General store,03/11/2023,PE154163,1811.25,0.00,Summer HAF Food 4 weeks for Over Wyre Sports Centre,Project Costs
Wyre Council,http://opendatacommunities.org/doc/district-council/wyre,29/11/2023,People and Places,Cultural and Related Services,132A,Fordstone General store,23/11/2023,PE154711,375.00,0.00,Easter HAF Food  - Over Wyre Sports Centre,Project Costs
Wyre Council,http://opendatacommunities.org/doc/district-council/wyre,29/11/2023,People and Places,Planning and Development Servs,132C,Parker Wilson Sustain LLP,28/11/2023,PE154131,2360.00,0.00,To carry out full M and E survey of Marine Hall and provide recommendations and budget costs for improvements and bringing up to current standards all as per your quote Part of Levelling Up Feasibility  (Waterfront scheme) E14/SPF14 Sara O Donez,Project Costs
Wyre Council,http://opendatacommunities.org/doc/district-council/wyre,29/11/2023,People and Places,Cultural and Related Services,132A,Sport S Cool Limited,01/11/2023,PE154192,8841.00,0.00,Sportscool Dance - Summer HAF Club,Project Costs
Wyre Council,http://opendatacommunities.org/doc/district-council/wyre,29/11/2023,People and Places,Planning and Development Servs,132C,Blackpool Council,29/11/2023,PE154871,900.00,0.00,Full pg in Destination Blackpool - Fleetwood Market,Promotions - General
Wyre Council,http://opendatacommunities.org/doc/district-council/wyre,29/11/2023,People and Places,Planning and Development Servs,132C,A T Graphics LTD,27/11/2023,PE154839,360.00,0.00,Coach Tours annual Tour Planners Guide 2024,Promotions - General
Wyre Council,http://opendatacommunities.org/doc/district-council/wyre,29/11/2023,People and Places,Planning and Development Servs,132C,A T Graphics LTD,03/11/2023,PE154239,360.00,0.00,November issue of Coach Tours UK,Promotions - General
Wyre Council,http://opendatacommunities.org/doc/district-council/wyre,29/11/2023,People and Places,Planning and Development Servs,132C,Lancashire And North West Magazine,09/11/2023,PE154374,895.00,0.00,Full page for December issue,Promotions - General
Wyre Council,http://opendatacommunities.org/doc/district-council/wyre,29/11/2023,People and Places,Planning and Development Servs,132C,Preston City Council,29/11/2023,PE154870,195.00,0.00,5k double sided leaflets for FM to advertise Halloween and Christmas events,Promotions - General
Wyre Council,http://opendatacommunities.org/doc/district-council/wyre,29/11/2023,People and Places,Environmental Services,132B,Visual Print and Design Ltd,29/11/2023,PE154842,3675.00,0.00,"59,500 Waste Leaflet 2023-2024 - Quotation No 20460 16/10/2023",Promotions - General
Wyre Council,http://opendatacommunities.org/doc/district-council/wyre,29/11/2023,People and Places,Planning and Development Servs,132C,Medley Green Farm Ltd,27/11/2023,PE154646,1051.00,0.00,Reindeer hire for FM Christmas event,Promotions - General
Wyre Council,http://opendatacommunities.org/doc/district-council/wyre,29/11/2023,People and Places,Planning and Development Servs,132C,KW Publishing LTD,07/11/2023,PE153724,650.00,0.00,Be inspired,Promotions - General
Wyre Council,http://opendatacommunities.org/doc/district-council/wyre,29/11/2023,People and Places,Cultural and Related Services,132A,Blackpool Entertainment Company Limited,15/11/2023,PE154497,600.00,0.00,Europa Halo sponsorship (arranged via JellyMedia) 1 x 30 sec video played throughout event intermissions on site and on livestream A5 leaflets to each attendee at registration,Promotions - General
Wyre Council,http://opendatacommunities.org/doc/district-council/wyre,29/11/2023,People and Places,Environmental Services,132B,Key Engineering & Hygiene Supplies LTD,29/11/2023,PE154881,40.05,0.00,"EL170DDR Chukka Boots @ 40.05 each 2 no size 71 no size 82 no size 92 no size 10Delivery to Wyre Council, Copse Road Depot, Copse Road Depot, Copse Road, Fleetwood, FY7 6RP",Protective Clothing
Wyre Council,http://opendatacommunities.org/doc/district-council/wyre,29/11/2023,People and Places,Support Services,135B,Key Engineering & Hygiene Supplies LTD,29/11/2023,PE154881,99.90,0.00,Urgent Supply and delivery for Goliath Boots as follows:-SDR10CSI Chukka Boots @ 49.95 each 1 no size 71 no size 82 no size 92 no size 10,Protective Clothing
Wyre Council,http://opendatacommunities.org/doc/district-council/wyre,29/11/2023,People and Places,Support Services,135B,Key Engineering & Hygiene Supplies LTD,09/11/2023,PE154369,440.44,0.00,"Supply as per quotation 20962Clothing Delivery to Wyre Council, Copse Road Depot, Copse Road, Fleetwood, FY7 6RP",Protective Clothing
Wyre Council,http://opendatacommunities.org/doc/district-council/wyre,29/11/2023,People and Places,Environmental Services,132B,Key Engineering & Hygiene Supplies LTD,09/11/2023,PE154369,566.24,0.00,"Supply as per quotation 20962Clothing Delivery to Wyre Council, Copse Road Depot, Copse Road, Fleetwood, FY7 6RP",Protective Clothing
Wyre Council,http://opendatacommunities.org/doc/district-council/wyre,29/11/2023,People and Places,Support Services,135B,Key Engineering & Hygiene Supplies LTD,09/11/2023,PE154369,99.90,0.00,"Supply as per quotation 20962Clothing Delivery to Wyre Council, Copse Road Depot, Copse Road, Fleetwood, FY7 6RP",Protective Clothing
Wyre Council,http://opendatacommunities.org/doc/district-council/wyre,29/11/2023,People and Places,Environmental Services,132B,Key Engineering & Hygiene Supplies LTD,09/11/2023,PE154369,28.18,0.00,"Supply as per quotation 20962Clothing Delivery to Wyre Council, Copse Road Depot, Copse Road, Fleetwood, FY7 6RP",Protective Clothing
Wyre Council,http://opendatacommunities.org/doc/district-council/wyre,29/11/2023,People and Places,Housing General Fund,134A,Key Engineering & Hygiene Supplies LTD,09/11/2023,PE154369,28.18,0.00,"Supply as per quotation 20962Clothing Delivery to Wyre Council, Copse Road Depot, Copse Road, Fleetwood, FY7 6RP",Protective Clothing
Wyre Council,http://opendatacommunities.org/doc/district-council/wyre,29/11/2023,People and Places,Housing General Fund,134A,Key Engineering & Hygiene Supplies LTD,01/11/2023,PE154161,15.68,0.00,Clothing as per quotation 20969,Protective Clothing
Wyre Council,http://opendatacommunities.org/doc/district-council/wyre,29/11/2023,People and Places,Environmental Services,132B,Key Engineering & Hygiene Supplies LTD,23/11/2023,PE154689,240.30,0.00,"EL170DDR Chukka Boots @ 40.05 each  2 no size 7 1 no size 8 2 no size 9 2 no size 10  Delivery to Wyre Council, Copse Road Depot, Copse Road Depot, Copse Road, Fleetwood, FY7 6RP",Protective Clothing
Wyre Council,http://opendatacommunities.org/doc/district-council/wyre,29/11/2023,People and Places,Support Services,135B,Key Engineering & Hygiene Supplies LTD,23/11/2023,PE154689,199.80,0.00,Urgent Supply and delivery for Goliath Boots as follows:-  SDR10CSI Chukka Boots @ 49.95 each  1 no size 7 1 no size 8 2 no size 9 2 no size 10,Protective Clothing
Wyre Council,http://opendatacommunities.org/doc/district-council/wyre,29/11/2023,People and Places,Support Services,135B,Key Engineering & Hygiene Supplies LTD,22/11/2023,PE154732,85.55,0.00,"Supply as per quotation 20962Clothing Delivery to Wyre Council, Copse Road Depot, Copse Road, Fleetwood, FY7 6RP",Protective Clothing
Wyre Council,http://opendatacommunities.org/doc/district-council/wyre,29/11/2023,People and Places,Support Services,135B,Key Engineering & Hygiene Supplies LTD,22/11/2023,PE154699,167.09,0.00,"URGENT DELIVERY OF CLOTHING - QUOTE 21192Delivery to Wyre Council, Civic Centre, Breck Road, Poulton, FY6 7PU.  FAO John Bettle",Protective Clothing
Wyre Council,http://opendatacommunities.org/doc/district-council/wyre,29/11/2023,People and Places,Support Services,135B,Malcolm McCulloch & Sons LTD,15/11/2023,PE154504,69.00,0.00,Waterproof coverall,Protective Clothing
Wyre Council,http://opendatacommunities.org/doc/district-council/wyre,29/11/2023,People and Places,Support Services,135B,Malcolm McCulloch & Sons LTD,15/11/2023,PE154504,79.95,0.00,Overalls,Protective Clothing
Wyre Council,http://opendatacommunities.org/doc/district-council/wyre,29/11/2023,People and Places,Cultural and Related Services,132A,HUWS GRAY LTD,06/11/2023,PE154242,79.92,0.00,1 x safety boots for Colin,Protective Clothing
Wyre Council,http://opendatacommunities.org/doc/district-council/wyre,29/11/2023,People and Places,Environmental Services,132B,Amazon Business,08/11/2023,PE154317,29.97,0.00,GlovesAmanda Seddon,Protective Clothing
Wyre Council,http://opendatacommunities.org/doc/district-council/wyre,29/11/2023,People and Places,Environmental Services,132B,Key Engineering & Hygiene Supplies LTD,10/11/2023,PE154416,579.00,0.00,"Supply 30 boxes of green refuse bags18x29x39Deliver to Wyre Council, Copse Road Depot, Copse Road, Fleetwood, FY7 6RP","Provision of Bins, Boxes and Sacks"
Wyre Council,http://opendatacommunities.org/doc/district-council/wyre,29/11/2023,People and Places,Environmental Services,132B,Key Engineering & Hygiene Supplies LTD,27/11/2023,PE154820,241.50,0.00,"Supply 10 boxes of Clear Goliath bagsDelivery to Wyre Council, Copse Road Depot, Copse Road, Fleetwood, FY7 6RP","Provision of Bins, Boxes and Sacks"
Wyre Council,http://opendatacommunities.org/doc/district-council/wyre,29/11/2023,People and Places,Environmental Services,132B,Key Engineering & Hygiene Supplies LTD,22/11/2023,PE154690,883.00,0.00,"Supply 50 boxes of blue refuse bags, code BL09OCI @ 17.66 per box of 200Delivery to Wyre Council, Copse Road Depot, Copse Road, Fleetwood, FY7 6RP","Provision of Bins, Boxes and Sacks"
Wyre Council,http://opendatacommunities.org/doc/district-council/wyre,29/11/2023,People and Places,Environmental Services,132B,Veolia ES (UK) LTD,27/11/2023,PE154788,4977.81,0.00,Bin Provision,"Provision of Bins, Boxes and Sacks"
Wyre Council,http://opendatacommunities.org/doc/district-council/wyre,29/11/2023,People and Places,Support Services,135B,Preston City Council,09/11/2023,PE154363,82.20,0.00,x1 Cleveleys Market bus stop  x3 A4 1pp full colour on 6mm correx with holes top and bottom,Public Relations
Wyre Council,http://opendatacommunities.org/doc/district-council/wyre,29/11/2023,People and Places,Support Services,135B,Same Difference Arts Ltd,30/11/2023,PE154896,125.00,0.00,"Walkabout Acts for Marine Hall, Christmas Festive Weekend",Public Relations
Wyre Council,http://opendatacommunities.org/doc/district-council/wyre,29/11/2023,Resources,Housing General Fund,134A,VODAFONE LIMITED,22/11/2023,RS154547,12.00,0.00,Phone Charges 01/11/23 to 30/11/23,Purchase Furniture
Wyre Council,http://opendatacommunities.org/doc/district-council/wyre,29/11/2023,Resources,Support Services,135B,Amazon Business,29/11/2023,RS154673,9.99,0.00,"PATIKIL 6`` Privacy Sign, 6 Options Magnetic Adhesive Sign, Do Not Disturb/Out of Office/Come in Welcome/in a Meeting/Back Soon/Working Remotely, Black.",Purchase Furniture
Wyre Council,http://opendatacommunities.org/doc/district-council/wyre,29/11/2023,People and Places,Support Services,135B,CEETA Business Supplies Ltd,02/11/2023,PE154117,1251.73,0.00,Office furniture order for Planning Services,Purchase Furniture
Wyre Council,http://opendatacommunities.org/doc/district-council/wyre,29/11/2023,Resources,Housing General Fund,134A,NEC Software Solutions UK Limited,27/11/2023,RS154845,1750.00,0.00,DW / CRM 145270Supplier Software: Subsidy Audit 2022/23,Purchase of Tools or Equipment
Wyre Council,http://opendatacommunities.org/doc/district-council/wyre,29/11/2023,People and Places,Support Services,135B,Balmers GM LTD,06/11/2023,PE153670,1318.00,0.00,Chainsaw and pruner,Purchase of Tools or Equipment
Wyre Council,http://opendatacommunities.org/doc/district-council/wyre,29/11/2023,Resources,Housing General Fund,134A,Solon Security LTD,16/11/2023,RS154578,848.48,0.00,Payment of invoice SI23012759,Purchase of Tools or Equipment
Wyre Council,http://opendatacommunities.org/doc/district-council/wyre,29/11/2023,People and Places,Planning and Development Servs,132C,Gemco Service LTD,03/11/2023,PE154247,702.00,0.00,Contract Renewal November 2023* - Wyre Borough Council #110449,Purchase of Tools or Equipment
Wyre Council,http://opendatacommunities.org/doc/district-council/wyre,29/11/2023,People and Places,Environmental Services,132B,Aitch Tools & Fasteners LTD,17/11/2023,PE154636,51.60,0.00,Materials,Purchase of Tools or Equipment
Wyre Council,http://opendatacommunities.org/doc/district-council/wyre,29/11/2023,People and Places,Support Services,135B,Aitch Tools & Fasteners LTD,17/11/2023,PE154636,33.35,0.00,Materials,Purchase of Tools or Equipment
Wyre Council,http://opendatacommunities.org/doc/district-council/wyre,29/11/2023,People and Places,Cultural and Related Services,132A,HUWS GRAY LTD,06/11/2023,PE154241,17.46,0.00,Drill bits and auger,Purchase of Tools or Equipment
Wyre Council,http://opendatacommunities.org/doc/district-council/wyre,29/11/2023,People and Places,Environmental Services,132B,HUWS GRAY LTD,15/11/2023,PE154440,87.10,0.00,Lock and heavy duty bags  Street Cleansing,Purchase of Tools or Equipment
Wyre Council,http://opendatacommunities.org/doc/district-council/wyre,29/11/2023,Resources,Support Services,135B,Amazon Business,02/11/2023,RS154217,75.83,0.00,"Panasonic SC-HC200EB-K Compact Micro Hi-Fi with CD and Bluetooth, BlackPanasonic SC-HC200EB-K Compact Micro Hi-Fi with CD and Bluetooth, Black",Purchase of Tools or Equipment
Wyre Council,http://opendatacommunities.org/doc/district-council/wyre,29/11/2023,Resources,Support Services,135B,Amazon Business,13/11/2023,RS154216,10.79,0.00,Insurance for Panasonic SC-HC200EB-K,Purchase of Tools or Equipment
Wyre Council,http://opendatacommunities.org/doc/district-council/wyre,29/11/2023,People and Places,Planning and Development Servs,132C,Amazon Business,14/11/2023,PE154486,82.49,0.00,shredder heavy duty,Purchase of Tools or Equipment
Wyre Council,http://opendatacommunities.org/doc/district-council/wyre,29/11/2023,People and Places,Cultural and Related Services,132A,Pink Floydian,08/11/2023,PE154344,10000.00,0.00,Pink Floydian at Marine Hall 07/10/23 ticket sales,Refund of Ticket Sales to Ext Promoters
Wyre Council,http://opendatacommunities.org/doc/district-council/wyre,29/11/2023,People and Places,Cultural and Related Services,132A,THE WINDMILL PLAYERS,08/11/2023,PE154343,5616.00,0.00,Love on the Dole 11 to 14/10/23 Ticket Sales,Refund of Ticket Sales to Ext Promoters
Wyre Council,http://opendatacommunities.org/doc/district-council/wyre,29/11/2023,People and Places,Cultural and Related Services,132A,Camra Fleetwood Beer Festival,30/11/2023,PE154899,980.00,0.00,Ticket sales,Refund of Ticket Sales to Ext Promoters
Wyre Council,http://opendatacommunities.org/doc/district-council/wyre,29/11/2023,People and Places,Cultural and Related Services,132A,Blackpool Council,14/11/2023,PE154298,46.00,0.00,Increased recycling glass collection for event at Marine Hall,Refuse Collection
Wyre Council,http://opendatacommunities.org/doc/district-council/wyre,29/11/2023,People and Places,Planning and Development Servs,132C,Suez Recycling And Recovery UK LTD,06/11/2023,PE154222,1204.55,0.00,waste removal market suez,Refuse Collection
Wyre Council,http://opendatacommunities.org/doc/district-council/wyre,29/11/2023,People and Places,Planning and Development Servs,132C,Trident Rentals Ltd,20/11/2023,PE154424,489.67,0.00,rental compactor,Refuse Collection
Wyre Council,http://opendatacommunities.org/doc/district-council/wyre,29/11/2023,People and Places,Planning and Development Servs,132C,Trident Rentals Ltd,06/11/2023,PE154238,489.67,0.00,rental compactor,Refuse Collection
Wyre Council,http://opendatacommunities.org/doc/district-council/wyre,29/11/2023,People and Places,Planning and Development Servs,132C,Trident Rentals Ltd,06/11/2023,PE154236,489.67,0.00,rental compactor,Refuse Collection
Wyre Council,http://opendatacommunities.org/doc/district-council/wyre,29/11/2023,People and Places,Planning and Development Servs,132C,Trident Rentals Ltd,10/11/2023,PE154237,489.67,0.00,rental compactor,Refuse Collection
Wyre Council,http://opendatacommunities.org/doc/district-council/wyre,29/11/2023,People and Places,Planning and Development Servs,132C,Trident Rentals Ltd,13/11/2023,PE154412,489.67,0.00,rental compactor,Refuse Collection
Wyre Council,http://opendatacommunities.org/doc/district-council/wyre,29/11/2023,People and Places,Environmental Services,132B,Veolia ES (UK) LTD,27/11/2023,PE154788,194722.58,0.00,Domestic Waste Management Collection Contract 2023/24,Refuse Collection Contract
Wyre Council,http://opendatacommunities.org/doc/district-council/wyre,29/11/2023,People and Places,Environmental Services,132B,Veolia ES (UK) LTD,27/11/2023,PE154788,436.50,0.00,Pension Pass Through,Refuse Collection Contract
Wyre Council,http://opendatacommunities.org/doc/district-council/wyre,29/11/2023,People and Places,Environmental Services,132B,Calico Enterprise,03/11/2023,PE154143,2433.30,0.00,Bulky Matters Contract Calico 2023/24,Refuse Collection Contract
Wyre Council,http://opendatacommunities.org/doc/district-council/wyre,29/11/2023,People and Places,Environmental Services,132B,Calico Enterprise,03/11/2023,PE154142,10462.89,0.00,Bulky Matters Contract Calico 2023/24,Refuse Collection Contract
Wyre Council,http://opendatacommunities.org/doc/district-council/wyre,29/11/2023,People and Places,Environmental Services,132B,Calico Enterprise,03/11/2023,PE154142,2250.00,0.00,Bulky Matters Contract Calico 2023/24,Refuse Collection Contract
Wyre Council,http://opendatacommunities.org/doc/district-council/wyre,29/11/2023,Resources,Corporate and Democratic Core,131A,Road Safety Services LTD,22/11/2023,RS154726,450.00,0.00,REMEMBRANCE SUNDAY 12 NOVEMBER 2023 -  THORNTON ROAD SAFETY SERVICES,Remembrance Sunday
Wyre Council,http://opendatacommunities.org/doc/district-council/wyre,29/11/2023,Resources,Corporate and Democratic Core,131A,Road Safety Services LTD,22/11/2023,RS154727,650.00,0.00,Remembrance Sunday 2023 Traffic Management Scheme Road Closure - Fleetwood,Remembrance Sunday
Wyre Council,http://opendatacommunities.org/doc/district-council/wyre,29/11/2023,Resources,Corporate and Democratic Core,131A,Thornton Cleveleys Band,30/11/2023,RS154897,400.00,0.00,Fee for Thornton Cleveleys Brass Band to play at the Thornton Remembrance Sunday Service on 12 November 2023.,Remembrance Sunday
Wyre Council,http://opendatacommunities.org/doc/district-council/wyre,29/11/2023,Resources,Corporate and Democratic Core,131A,Corrys Limited,22/11/2023,RS154688,900.00,0.00,"To supply Wyre Council with PA systems for Remembrance Sunday 2023 at:�The Cenotaph, Four Lane Ends Thornton - Cleveleys�The Cenotaph, Market Place, Poulton",Remembrance Sunday
Wyre Council,http://opendatacommunities.org/doc/district-council/wyre,29/11/2023,People and Places,Public Transport,133G,Andrew Signs LTD,10/11/2023,PE154414,1200.45,0.00,name plates and polycarb sheeting,Repairs to Non-WBC Buildings
Wyre Council,http://opendatacommunities.org/doc/district-council/wyre,29/11/2023,Resources,Cultural and Related Services,132A,Lancashire County Council,27/11/2023,RS154228,313.00,0.00,"S171 licence 47354 - Pharos St, Fleetwood 17/10/23 to 18/10/23 plus amendment fee ext to 08/12/23",Responsive Building Maintenance
Wyre Council,http://opendatacommunities.org/doc/district-council/wyre,29/11/2023,People and Places,Cultural and Related Services,132A,M J Wilkinson,27/11/2023,PE154792,13.21,0.00,Collection charge Moorland Road,Responsive Building Maintenance
Wyre Council,http://opendatacommunities.org/doc/district-council/wyre,29/11/2023,People and Places,Cultural and Related Services,132A,M J Wilkinson,27/11/2023,PE154792,13.20,0.00,Collection chargeMoorland Road,Responsive Building Maintenance
Wyre Council,http://opendatacommunities.org/doc/district-council/wyre,29/11/2023,People and Places,Cultural and Related Services,132A,M J Wilkinson,27/11/2023,PE154792,13.21,0.00,Delivery chargeMoorland Road,Responsive Building Maintenance
Wyre Council,http://opendatacommunities.org/doc/district-council/wyre,29/11/2023,People and Places,Cultural and Related Services,132A,M J Wilkinson,27/11/2023,PE154792,13.21,0.00,Collection chargeKing Georges Playing Fields,Responsive Building Maintenance
Wyre Council,http://opendatacommunities.org/doc/district-council/wyre,29/11/2023,People and Places,Cultural and Related Services,132A,M J Wilkinson,27/11/2023,PE154792,13.21,0.00,Delivery chargeKing Georges Playing Fields,Responsive Building Maintenance
Wyre Council,http://opendatacommunities.org/doc/district-council/wyre,29/11/2023,People and Places,Cultural and Related Services,132A,M J Wilkinson,27/11/2023,PE154792,13.21,0.00,Collection chargeKing Georges Playing Fields,Responsive Building Maintenance
Wyre Council,http://opendatacommunities.org/doc/district-council/wyre,29/11/2023,People and Places,Cultural and Related Services,132A,M J Wilkinson,27/11/2023,PE154792,13.21,0.00,Delivery chargeMoorland Road,Responsive Building Maintenance
Wyre Council,http://opendatacommunities.org/doc/district-council/wyre,29/11/2023,People and Places,Cultural and Related Services,132A,M J Wilkinson,27/11/2023,PE154792,337.76,0.00,Hitachi ZX26 Excavator Time sheet 1110014/11/23,Responsive Building Maintenance
Wyre Council,http://opendatacommunities.org/doc/district-council/wyre,29/11/2023,People and Places,Cultural and Related Services,132A,M J Wilkinson,27/11/2023,PE154792,13.21,0.00,Delivery charge King Georges Playing Fields,Responsive Building Maintenance
Wyre Council,http://opendatacommunities.org/doc/district-council/wyre,29/11/2023,People and Places,Planning and Development Servs,132C,Pipescan LTD,06/11/2023,PE153667,855.00,0.00,Attendance to empty out 2 x wash down interceptors at Copse Rd Depot on 10/10/23,Responsive Building Maintenance
Wyre Council,http://opendatacommunities.org/doc/district-council/wyre,29/11/2023,People and Places,Support Services,135B,Academy Services (Lift Division) LTD,23/11/2023,PE154488,530.00,0.00,Civic Centre: Insurance report passenger goods lift 284-17837. The ram will fully retract before the car fully compresses its buffer and adjustments should be made to prevent this before further use  Supplied and fitted buffer extension to protect ram,Responsive Building Maintenance
Wyre Council,http://opendatacommunities.org/doc/district-council/wyre,29/11/2023,People and Places,Support Services,135B,Academy Services (Lift Division) LTD,27/11/2023,PE154700,276.25,0.00,Civic Centre: 06/11/23 attended site found lift unable to run when call plaved with the doors open c.o.p. Checked all equipment and traced fault to the timer pcb in panel has heat damage on. Adjusted setting as temp repair - lift and parts obsolete,Responsive Building Maintenance
Wyre Council,http://opendatacommunities.org/doc/district-council/wyre,29/11/2023,People and Places,Planning and Development Servs,132C,ADP ENVIRONMENTAL SERVICES LTD,15/11/2023,PE154438,300.00,0.00,Call out visit plus additional hour labour,Responsive Building Maintenance
Wyre Council,http://opendatacommunities.org/doc/district-council/wyre,29/11/2023,People and Places,Planning and Development Servs,132C,ADP ENVIRONMENTAL SERVICES LTD,09/11/2023,PE154092,2305.00,0.00,"Remedial works to RWHT, new pressure transducer",Responsive Building Maintenance
Wyre Council,http://opendatacommunities.org/doc/district-council/wyre,29/11/2023,People and Places,Cultural and Related Services,132A,John Carney,15/11/2023,PE154554,210.00,0.00,Marine Hall: For carrying out all roofing repairs to flat roof above the disabled toilets. Cleaning out all land valley.  Carrying out repairs using Crompol solution.,Responsive Building Maintenance
Wyre Council,http://opendatacommunities.org/doc/district-council/wyre,29/11/2023,People and Places,Planning and Development Servs,132C,John Carney,15/11/2023,PE154553,80.00,0.00,Fleetwood Market (Outside Cafe): For carrying out minor gutter repairs,Responsive Building Maintenance
Wyre Council,http://opendatacommunities.org/doc/district-council/wyre,29/11/2023,People and Places,Support Services,135B,John Carney,15/11/2023,PE154555,1200.00,0.00,"Civic Centre Room 156: For putting up scaffolding to carry out all roofing works, cleaning out land valley and prepare. For applying Cromopol solution over damaged lead valley to stop leaks.  Replace all missing small tiles around valley",Responsive Building Maintenance
Wyre Council,http://opendatacommunities.org/doc/district-council/wyre,29/11/2023,People and Places,Support Services,135B,John Carney,10/11/2023,PE154407,280.00,0.00,"Room 104: for carrying out all roofing repairs around skylight to above.  For supply and fixing small tiles to roof mainly around skylight area, but also to valley.  Finally for securing slipped glass panel to skylight",Responsive Building Maintenance
Wyre Council,http://opendatacommunities.org/doc/district-council/wyre,29/11/2023,People and Places,Support Services,135B,John Carney,10/11/2023,PE154408,260.00,0.00,"Room 104: For carrying out emergency repairs to flat roof bay, cleaning out outlet.  Clearing debris and leaves from roof, drying off and applying Crompol solution to stop water ingress",Responsive Building Maintenance
Wyre Council,http://opendatacommunities.org/doc/district-council/wyre,29/11/2023,People and Places,Support Services,135B,John Carney,10/11/2023,PE154409,220.00,0.00,Civic Centre Rooms 113-121: For carrying out repairs to valley to above to stop water ingress.  Also for cleaning out gulleys,Responsive Building Maintenance
Wyre Council,http://opendatacommunities.org/doc/district-council/wyre,29/11/2023,People and Places,Support Services,135B,John Carney,10/11/2023,PE154411,260.00,0.00,Civic Centre Room 116: For refixing slipped and broken small tiles to valley and to land valley. Clearing out gully,Responsive Building Maintenance
Wyre Council,http://opendatacommunities.org/doc/district-council/wyre,29/11/2023,People and Places,Support Services,135B,GARRY CARR BUILDING SERVICES LTD,14/11/2023,PE154387,1820.00,0.00,Install carpet tiles in Committee Room 1,Responsive Building Maintenance
Wyre Council,http://opendatacommunities.org/doc/district-council/wyre,29/11/2023,People and Places,Support Services,135B,GARRY CARR BUILDING SERVICES LTD,13/11/2023,PE154347,1820.00,0.00,Civic Centre: Install carpet tiles to Committee Room no. 2,Responsive Building Maintenance
Wyre Council,http://opendatacommunities.org/doc/district-council/wyre,29/11/2023,People and Places,Cultural and Related Services,132A,GARRY CARR BUILDING SERVICES LTD,07/11/2023,PE154205,210.00,0.00,"Mount Cottages: Prepare 4 no, entrance foor and apply 1 no, undercoat and gloss; colour to match exisiting.  Paint newly fitted putty to windows",Responsive Building Maintenance
Wyre Council,http://opendatacommunities.org/doc/district-council/wyre,29/11/2023,People and Places,Support Services,135B,GARRY CARR BUILDING SERVICES LTD,07/11/2023,PE153620,288.00,0.00,"Civic Centre: Supply of key cutting for all sites, for May to Sep 23 from Workshop at Thornton, breakdown of invoices handed into Keely",Responsive Building Maintenance
Wyre Council,http://opendatacommunities.org/doc/district-council/wyre,29/11/2023,People and Places,Central Services to the Public,131C,EVOLUTION CONSTRUCTION GROUP LTD,28/11/2023,PE154748,1363.57,0.00,Teanlowe 60+ Community Centre: Supply and fit new white fire escape door,Responsive Building Maintenance
Wyre Council,http://opendatacommunities.org/doc/district-council/wyre,29/11/2023,People and Places,Cultural and Related Services,132A,EVOLUTION CONSTRUCTION GROUP LTD,28/11/2023,PE154773,438.93,0.00,"Garstang Leisure Centre, PR3 1ED: Undertake temporary repair to studio timber flooring",Responsive Building Maintenance
Wyre Council,http://opendatacommunities.org/doc/district-council/wyre,29/11/2023,People and Places,Support Services,135B,EVOLUTION CONSTRUCTION GROUP LTD,28/11/2023,PE154756,306.03,0.00,Civic Centre: Committee room 2; replace damaged/rotten timber board to head of bay window pelmet LHS,Responsive Building Maintenance
Wyre Council,http://opendatacommunities.org/doc/district-council/wyre,29/11/2023,People and Places,Cultural and Related Services,132A,EVOLUTION CONSTRUCTION GROUP LTD,24/11/2023,PE154763,36.83,0.00,"Rossall Point Observatory, FY7 8PG: Secure door at hinges which may need re-siting.",Responsive Building Maintenance
Wyre Council,http://opendatacommunities.org/doc/district-council/wyre,29/11/2023,People and Places,Planning and Development Servs,132C,EVOLUTION CONSTRUCTION GROUP LTD,24/11/2023,PE154759,24.55,0.00,"Croft Court, Butts Close, Thornton: Re-seal letterbox to unit 14 and seal letterbox to unit 11",Responsive Building Maintenance
Wyre Council,http://opendatacommunities.org/doc/district-council/wyre,29/11/2023,People and Places,Environmental Services,132B,EVOLUTION CONSTRUCTION GROUP LTD,24/11/2023,PE154775,49.10,0.00,Garstang Rd Cemetery FY6 7SN: Ease/adjust external door to brew room which is swollen and difficult to open/close/lock up,Responsive Building Maintenance
Wyre Council,http://opendatacommunities.org/doc/district-council/wyre,29/11/2023,People and Places,Support Services,135B,EVOLUTION CONSTRUCTION GROUP LTD,24/11/2023,PE154761,51.44,0.00,"Business Support & Monitoring Office, Civic Centre: Supply and fit soft closer to door Room 203",Responsive Building Maintenance
Wyre Council,http://opendatacommunities.org/doc/district-council/wyre,29/11/2023,People and Places,Support Services,135B,EVOLUTION CONSTRUCTION GROUP LTD,24/11/2023,PE154762,49.10,0.00,Civic Centre: Fee upper windows to room 76 from paint so they can be operational.  The RH window does have a sash cord but the LH window does not,Responsive Building Maintenance
Wyre Council,http://opendatacommunities.org/doc/district-council/wyre,29/11/2023,People and Places,Support Services,135B,EVOLUTION CONSTRUCTION GROUP LTD,24/11/2023,PE154774,49.10,0.00,Civic Centre FY6 7PU: Ease door to room 204 which is sticking and requires force to close,Responsive Building Maintenance
